﻿Body Name,Service Area,Expenses Type,Invoice Payment Date,Transaction Number,Supplier Name,Net Amount
Manchester City Council,Adult Social Care,Third party payments relating to Voluntary Organisations,02-Oct-23,5105893470,Nacro,"£117,306.00"
Manchester City Council,Adult Social Care,Personal needs of client,02-Oct-23,5105893522,Tunstall Healthcare (UK) Ltd,"£7,050.00"
Manchester City Council,Childrens & Education Services,Furniture,02-Oct-23,5105893743,Eps Supplies Ltd,£556.44
Manchester City Council,Adult Social Care,Third party payments relating to Voluntary Organisations,02-Oct-23,5105893464,The Guinness Partnership Ltd,"£6,593.75"
Manchester City Council,Adult Social Care,Equipment,02-Oct-23,5105893490,Drive Devilbiss Sidhil Ltd,"£3,751.00"
Manchester City Council,Chief Executives,Agency staff provision,02-Oct-23,5105893487,Adecco Uk Ltd,"£1,685.40"
Manchester City Council,Chief Executives,Legal Fees,02-Oct-23,5105893483,Experian Limited,£511.98
Manchester City Council,Chief Executives,Charges for Services,02-Oct-23,1700158744,HM Revenue & Customs,"-£7,700.00"
Manchester City Council,Hospitality + Trading Services,Professional fees,02-Oct-23,5105893515,Pennine Pump & Tank Co.,£940.00
Manchester City Council,Manchester Leisure,Payments to Sub-Contractors,02-Oct-23,5105893396,Manchester Dogs Home,£606.06
Manchester City Council,Manchester Leisure,Payments to Sub-Contractors,02-Oct-23,5105893397,Manchester Dogs Home,£680.00
Manchester City Council,Manchester Leisure,Payments to Sub-Contractors,02-Oct-23,5105893395,Manchester Dogs Home,£760.00
Manchester City Council,Manchester Leisure,Payments to Sub-Contractors,02-Oct-23,5105893394,Manchester Dogs Home,"£1,072.26"
Manchester City Council,Childrens & Education Services,I T Provision,02-Oct-23,5105893508,Insight Direct (Uk) Ltd,£819.56
Manchester City Council,Chief Executives,I T Provision,02-Oct-23,5105893509,Insight Direct (Uk) Ltd,"£15,023.40"
Manchester City Council,Adult Social Care,Licences Purchase,02-Oct-23,5105893513,Insight Direct (Uk) Ltd,£501.04
Manchester City Council,Housing Revenue Account,Council Dwelling Adaptations,02-Oct-23,5105893497,Pts Plumbing Trade Supplies,£686.36
Manchester City Council,Housing Revenue Account,Council Dwelling Adaptations,02-Oct-23,5105893499,Pts Plumbing Trade Supplies,"£3,219.42"
Manchester City Council,Manchester Leisure,Compensation Payments,02-Oct-23,1700158733,Manchester City Council 7-52300211,-£809.20
Manchester City Council,Regeneration Finance,Cleaning Equipment and Materials,02-Oct-23,5105893733,Alliance Disposables Ltd,£513.46
Manchester City Council,Chief Executives,Legal Fees,02-Oct-23,5105893486,Russell & Russell Solicitors LLP,"£2,921.00"
Manchester City Council,Chief Executives,Legal Fees,02-Oct-23,5105893494,Russell & Russell Solicitors LLP,"£3,750.00"
Manchester City Council,Chief Executives,Legal Fees,02-Oct-23,5105893484,Russell & Russell Solicitors LLP,"£4,848.25"
Manchester City Council,Chief Executives,Legal Fees,02-Oct-23,5105893496,Russell & Russell Solicitors LLP,"£5,671.00"
Manchester City Council,Regeneration Finance,Rents,02-Oct-23,1908137603,Savills Commercial Ltd,"£1,838.24"
Manchester City Council,Adult Social Care,Rents,02-Oct-23,5105893520,Accommodation Links Ltd,£600.00
Manchester City Council,Adult Social Care,Professional fees,02-Oct-23,5105893531,Permanent Futures Temp,£725.00
Manchester City Council,Adult Social Care,Professional fees,02-Oct-23,5105893400,Permanent Futures Temp,"£1,087.50"
Manchester City Council,Manchester Leisure,Contract Cleaning External,02-Oct-23,5105893512,Scrutiny Cleaning Services,£994.00
Manchester City Council,Hospitality + Trading Services,Goods purchased for resale in Council outlets,02-Oct-23,5105893517,Albert Jones Memorials,"£2,367.90"
Manchester City Council,Adult Social Care,Equipment,02-Oct-23,5105893719,Banner Group Limited,£539.60
Manchester City Council,Adult Social Care,Stationery,02-Oct-23,5105893679,Banner Group Limited,£564.00
Manchester City Council,Adult Social Care,Rents,02-Oct-23,5105893477,Eeven Homes Ltd.,"£17,436.00"
Manchester City Council,Hospitality + Trading Services,Vehicle Fuel Costs,02-Oct-23,5105893485,Standard Fuels Oils,"£12,237.32"
Manchester City Council,Childrens & Education Services,Payments for services,02-Oct-23,5105893466,SMS Coaching Ltd,"£329,700.00"
Manchester City Council,Highways Services,Grounds Maintenance,02-Oct-23,5105893467,Conservation Building Services Ltd,£755.00
Manchester City Council,Highways Services,Grounds Maintenance,02-Oct-23,5105893468,Conservation Building Services Ltd,"£5,305.00"
Manchester City Council,Adult Social Care,Bed & Breakfast Acc,02-Oct-23,5105893506,Medlock House Ltd,"£7,644.00"
Manchester City Council,Adult Social Care,Grant and subscriptions awarded,02-Oct-23,5105893469,Revolving Doors Housing Trust,"£49,824.77"
Manchester City Council,Adult Social Care,Rents,02-Oct-23,5105893500,M&D Residential Ltd,"£14,914.00"
Manchester City Council,Childrens & Education Services,Payments for services,02-Oct-23,5105893495,Care Solutions Recruitment,£676.80
Manchester City Council,Childrens & Education Services,Payments for services,02-Oct-23,5105893491,Care Solutions Recruitment,"£2,560.00"
Manchester City Council,Adult Social Care,Rents,02-Oct-23,5105893502,Devon Homes,"£9,430.00"
Manchester City Council,Adult Social Care,Rents,02-Oct-23,5105893478,Kaasuu Properties,"£3,520.00"
Manchester City Council,Adult Social Care,Furniture,02-Oct-23,5105893479,Kaasuu Properties,"£2,700.00"
Manchester City Council,Childrens & Education Services,Payments for services,02-Oct-23,1908231635,New College Worcester,"£29,361.00"
Manchester City Council,Childrens & Education Services,Payments for services,02-Oct-23,1908232231,St Anne’s RC Primary and Nursery Sc,"£4,558.00"
Manchester City Council,Corporate Services,Training and Development,02-Oct-23,1908232616,Barbri Global Ltd,"£1,725.00"
Manchester City Council,Adult Social Care,Equipment,02-Oct-23,1908231973,Safelincs Ltd,"£6,352.31"
Manchester City Council,Adult Social Care,Rents,02-Oct-23,1908234939,Redacted Personal Information,"£3,182.19"
Manchester City Council,Adult Social Care,Rents,02-Oct-23,1908234939,Redacted Personal Information,"£14,400.00"
Manchester City Council,Adult Social Care,Equipment,03-Oct-23,5105893630,Lisclare,"£14,725.00"
Manchester City Council,Corporate Services,Agency staff provision,03-Oct-23,5105893580,Michael Page International,£672.00
Manchester City Council,Manchester Leisure,Refuse Collection,03-Oct-23,5105893830,GTS Steam Cleaners,£982.92
Manchester City Council,Manchester Leisure,Refuse Collection,03-Oct-23,5105893844,GTS Steam Cleaners,"£2,713.35"
Manchester City Council,Highways Services,Payments to Sub-Contractors,03-Oct-23,5105893582,Utilities Design & Planning Ltd,£685.20
Manchester City Council,Highways Services,Payments to Sub-Contractors,03-Oct-23,5105893550,Utilities Design & Planning Ltd,"£1,600.00"
Manchester City Council,Highways Services,Payments to Sub-Contractors,03-Oct-23,5105893549,Utilities Design & Planning Ltd,"£2,000.00"
Manchester City Council,Highways Services,Payments to Sub-Contractors,03-Oct-23,5105893581,Utilities Design & Planning Ltd,"£2,000.00"
Manchester City Council,Manchester Leisure,Grant and subscriptions awarded,03-Oct-23,5105893816,St John Ambulance Supplies,"£2,200.00"
Manchester City Council,Manchester Leisure,Removal and Storage of Furniture,03-Oct-23,5105893812,Master Moves Ltd,£728.25
Manchester City Council,Regeneration Finance,Removal and Storage of Furniture,03-Oct-23,5105893387,Master Moves Ltd,£790.86
Manchester City Council,Manchester Leisure,Removal and Storage of Furniture,03-Oct-23,5105893775,Master Moves Ltd,£926.60
Manchester City Council,Manchester Leisure,Equipment,03-Oct-23,5105893572,Protec Fire Detection Plc,£708.61
Manchester City Council,Highways Services,Building Materials for direct delivery,03-Oct-23,5105893867,TARMAC,£755.66
Manchester City Council,Manchester Leisure,Compensation Payments,03-Oct-23,1908234948,Peasegoods,"£5,900.00"
Manchester City Council,Adult Social Care,Compensation Payments,03-Oct-23,1908235019,Antony Hodari Holding Ltd,"£8,500.00"
Manchester City Council,Adult Social Care,Equipment,03-Oct-23,5105893596,Morris & Alexander Ltd,"£2,474.00"
Manchester City Council,Adult Social Care,"Consumable items eg Toilet rolls, soap etc",03-Oct-23,5105893795,All 4 Pets Limited,£992.00
Manchester City Council,Chief Executives,Charges for Services,03-Oct-23,1908234940,Tree Of Life Centre Wythenshawe,"£2,700.00"
Manchester City Council,Childrens & Education Services,Payments for services,03-Oct-23,5105893825,Chaigeley Education Foundation,"£4,518.18"
Manchester City Council,Childrens & Education Services,Transport Coach Hire,03-Oct-23,5105893852,Staffordshire County Council,"£2,886.10"
Manchester City Council,Childrens & Education Services,Transport Coach Hire,03-Oct-23,5105893838,Staffordshire County Council,"£5,323.50"
Manchester City Council,Childrens & Education Services,Transport Coach Hire,03-Oct-23,5105893851,Staffordshire County Council,"£6,428.75"
Manchester City Council,Chief Executives,Charges for Services,03-Oct-23,1908234938,People's History Museum,"£5,000.00"
Manchester City Council,Childrens & Education Services,Professional fees,03-Oct-23,5105893828,Manchester Settlement,"£1,300.00"
Manchester City Council,Childrens & Education Services,Payments for services,03-Oct-23,5105893598,4CT Limited,"£4,930.37"
Manchester City Council,Adult Social Care,Payments for services,03-Oct-23,5105893545,Brook,"£44,851.65"
Manchester City Council,Childrens & Education Services,Internal Repairs and Maintenance for buildings,03-Oct-23,5105893779,Manchester School Services Limited,"£2,400.00"
Manchester City Council,Corporate Services,Professional fees,03-Oct-23,5105893576,Turner & Townsend Cost,"£6,960.00"
Manchester City Council,Adult Social Care,Rents,03-Oct-23,5105893869,Amco Management,"£38,865.49"
Manchester City Council,Chief Executives,Equipment,03-Oct-23,5105893559,Quadient UK Ltd (Consumables),"£4,064.93"
Manchester City Council,Manchester Leisure,Security,03-Oct-23,5105893654,Community Security (North West),"£4,287.79"
Manchester City Council,Manchester Leisure,Security,03-Oct-23,5105893655,Community Security (North West),"£4,287.79"
Manchester City Council,Manchester Leisure,Equipment,03-Oct-23,5105894064,The Helping Hand Company Ltd,"£4,636.19"
Manchester City Council,Hospitality + Trading Services,Vehicle Hire Costs,03-Oct-23,5105894065,Manchester Van Hire Ltd,"£36,782.70"
Manchester City Council,Manchester Leisure,Building Materials for direct delivery,03-Oct-23,5105893557,W.H. Morris & Co,"£2,427.75"
Manchester City Council,Manchester Leisure,Professional fees,03-Oct-23,5105893555,Bennett Workplace Solutions Ltd,£769.99
Manchester City Council,Adult Social Care,Furniture,03-Oct-23,5105893507,Bennett Workplace Solutions Ltd,"£1,058.00"
Manchester City Council,Manchester Leisure,Training and Development,03-Oct-23,5105893632,Suzy Lamplugh Trust,"£7,000.00"
Manchester City Council,Chief Executives,Third party payments relating to Voluntary Organisations,03-Oct-23,5105893577,Centre For Public Scrutiny,"£1,226.00"
Manchester City Council,Manchester Leisure,Professional fees,03-Oct-23,5105893807,Manchester Central,"£1,000.00"
Manchester City Council,Chief Executives,Legal Fees,03-Oct-23,5105893815,Weightmans LLP Solicitors,"£2,937.00"
Manchester City Council,Chief Executives,Agency staff provision,03-Oct-23,5105893547,Triad Resourcing,"£19,320.00"
Manchester City Council,Manchester Leisure,Equipment,03-Oct-23,5105893570,MGB Plastics Limited,"£15,804.00"
Manchester City Council,Adult Social Care,Professional fees,03-Oct-23,5105893537,Permanent Futures Temp,£725.00
Manchester City Council,Adult Social Care,Professional fees,03-Oct-23,5105893535,Permanent Futures Temp,"£1,087.50"
Manchester City Council,Regeneration Finance,Storage Costs,03-Oct-23,5105893800,Oasis UK formerly Box-It (NW),£534.20
Manchester City Council,Regeneration Finance,Storage Costs,03-Oct-23,5105893799,Oasis UK formerly Box-It (NW),£618.18
Manchester City Council,Chief Executives,Storage Costs,03-Oct-23,5105893839,Oasis UK formerly Box-It (NW),£753.67
Manchester City Council,Highways Services,Building Materials for direct delivery,03-Oct-23,5105894074,Ecomix Concrete Ltd,£560.00
Manchester City Council,Highways Services,Building Materials for direct delivery,03-Oct-23,5105894078,Ecomix Concrete Ltd,£567.00
Manchester City Council,Highways Services,Building Materials for direct delivery,03-Oct-23,5105894072,Ecomix Concrete Ltd,£754.00
Manchester City Council,Highways Services,Building Materials for direct delivery,03-Oct-23,5105894067,Ecomix Concrete Ltd,"£1,146.00"
Manchester City Council,Highways Services,Building Materials for direct delivery,03-Oct-23,5105894073,Ecomix Concrete Ltd,"£1,200.00"
Manchester City Council,Highways Services,Building Materials for direct delivery,03-Oct-23,5105894070,Ecomix Concrete Ltd,"£1,260.00"
Manchester City Council,Highways Services,Building Materials for direct delivery,03-Oct-23,5105894071,Ecomix Concrete Ltd,"£1,327.50"
Manchester City Council,Highways Services,Building Materials for direct delivery,03-Oct-23,5105894075,Ecomix Concrete Ltd,"£1,380.00"
Manchester City Council,Highways Services,Building Materials for direct delivery,03-Oct-23,5105894076,Ecomix Concrete Ltd,"£1,400.00"
Manchester City Council,Highways Services,Building Materials for direct delivery,03-Oct-23,5105894066,Ecomix Concrete Ltd,"£1,500.00"
Manchester City Council,Highways Services,Building Materials for direct delivery,03-Oct-23,5105894077,Ecomix Concrete Ltd,"£2,320.00"
Manchester City Council,Highways Services,Purchase of stores for re-distribution,03-Oct-23,5105894078,Ecomix Concrete Ltd,"£2,400.00"
Manchester City Council,Manchester Leisure,Building Materials for direct delivery,03-Oct-23,5105893622,French Barn Lane,"£1,496.23"
Manchester City Council,Adult Social Care,Third party payments to Health Authority,03-Oct-23,1908234004,Liverpool University Hospitals,£525.00
Manchester City Council,Adult Social Care,Third party payments to Health Authority,03-Oct-23,1908234008,Liverpool University Hospitals,"£1,068.00"
Manchester City Council,Adult Social Care,Third party payments to Health Authority,03-Oct-23,1908234005,Liverpool University Hospitals,"£1,334.00"
Manchester City Council,Childrens & Education Services,Third party payments to other Local Authorities,03-Oct-23,5105893565,Cygnet (NW) Ltd,"£1,810.00"
Manchester City Council,Manchester Leisure,Payments to Sub-Contractors,03-Oct-23,5105893575,Greenwich Leisure Limited,"£1,184.74"
Manchester City Council,Manchester Leisure,Works and associated costs for Land and Buildings,03-Oct-23,5105893599,Greenwich Leisure Limited,£638.76
Manchester City Council,Adult Social Care,Training and Development,03-Oct-23,5105893817,A1 Risk Solutions Ltd,"£2,750.00"
Manchester City Council,Adult Social Care,Grant and subscriptions awarded,03-Oct-23,5105893388,Stepping Stone Projects,"£11,000.00"
Manchester City Council,Adult Social Care,Rents,03-Oct-23,5105893541,K L Properties,"£16,771.00"
Manchester City Council,Adult Social Care,Funeral and coroner related services,03-Oct-23,5105893566,Greater Manchester Funeral Service,£881.00
Manchester City Council,Adult Social Care,Funeral and coroner related services,03-Oct-23,5105893556,Greater Manchester Funeral Service,"£1,455.00"
Manchester City Council,Highways Services,Professional fees,03-Oct-23,5105893538,Waterman Aspen Ltd,"-£2,400.00"
Manchester City Council,Highways Services,Professional fees,03-Oct-23,5105893539,Waterman Aspen Ltd,"£2,240.00"
Manchester City Council,Adult Social Care,Cleaning Equipment and Materials,03-Oct-23,5105893870,Arrow County Supplies,£532.73
Manchester City Council,Adult Social Care,Rents,03-Oct-23,5105893527,Manchester Housing Group Ltd,£600.00
Manchester City Council,Childrens & Education Services,Equipment,03-Oct-23,5105893829,Ability Smart Ltd,£885.00
Manchester City Council,Corporate Services,GRIR,03-Oct-23,5105893801,Greater Manchester Travelcards Ltd,"-£1,400.00"
Manchester City Council,Regeneration Finance,Professional fees,03-Oct-23,5105893880,Alan Franklin Builders Limited,"£1,867.50"
Manchester City Council,Manchester Leisure,Grant and subscriptions awarded,03-Oct-23,5105893546,Manchester Active,"£90,680.00"
Manchester City Council,Chief Executives,Third party payments to Health Authority,03-Oct-23,5105893855,MEWA LLP,£900.00
Manchester City Council,Childrens & Education Services,Payments for services,03-Oct-23,5105893823,SMS Coaching Ltd,"£4,575.00"
Manchester City Council,Childrens & Education Services,Professional fees,03-Oct-23,5105893822,SMS Coaching Ltd,"£17,500.00"
Manchester City Council,Adult Social Care,Security,03-Oct-23,5105893594,UNIQUE SPECIALIST SERVICES,"£1,404.00"
Manchester City Council,Regeneration Finance,Security,03-Oct-23,5105893588,MITIE SECURITY LIMITED,"£129,356.58"
Manchester City Council,Regeneration Finance,Security,03-Oct-23,5105893587,MITIE SECURITY LIMITED,"£3,120.30"
Manchester City Council,Childrens & Education Services,Carer Support Payments ,03-Oct-23,5105893618,Amore Complex Care,"£32,911.92"
Manchester City Council,Childrens & Education Services,Payments for services,03-Oct-23,5105893748,4syte Funding Limited,£507.63
Manchester City Council,Childrens & Education Services,Payments for services,03-Oct-23,5105893752,4syte Funding Limited,£507.63
Manchester City Council,Childrens & Education Services,Payments for services,03-Oct-23,5105893758,4syte Funding Limited,£507.63
Manchester City Council,Childrens & Education Services,Payments for services,03-Oct-23,5105893763,4syte Funding Limited,£507.63
Manchester City Council,Childrens & Education Services,Payments for services,03-Oct-23,5105893769,4syte Funding Limited,£507.63
Manchester City Council,Childrens & Education Services,Payments for services,03-Oct-23,5105893785,4syte Funding Limited,£507.63
Manchester City Council,Chief Executives,Professional fees,03-Oct-23,1908234985,Pinnacle Building and Surveying,£550.00
Manchester City Council,Childrens & Education Services,Grant Payments,03-Oct-23,1908235021,Paypoint,"£11,473.73"
Manchester City Council,Adult Social Care,Third party payments to Health Authority,03-Oct-23,5105893780,NHS GREATER MANCHESTER ICB,"£5,036.17"
Manchester City Council,Adult Social Care,Third party payments to Health Authority,03-Oct-23,5105893777,NHS GREATER MANCHESTER ICB,"£90,000.00"
Manchester City Council,Chief Executives,Examination Fees,03-Oct-23,5105893858,Toxicology UK Ltd,"£8,500.00"
Manchester City Council,Childrens & Education Services,Payments for services,03-Oct-23,5105893831,The 0161 Project Ltd,"£84,240.00"
Manchester City Council,Chief Executives,Funeral and coroner related services,03-Oct-23,5105893840,Bate & Holland Funeral Services Ltd,"£10,640.00"
Manchester City Council,Chief Executives,ClothsUniformLaundry,03-Oct-23,5105893863,Site Supply Solutions Limited,"£2,117.99"
Manchester City Council,Manchester Leisure,Compensation Payments,03-Oct-23,1908234946,Bamber & Co Solicitors Ltd,"£6,000.00"
Manchester City Council,Manchester Leisure,Compensation Payments,03-Oct-23,1908235017,Clearwater Solicitors,"£21,250.00"
Manchester City Council,Regeneration Finance,Compensation Payments,03-Oct-23,1908234686,Hugh James Solicitors,"£6,300.00"
Manchester City Council,Manchester Leisure,Compensation Payments,03-Oct-23,1908234945,Satchell Moran Solicitors Limited,"£6,000.00"
Manchester City Council,Manchester Leisure,"Consumable items eg Toilet rolls, soap etc",03-Oct-23,1700158747,MORPLAN.COM,"-£1,173.07"
Manchester City Council,Manchester Leisure,"Consumable items eg Toilet rolls, soap etc",03-Oct-23,1908235053,MORPLAN.COM,£977.56
Manchester City Council,Corporate Services,I T Provision,03-Oct-23,1908231976,LA DIRECTORIES LIMITED,"£12,600.00"
Manchester City Council,Highways Services,Training-Day Release,03-Oct-23,1908234009,VERITAS SAFETY SERVICES LTD,"£2,250.00"
Manchester City Council,Manchester Leisure,Special Event,03-Oct-23,1908235035,AIS PROJECTS LIMITED,"£2,880.00"
Manchester City Council,Manchester Leisure,Special Event,03-Oct-23,1908235054,The Tour of Britain,"£200,000.00"
Manchester City Council,Adult Social Care,"Consumable items eg Toilet rolls, soap etc",03-Oct-23,5105893571,Redacted Personal Information,"£2,232.00"
Manchester City Council,Chief Executives,Funeral and coroner related services,03-Oct-23,5105893856,Redacted Personal Information,"£1,600.00"
Manchester City Council,Adult Social Care,Bed & Breakfast Acc,03-Oct-23,5105893560,Redacted Personal Information,"£5,175.00"
Manchester City Council,Manchester Leisure,Professional fees,03-Oct-23,5105893593,Redacted Personal Information,"-£1,404.00"
Manchester City Council,Manchester Leisure,Professional fees,03-Oct-23,5105893591,Redacted Personal Information,£500.00
Manchester City Council,Manchester Leisure,Professional fees,03-Oct-23,5105893592,Redacted Personal Information,"£1,404.00"
Manchester City Council,Childrens & Education Services,Third party payments to other Local Authorities,03-Oct-23,1908235055,Redacted Personal Information,"£2,070.00"
Manchester City Council,Adult Social Care,Rents,03-Oct-23,5105893629,Redacted Personal Information,"£2,140.00"
Manchester City Council,Highways Services,Legal Fees,03-Oct-23,1908231985,Redacted Personal Information,"£1,500.00"
Manchester City Council,Regeneration Finance,Taxi Vehicle Materia,04-Oct-23,5105893945,VIP-System Ltd,"£1,390.28"
Manchester City Council,Manchester Leisure,Library Materials Acquisition,04-Oct-23,1908237801,Martin-Lavell Limited,"£1,220.01"
Manchester City Council,Highways Services,Payments to Sub-Contractors,04-Oct-23,5105893584,Utilities Design & Planning Ltd,£975.26
Manchester City Council,Childrens & Education Services,Payments for services,04-Oct-23,5105894088,Reed Employment Plc,"£6,110.46"
Manchester City Council,Manchester Leisure,Library Materials Acquisition,04-Oct-23,1908237823,Askews and Holts,£629.28
Manchester City Council,Manchester Leisure,Library Materials Acquisition,04-Oct-23,1908237809,Askews and Holts,£780.75
Manchester City Council,Environment and Operations,Construction Works,04-Oct-23,5105893941,Kings Chambers,"£1,400.00"
Manchester City Council,Adult Social Care,Grant and subscriptions awarded,04-Oct-23,5105894016,Riverside ECHG,"£25,662.00"
Manchester City Council,Adult Social Care,Grant and subscriptions awarded,04-Oct-23,5105894013,Riverside ECHG,"£42,000.00"
Manchester City Council,Adult Social Care,Grant and subscriptions awarded,04-Oct-23,5105894010,Riverside ECHG,"£93,030.50"
Manchester City Council,Adult Social Care,Third party payments relating to Voluntary Organisations,04-Oct-23,5105894007,Riverside ECHG,"£51,708.00"
Manchester City Council,Manchester Leisure,Professional fees,04-Oct-23,5105893934,Experian Limited,"£1,097.60"
Manchester City Council,Manchester Leisure,Library Materials Acquisition,04-Oct-23,1908237826,Azhar Enterprises Ltd,£779.50
Manchester City Council,Childrens & Education Services,Payments for services,04-Oct-23,5105894123,Pontville Residential School,"£9,394.36"
Manchester City Council,Childrens & Education Services,Payments for services,04-Oct-23,5105894171,Pontville Residential School,"£20,403.57"
Manchester City Council,Manchester Leisure,Equipment,04-Oct-23,5105894038,Groundwork Landscapes Ltd,£690.00
Manchester City Council,Regeneration Finance,Grounds Maintenance,04-Oct-23,5105893981,Arboricultural Services Treework,£600.00
Manchester City Council,Regeneration Finance,Grounds Maintenance,04-Oct-23,5105894137,Arboricultural Services Treework,£600.00
Manchester City Council,Adult Social Care,Personal needs of client,04-Oct-23,5105893979,Sitewatch Fire & Surveillance Ltd,"£4,318.64"
Manchester City Council,Adult Social Care,Third party payments to Health Authority,04-Oct-23,5105893836,Central Mcr Uni Hospital t/a,"£974,080.75"
Manchester City Council,Manchester Leisure,Grant and subscriptions awarded,04-Oct-23,5105893889,Salford Community Leisure Ltd,"£5,644.09"
Manchester City Council,Childrens & Education Services,Professional fees,04-Oct-23,5105893975,Manchester Settlement,£650.00
Manchester City Council,Manchester Leisure,Works and associated costs for Land and Buildings,04-Oct-23,5105893553,City Build Manchester Ltd,£550.51
Manchester City Council,Manchester Leisure,Special Event,04-Oct-23,5105893930,Greater Manchester Police,"£1,938.72"
Manchester City Council,Manchester Leisure,Hire of Machinery,04-Oct-23,5105894106,Bradshaw Lawnmover Engineers,"£2,205.00"
Manchester City Council,Childrens & Education Services,Third party payments relating to Voluntary Organisations,04-Oct-23,5105893970,Salford Royal Hospitals Nhs Trust,"£8,250.00"
Manchester City Council,Adult Social Care,Third party payments relating to Voluntary Organisations,04-Oct-23,5105893944,The Depaul Trust,"£100,000.00"
Manchester City Council,Environment and Operations,Construction Works,04-Oct-23,5105894092,Eric Wright Civil Engineering Limit,"-£291,028.92"
Manchester City Council,Environment and Operations,Construction Works,04-Oct-23,5105894093,Eric Wright Civil Engineering Limit,"-£122,371.45"
Manchester City Council,Environment and Operations,Construction Works,04-Oct-23,5105894095,Eric Wright Civil Engineering Limit,"£122,371.45"
Manchester City Council,Childrens & Education Services,Licences Purchase,04-Oct-23,5105894174,Insight Direct (Uk) Ltd,£501.04
Manchester City Council,Manchester Leisure,Compensation Payments,04-Oct-23,1700159330,Manchester City Council 7-52300211,"-£1,500.00"
Manchester City Council,Environment and Operations,Construction Works,04-Oct-23,5105893931,GMCA,"£5,450.35"
Manchester City Council,Childrens & Education Services,Professional fees,04-Oct-23,5105893932,GMCA,"£4,694.00"
Manchester City Council,Chief Executives,Advertising,04-Oct-23,5105894022,Guardian News and Media Limited,"£4,533.75"
Manchester City Council,Chief Executives,Third party payments relating to Voluntary Organisations,04-Oct-23,5105894105,Manchester Alliance For,"£147,750.00"
Manchester City Council,Adult Social Care,Equipment,04-Oct-23,5105893914,Drive Devilbiss Healthcare Ltd,£501.30
Manchester City Council,Regeneration Finance,Professional fees,04-Oct-23,5105893974,Jacobs UK Ltd,"£51,865.00"
Manchester City Council,Environment and Operations,Construction Works,04-Oct-23,5105894031,Wilde Consultants Ltd,"£1,657.50"
Manchester City Council,Environment and Operations,Construction Works,04-Oct-23,5105894029,Wilde Consultants Ltd,"£5,689.50"
Manchester City Council,Adult Social Care,Grant and subscriptions awarded,04-Oct-23,5105893998,Manchester Womens Aid,"£3,333.33"
Manchester City Council,Adult Social Care,Personal needs of client,04-Oct-23,5105893871,Osprey Healthcare Ltd,"£2,149.80"
Manchester City Council,Adult Social Care,Grant and subscriptions awarded,04-Oct-23,5105893841,The Mustard Tree,"£3,011.75"
Manchester City Council,Manchester Leisure,Library Materials Acquisition,04-Oct-23,1908237829,Creditsafe Business Solutions Ltd,"£8,416.00"
Manchester City Council,Chief Executives,Professional fees,04-Oct-23,5105893929,King's House Conference (Gtr Mcr),"£2,855.00"
Manchester City Council,Chief Executives,Advertising,04-Oct-23,5105894015,MediaCo Outdoor Limited,"£1,080.00"
Manchester City Council,Hospitality + Trading Services,Vehicle Hire Costs,04-Oct-23,5105893954,Peter Douglass Platforms,"£1,690.00"
Manchester City Council,Regeneration Finance,I T Provision,04-Oct-23,5105893908,Smartsurvey Ltd,"£7,800.00"
Manchester City Council,Childrens & Education Services,Payments for services,04-Oct-23,5105893926,NISAI Virtual Academy,"£3,875.00"
Manchester City Council,Manchester Leisure,Grant and subscriptions awarded,04-Oct-23,5105893986,Caritas Lalley Centre,"£1,430.00"
Manchester City Council,Hospitality + Trading Services,Vehicle Repairs,04-Oct-23,5105894160,Gibsons Garden Machinery Limited,£548.18
Manchester City Council,Childrens & Education Services,Grant and subscriptions awarded,04-Oct-23,5105894110,Coaching Inside and Out,"£5,900.00"
Manchester City Council,Childrens & Education Services,Grant and subscriptions awarded,04-Oct-23,5105894120,Coaching Inside and Out,"£5,900.00"
Manchester City Council,Childrens & Education Services,Grant and subscriptions awarded,04-Oct-23,5105894141,Coaching Inside and Out,"£5,900.00"
Manchester City Council,Adult Social Care,Grant Payments,04-Oct-23,5105894102,Assoc of Dir. of Public Health,£750.00
Manchester City Council,Adult Social Care,Grant Payments,04-Oct-23,5105894102,Assoc of Dir. of Public Health,"£8,200.00"
Manchester City Council,Childrens & Education Services,Payments for services,04-Oct-23,5105893946,Cedar House School,"£6,740.66"
Manchester City Council,Childrens & Education Services,Payments for services,04-Oct-23,5105893965,Cedar House School,"£7,193.59"
Manchester City Council,Childrens & Education Services,Payments for services,04-Oct-23,5105894136,Cedar House School,"£10,639.21"
Manchester City Council,Childrens & Education Services,Professional fees,04-Oct-23,5105894109,Alpha Biolaboratories Limited,£535.00
Manchester City Council,Childrens & Education Services,Payments for services,04-Oct-23,5105893928,SOL Christian Academy,"£6,280.67"
Manchester City Council,Childrens & Education Services,Payments for services,04-Oct-23,5105894087,Link Mediation Services,"£2,475.00"
Manchester City Council,Regeneration Finance,Grounds Maintenance,04-Oct-23,5105893903,Biffa Municipal Limited,"£2,335.56"
Manchester City Council,Manchester Leisure,Library Materials Acquisition,04-Oct-23,1908237830,Didsbury News Limited,£725.40
Manchester City Council,Childrens & Education Services,Third party payments to other Local Authorities,04-Oct-23,5105894009,Lum Head Primary School,"£1,684.00"
Manchester City Council,Childrens & Education Services,Third party payments to other Local Authorities,04-Oct-23,5105894017,Lum Head Primary School,"£2,105.00"
Manchester City Council,Environment and Operations,Professional fees,04-Oct-23,5105893883,Smile Mediation,"£1,485.00"
Manchester City Council,Childrens & Education Services,Hire of Premises,04-Oct-23,5105894180,Irish Town Manchester Ltd,£768.00
Manchester City Council,Hospitality + Trading Services,Payments to Sub-Contractors,04-Oct-23,5105893994,Pest Bird Control Ltd,£640.00
Manchester City Council,Adult Social Care,Personal needs of client,04-Oct-23,5105893898,Accora,"£1,917.00"
Manchester City Council,Manchester Leisure,Rents,04-Oct-23,1908217175,Vanguard Holdings Ltd,"£20,000.00"
Manchester City Council,Childrens & Education Services,Third party payments to other Local Authorities,04-Oct-23,5105893987,Delamere School,"£2,827.10"
Manchester City Council,Adult Social Care,Contract Cleaning External,04-Oct-23,5105894012,YD Healthcare Ltd,£844.00
Manchester City Council,Regeneration Finance,CRB Fees,04-Oct-23,5105893976,Complete Background Screening Ltd,£910.00
Manchester City Council,Hospitality + Trading Services,Vehicle Fuel Costs,04-Oct-23,5105893909,Standard Fuels Oils,"£11,223.92"
Manchester City Council,Hospitality + Trading Services,Vehicle Fuel Costs,04-Oct-23,5105893910,Standard Fuels Oils,"£22,679.18"
Manchester City Council,Hospitality + Trading Services,Vehicle Fuel Costs,04-Oct-23,5105894081,Standard Fuels Oils,"£24,953.14"
Manchester City Council,Regeneration Finance,Professional fees,04-Oct-23,5105894005,Alan Franklin Builders Limited,£580.40
Manchester City Council,Regeneration Finance,Professional fees,04-Oct-23,5105894003,Alan Franklin Builders Limited,£702.00
Manchester City Council,Regeneration Finance,Professional fees,04-Oct-23,5105894168,Alan Franklin Builders Limited,"£1,384.50"
Manchester City Council,Childrens & Education Services,Personal needs of client,04-Oct-23,5105894132,Furniture Resource Centre Ltd,£678.81
Manchester City Council,Corporate Services,WPS Awards,04-Oct-23,5105893959,Furniture Resource Centre Ltd,£538.10
Manchester City Council,Corporate Services,WPS Awards,04-Oct-23,5105894146,Furniture Resource Centre Ltd,£731.04
Manchester City Council,Corporate Services,WPS Awards,04-Oct-23,5105894173,Furniture Resource Centre Ltd,£743.89
Manchester City Council,Corporate Services,WPS Awards,04-Oct-23,5105894155,Furniture Resource Centre Ltd,£887.06
Manchester City Council,Corporate Services,WPS Awards,04-Oct-23,5105894163,Furniture Resource Centre Ltd,£956.11
Manchester City Council,Corporate Services,WPS Awards,04-Oct-23,5105894054,Furniture Resource Centre Ltd,£996.73
Manchester City Council,Corporate Services,WPS Awards,04-Oct-23,5105894175,Furniture Resource Centre Ltd,"£1,061.05"
Manchester City Council,Chief Executives,I T Provision,04-Oct-23,5105893949,WPC Software Limited,"£20,027.98"
Manchester City Council,Manchester Leisure,Payments to Sub-Contractors,04-Oct-23,5105893906,Idverde Limited,"-£3,985.10"
Manchester City Council,Adult Social Care,Rents,04-Oct-23,5105894080,Houses4Homes 4U Ltd,"£9,026.00"
Manchester City Council,Manchester Leisure,Special Event,04-Oct-23,5105894002,Manchester Youth Zone - East,£600.00
Manchester City Council,Adult Social Care,External repairs and maintenance for buildings,04-Oct-23,5105893849,T F Jones Property Services Ltd,£591.80
Manchester City Council,Childrens & Education Services,Payments for services,04-Oct-23,5105894041,Staff Resources Ltd,"£2,448.00"
Manchester City Council,Adult Social Care,Rents,04-Oct-23,5105893915,M&D Residential Ltd,"£14,914.00"
Manchester City Council,Manchester Leisure,Construction Works,04-Oct-23,5105893967,WSP UK Limited,"£10,570.00"
Manchester City Council,Manchester Leisure,Other Allowances,04-Oct-23,1908235015,Tusker Direct,"£3,695.00"
Manchester City Council,Manchester Leisure,Special Event,04-Oct-23,5105893943,Acorn Construction (Yorkshire) Ltd,"£14,980.00"
Manchester City Council,Adult Social Care,Bed & Breakfast Acc,04-Oct-23,5105893916,247Hotel.Com,£857.50
Manchester City Council,Manchester Leisure,Professional fees,04-Oct-23,1908229519,Pinnacle Building and Surveying,£550.00
Manchester City Council,Manchester Leisure,Grant and subscriptions awarded,04-Oct-23,5105894101,Chorlton Community Land Trust,£500.00
Manchester City Council,Adult Social Care,Third party payments to Health Authority,04-Oct-23,5105894042,NHS GREATER MANCHESTER ICB,"-£5,036.17"
Manchester City Council,Adult Social Care,Third party payments to Health Authority,04-Oct-23,5105893993,NHS GREATER MANCHESTER ICB,"£5,036.17"
Manchester City Council,Childrens & Education Services,Payments for services,04-Oct-23,5105894089,Birchwood Childrens Services Ltd,"£3,613.87"
Manchester City Council,Childrens & Education Services,Payments for services,04-Oct-23,5105894089,Birchwood Childrens Services Ltd,"£23,291.39"
Manchester City Council,Adult Social Care,Furniture,04-Oct-23,5105894125,Rtech Group Limited,"£10,600.00"
Manchester City Council,Childrens & Education Services,Grant and subscriptions awarded,04-Oct-23,5105893813,The Movez Movement,"£2,697.50"
Manchester City Council,Manchester Leisure,Catering,04-Oct-23,5105893958,The Pavilion,£840.00
Manchester City Council,Manchester Leisure,Goods purchased for resale in Council outlets,04-Oct-23,1908232584,Huddersfield Screenprinting Company,"£2,087.90"
Manchester City Council,Manchester Leisure,Grant and subscriptions awarded,04-Oct-23,1908227719,Heathfield User Group Committee,£500.00
Manchester City Council,Childrens & Education Services,Professional fees,04-Oct-23,1908215902,Debdale Outdoor Centre,£540.00
Manchester City Council,Childrens & Education Services,Professional fees,04-Oct-23,1908231469,The Cohesion and Integration Networ,"£4,160.00"
Manchester City Council,Adult Social Care,Rents,04-Oct-23,1908239419,Let Me Manchester Limited,£950.00
Manchester City Council,Adult Social Care,Rents,04-Oct-23,1908239413,Let Me Manchester Limited,"£1,895.00"
Manchester City Council,Adult Social Care,Rents,04-Oct-23,1908239422,Reeds Rains,£750.00
Manchester City Council,Adult Social Care,Rents,04-Oct-23,1908239422,Reeds Rains,£900.00
Manchester City Council,Manchester Leisure,Special Event,04-Oct-23,1700159331,The Tour of Britain,"-£200,000.00"
Manchester City Council,Adult Social Care,Bed & Breakfast Acc,04-Oct-23,5105893980,Redacted Personal Information,"£11,350.00"
Manchester City Council,Manchester Leisure,Professional fees,04-Oct-23,5105894004,Redacted Personal Information,£548.23
Manchester City Council,Manchester Leisure,Building Materials for direct delivery,04-Oct-23,5105894178,Redacted Personal Information,"£3,950.00"
Manchester City Council,Housing General Fund,Building Works,04-Oct-23,1908232242,Redacted Personal Information,"£11,109.93"
Manchester City Council,Housing General Fund,Building Works,04-Oct-23,1908231460,Redacted Personal Information,"£19,166.87"
Manchester City Council,Manchester Leisure,Professional fees,04-Oct-23,1908234023,Redacted Personal Information,"£1,592.50"
Manchester City Council,Manchester Leisure,Professional fees,04-Oct-23,1908234020,Redacted Personal Information,"£1,057.50"
Manchester City Council,Manchester Leisure,Responsive Repairs Work,04-Oct-23,1908220007,Redacted Personal Information,£550.00
Manchester City Council,Manchester Leisure,Responsive Repairs Work,04-Oct-23,1908227749,Redacted Personal Information,£500.00
Manchester City Council,Manchester Leisure,Responsive Repairs Work,04-Oct-23,1908231461,Redacted Personal Information,£750.00
Manchester City Council,Manchester Leisure,Responsive Repairs Work,04-Oct-23,1908227747,Redacted Personal Information,£500.00
Manchester City Council,Manchester Leisure,Responsive Repairs Work,04-Oct-23,1908227744,Redacted Personal Information,£750.00
Manchester City Council,Housing Revenue Account,Works and associated costs for Land and Buildings,04-Oct-23,1908239423,Redacted Personal Information,"£339,250.00"
Manchester City Council,Adult Social Care,Rents,04-Oct-23,1908239421,Redacted Personal Information,"£1,038.00"
Manchester City Council,Corporate Services,Postage,05-Oct-23,5105893938,Royal Mail Group Plc,"£7,374.13"
Manchester City Council,Adult Social Care,Personal needs of client,05-Oct-23,5105893521,Tunstall Healthcare (UK) Ltd,"£7,288.75"
Manchester City Council,Manchester Leisure,Removal and Storage of Furniture,05-Oct-23,5105894138,BCL,£741.86
Manchester City Council,Highways Services,Purchase of stores for re-distribution,05-Oct-23,5105893948,Instarmac Group Ltd,"£2,200.80"
Manchester City Council,Childrens & Education Services,Electricity,05-Oct-23,1700159553,Scottish & Southern Energy Plc,"-£5,574.98"
Manchester City Council,Childrens & Education Services,Electricity,05-Oct-23,1700159554,Scottish & Southern Energy Plc,"-£5,574.98"
Manchester City Council,Childrens & Education Services,Electricity,05-Oct-23,1700159552,Scottish & Southern Energy Plc,"-£5,573.27"
Manchester City Council,Childrens & Education Services,Electricity,05-Oct-23,1700159557,Scottish & Southern Energy Plc,"-£3,605.80"
Manchester City Council,Manchester Leisure,Electricity,05-Oct-23,1700159494,Scottish & Southern Energy Plc,"-£2,257.61"
Manchester City Council,Manchester Leisure,Electricity,05-Oct-23,1700159490,Scottish & Southern Energy Plc,"-£1,701.27"
Manchester City Council,Manchester Leisure,Electricity,05-Oct-23,1700159491,Scottish & Southern Energy Plc,"-£1,572.84"
Manchester City Council,Manchester Leisure,Electricity,05-Oct-23,1700159492,Scottish & Southern Energy Plc,"-£1,380.70"
Manchester City Council,Regeneration Finance,Electricity,05-Oct-23,1700159581,Scottish & Southern Energy Plc,"-£1,274.74"
Manchester City Council,Regeneration Finance,Electricity,05-Oct-23,1700159580,Scottish & Southern Energy Plc,"-£1,226.07"
Manchester City Council,Manchester Leisure,Electricity,05-Oct-23,1700159493,Scottish & Southern Energy Plc,"-£1,144.01"
Manchester City Council,Childrens & Education Services,Electricity,05-Oct-23,1700159583,Scottish & Southern Energy Plc,"-£1,139.00"
Manchester City Council,Manchester Leisure,Electricity,05-Oct-23,1700159495,Scottish & Southern Energy Plc,"-£1,074.34"
Manchester City Council,Regeneration Finance,Electricity,05-Oct-23,1700159579,Scottish & Southern Energy Plc,-£968.64
Manchester City Council,Regeneration Finance,Electricity,05-Oct-23,1700159582,Scottish & Southern Energy Plc,-£935.84
Manchester City Council,Adult Social Care,Electricity,05-Oct-23,1700159609,Scottish & Southern Energy Plc,-£841.73
Manchester City Council,Manchester Leisure,Electricity,05-Oct-23,1700159534,Scottish & Southern Energy Plc,-£682.71
Manchester City Council,Regeneration Finance,Electricity,05-Oct-23,1700159577,Scottish & Southern Energy Plc,-£541.01
Manchester City Council,Childrens & Education Services,Electricity,05-Oct-23,1700159516,Scottish & Southern Energy Plc,-£535.20
Manchester City Council,Manchester Leisure,Electricity,05-Oct-23,1700159487,Scottish & Southern Energy Plc,-£534.84
Manchester City Council,Childrens & Education Services,Electricity,05-Oct-23,1700159517,Scottish & Southern Energy Plc,-£514.24
Manchester City Council,Regeneration Finance,Electricity,05-Oct-23,1700159610,Scottish & Southern Energy Plc,-£509.71
Manchester City Council,Manchester Leisure,Electricity,05-Oct-23,1700159496,Scottish & Southern Energy Plc,-£507.51
Manchester City Council,Manchester Leisure,Electricity,05-Oct-23,1700159497,Scottish & Southern Energy Plc,-£506.83
Manchester City Council,Manchester Leisure,Electricity,05-Oct-23,1908240751,Scottish & Southern Energy Plc,£500.04
Manchester City Council,Regeneration Finance,Electricity,05-Oct-23,1908241041,Scottish & Southern Energy Plc,£500.11
Manchester City Council,Hospitality + Trading Services,Electricity,05-Oct-23,1908240909,Scottish & Southern Energy Plc,£502.66
Manchester City Council,Hospitality + Trading Services,Electricity,05-Oct-23,1908241139,Scottish & Southern Energy Plc,£504.57
Manchester City Council,Regeneration Finance,Electricity,05-Oct-23,1908241158,Scottish & Southern Energy Plc,£506.29
Manchester City Council,Childrens & Education Services,Electricity,05-Oct-23,1908241162,Scottish & Southern Energy Plc,£506.45
Manchester City Council,Regeneration Finance,Electricity,05-Oct-23,1908241392,Scottish & Southern Energy Plc,£509.71
Manchester City Council,Childrens & Education Services,Electricity,05-Oct-23,1908241022,Scottish & Southern Energy Plc,£513.83
Manchester City Council,Adult Social Care,Electricity,05-Oct-23,1908241355,Scottish & Southern Energy Plc,£514.42
Manchester City Council,Regeneration Finance,Electricity,05-Oct-23,1908240833,Scottish & Southern Energy Plc,£519.93
Manchester City Council,Highways Services,Electricity,05-Oct-23,1908241296,Scottish & Southern Energy Plc,£520.42
Manchester City Council,Adult Social Care,Electricity,05-Oct-23,1908241345,Scottish & Southern Energy Plc,£531.81
Manchester City Council,Childrens & Education Services,Electricity,05-Oct-23,1908240837,Scottish & Southern Energy Plc,£541.07
Manchester City Council,Childrens & Education Services,Electricity,05-Oct-23,1908240836,Scottish & Southern Energy Plc,£541.46
Manchester City Council,Manchester Leisure,Electricity,05-Oct-23,1908240743,Scottish & Southern Energy Plc,£544.52
Manchester City Council,Manchester Leisure,Electricity,05-Oct-23,1908240692,Scottish & Southern Energy Plc,£545.00
Manchester City Council,Adult Social Care,Electricity,05-Oct-23,1908241344,Scottish & Southern Energy Plc,£550.10
Manchester City Council,Manchester Leisure,Electricity,05-Oct-23,1908240740,Scottish & Southern Energy Plc,£556.73
Manchester City Council,Manchester Leisure,Electricity,05-Oct-23,1908240625,Scottish & Southern Energy Plc,£557.22
Manchester City Council,Manchester Leisure,Electricity,05-Oct-23,1908241306,Scottish & Southern Energy Plc,£558.57
Manchester City Council,Manchester Leisure,Electricity,05-Oct-23,1908241305,Scottish & Southern Energy Plc,£564.30
Manchester City Council,Regeneration Finance,Electricity,05-Oct-23,1908241148,Scottish & Southern Energy Plc,£570.37
Manchester City Council,Hospitality + Trading Services,Electricity,05-Oct-23,1908241197,Scottish & Southern Energy Plc,£573.91
Manchester City Council,Highways Services,Electricity,05-Oct-23,1908241063,Scottish & Southern Energy Plc,£575.63
Manchester City Council,Manchester Leisure,Electricity,05-Oct-23,1908240682,Scottish & Southern Energy Plc,£578.73
Manchester City Council,Adult Social Care,Electricity,05-Oct-23,1908241260,Scottish & Southern Energy Plc,£582.19
Manchester City Council,Manchester Leisure,Electricity,05-Oct-23,1908240699,Scottish & Southern Energy Plc,£586.55
Manchester City Council,Regeneration Finance,Electricity,05-Oct-23,1908241147,Scottish & Southern Energy Plc,£589.74
Manchester City Council,Childrens & Education Services,Electricity,05-Oct-23,1908241017,Scottish & Southern Energy Plc,£590.16
Manchester City Council,Regeneration Finance,Electricity,05-Oct-23,1908240985,Scottish & Southern Energy Plc,£593.70
Manchester City Council,Childrens & Education Services,Electricity,05-Oct-23,1908241074,Scottish & Southern Energy Plc,£596.49
Manchester City Council,Regeneration Finance,Electricity,05-Oct-23,1908241154,Scottish & Southern Energy Plc,£601.51
Manchester City Council,Regeneration Finance,Electricity,05-Oct-23,1908241034,Scottish & Southern Energy Plc,£601.78
Manchester City Council,Childrens & Education Services,Electricity,05-Oct-23,1908241020,Scottish & Southern Energy Plc,£603.31
Manchester City Council,Regeneration Finance,Electricity,05-Oct-23,1908240897,Scottish & Southern Energy Plc,£604.02
Manchester City Council,Regeneration Finance,Electricity,05-Oct-23,1908241033,Scottish & Southern Energy Plc,£604.19
Manchester City Council,Childrens & Education Services,Electricity,05-Oct-23,1908241023,Scottish & Southern Energy Plc,£607.01
Manchester City Council,Manchester Leisure,Electricity,05-Oct-23,1908240633,Scottish & Southern Energy Plc,£610.01
Manchester City Council,Manchester Leisure,Electricity,05-Oct-23,1908240713,Scottish & Southern Energy Plc,£610.01
Manchester City Council,Manchester Leisure,Electricity,05-Oct-23,1908240736,Scottish & Southern Energy Plc,£610.01
Manchester City Council,Manchester Leisure,Electricity,05-Oct-23,1908240745,Scottish & Southern Energy Plc,£610.01
Manchester City Council,Manchester Leisure,Electricity,05-Oct-23,1908240809,Scottish & Southern Energy Plc,£610.01
Manchester City Council,Adult Social Care,Electricity,05-Oct-23,1908240803,Scottish & Southern Energy Plc,£610.01
Manchester City Council,Adult Social Care,Electricity,05-Oct-23,1908241259,Scottish & Southern Energy Plc,£612.98
Manchester City Council,Chief Executives,Electricity,05-Oct-23,1908240887,Scottish & Southern Energy Plc,£615.65
Manchester City Council,Hospitality + Trading Services,Electricity,05-Oct-23,1908241196,Scottish & Southern Energy Plc,£616.68
Manchester City Council,Childrens & Education Services,Electricity,05-Oct-23,1908241019,Scottish & Southern Energy Plc,£618.71
Manchester City Council,Manchester Leisure,Electricity,05-Oct-23,1908240651,Scottish & Southern Energy Plc,£628.58
Manchester City Council,Manchester Leisure,Electricity,05-Oct-23,1908240913,Scottish & Southern Energy Plc,£629.60
Manchester City Council,Regeneration Finance,Electricity,05-Oct-23,1908241301,Scottish & Southern Energy Plc,£630.51
Manchester City Council,Regeneration Finance,Electricity,05-Oct-23,1908240898,Scottish & Southern Energy Plc,£638.43
Manchester City Council,Regeneration Finance,Electricity,05-Oct-23,1908240935,Scottish & Southern Energy Plc,£641.86
Manchester City Council,Manchester Leisure,Electricity,05-Oct-23,1908240724,Scottish & Southern Energy Plc,£642.27
Manchester City Council,Adult Social Care,Electricity,05-Oct-23,1908241010,Scottish & Southern Energy Plc,£645.19
Manchester City Council,Highways Services,Electricity,05-Oct-23,1908240891,Scottish & Southern Energy Plc,£650.82
Manchester City Council,Regeneration Finance,Electricity,05-Oct-23,1908240936,Scottish & Southern Energy Plc,£651.73
Manchester City Council,Adult Social Care,Electricity,05-Oct-23,1908240645,Scottish & Southern Energy Plc,£651.82
Manchester City Council,Highways Services,Electricity,05-Oct-23,1908241064,Scottish & Southern Energy Plc,£651.93
Manchester City Council,Manchester Leisure,Electricity,05-Oct-23,1908240730,Scottish & Southern Energy Plc,£657.91
Manchester City Council,Adult Social Care,Electricity,05-Oct-23,1908241009,Scottish & Southern Energy Plc,£658.77
Manchester City Council,Childrens & Education Services,Electricity,05-Oct-23,1908241021,Scottish & Southern Energy Plc,£665.70
Manchester City Council,Adult Social Care,Electricity,05-Oct-23,1908240851,Scottish & Southern Energy Plc,£666.72
Manchester City Council,Regeneration Finance,Electricity,05-Oct-23,1908241302,Scottish & Southern Energy Plc,£669.74
Manchester City Council,Childrens & Education Services,Electricity,05-Oct-23,1908240826,Scottish & Southern Energy Plc,£670.10
Manchester City Council,Highways Services,Electricity,05-Oct-23,1908240890,Scottish & Southern Energy Plc,£678.63
Manchester City Council,Manchester Leisure,Electricity,05-Oct-23,1908240955,Scottish & Southern Energy Plc,£682.71
Manchester City Council,Childrens & Education Services,Electricity,05-Oct-23,1908241075,Scottish & Southern Energy Plc,£685.74
Manchester City Council,Adult Social Care,Electricity,05-Oct-23,1908240864,Scottish & Southern Energy Plc,£693.29
Manchester City Council,Manchester Leisure,Electricity,05-Oct-23,1908240656,Scottish & Southern Energy Plc,£696.03
Manchester City Council,Childrens & Education Services,Electricity,05-Oct-23,1908241016,Scottish & Southern Energy Plc,£696.71
Manchester City Council,Regeneration Finance,Electricity,05-Oct-23,1908241385,Scottish & Southern Energy Plc,£698.99
Manchester City Council,Childrens & Education Services,Electricity,05-Oct-23,1908240876,Scottish & Southern Energy Plc,£703.97
Manchester City Council,Manchester Leisure,Electricity,05-Oct-23,1908240783,Scottish & Southern Energy Plc,£714.11
Manchester City Council,Childrens & Education Services,Electricity,05-Oct-23,1908241323,Scottish & Southern Energy Plc,£717.29
Manchester City Council,Childrens & Education Services,Electricity,05-Oct-23,1908240827,Scottish & Southern Energy Plc,£722.01
Manchester City Council,Childrens & Education Services,Electricity,05-Oct-23,1908241324,Scottish & Southern Energy Plc,£722.57
Manchester City Council,Highways Services,Electricity,05-Oct-23,1908241256,Scottish & Southern Energy Plc,£726.58
Manchester City Council,Adult Social Care,Electricity,05-Oct-23,1908240865,Scottish & Southern Energy Plc,£739.77
Manchester City Council,Adult Social Care,Electricity,05-Oct-23,1908240643,Scottish & Southern Energy Plc,£747.22
Manchester City Council,Adult Social Care,Electricity,05-Oct-23,1908240644,Scottish & Southern Energy Plc,£747.97
Manchester City Council,Adult Social Care,Electricity,05-Oct-23,1908241177,Scottish & Southern Energy Plc,£762.32
Manchester City Council,Manchester Leisure,Electricity,05-Oct-23,1908241159,Scottish & Southern Energy Plc,£764.95
Manchester City Council,Housing Revenue Account,Electricity,05-Oct-23,1908241078,Scottish & Southern Energy Plc,£769.07
Manchester City Council,Adult Social Care,Electricity,05-Oct-23,1908240807,Scottish & Southern Energy Plc,£776.19
Manchester City Council,Adult Social Care,Electricity,05-Oct-23,1908241059,Scottish & Southern Energy Plc,£776.68
Manchester City Council,Highways Services,Electricity,05-Oct-23,1908241257,Scottish & Southern Energy Plc,£776.84
Manchester City Council,Adult Social Care,Electricity,05-Oct-23,1908241112,Scottish & Southern Energy Plc,£781.73
Manchester City Council,Adult Social Care,Electricity,05-Oct-23,1908240806,Scottish & Southern Energy Plc,£788.22
Manchester City Council,Manchester Leisure,Electricity,05-Oct-23,1908240953,Scottish & Southern Energy Plc,£788.87
Manchester City Council,Manchester Leisure,Electricity,05-Oct-23,1908241024,Scottish & Southern Energy Plc,£799.08
Manchester City Council,Manchester Leisure,Electricity,05-Oct-23,1908240954,Scottish & Southern Energy Plc,£801.44
Manchester City Council,Adult Social Care,Electricity,05-Oct-23,1908240846,Scottish & Southern Energy Plc,£804.46
Manchester City Council,Adult Social Care,Electricity,05-Oct-23,1908241113,Scottish & Southern Energy Plc,£807.03
Manchester City Council,Adult Social Care,Electricity,05-Oct-23,1908240845,Scottish & Southern Energy Plc,£810.90
Manchester City Council,Regeneration Finance,Electricity,05-Oct-23,1908241104,Scottish & Southern Energy Plc,£815.85
Manchester City Council,Adult Social Care,Electricity,05-Oct-23,1908241176,Scottish & Southern Energy Plc,£819.23
Manchester City Council,Adult Social Care,Electricity,05-Oct-23,1908241354,Scottish & Southern Energy Plc,£841.78
Manchester City Council,Highways Services,Electricity,05-Oct-23,1908241247,Scottish & Southern Energy Plc,£847.76
Manchester City Council,Adult Social Care,Electricity,05-Oct-23,1908240729,Scottish & Southern Energy Plc,£852.31
Manchester City Council,Manchester Leisure,Electricity,05-Oct-23,1908241025,Scottish & Southern Energy Plc,£856.52
Manchester City Council,Manchester Leisure,Electricity,05-Oct-23,1908241002,Scottish & Southern Energy Plc,£858.54
Manchester City Council,Manchester Leisure,Electricity,05-Oct-23,1908241003,Scottish & Southern Energy Plc,£861.56
Manchester City Council,Highways Services,Electricity,05-Oct-23,1908241246,Scottish & Southern Energy Plc,£870.35
Manchester City Council,Adult Social Care,Electricity,05-Oct-23,1908240728,Scottish & Southern Energy Plc,£875.49
Manchester City Council,Manchester Leisure,Electricity,05-Oct-23,1908240977,Scottish & Southern Energy Plc,£903.76
Manchester City Council,Regeneration Finance,Electricity,05-Oct-23,1908241320,Scottish & Southern Energy Plc,£904.52
Manchester City Council,Regeneration Finance,Electricity,05-Oct-23,1908241321,Scottish & Southern Energy Plc,£915.84
Manchester City Council,Adult Social Care,Electricity,05-Oct-23,1908240872,Scottish & Southern Energy Plc,£918.20
Manchester City Council,Adult Social Care,Electricity,05-Oct-23,1908240861,Scottish & Southern Energy Plc,£927.39
Manchester City Council,Adult Social Care,Electricity,05-Oct-23,1908240860,Scottish & Southern Energy Plc,£930.74
Manchester City Council,Adult Social Care,Electricity,05-Oct-23,1908240968,Scottish & Southern Energy Plc,£950.75
Manchester City Council,Adult Social Care,Electricity,05-Oct-23,1908240967,Scottish & Southern Energy Plc,£964.99
Manchester City Council,Regeneration Finance,Electricity,05-Oct-23,1908241319,Scottish & Southern Energy Plc,£972.12
Manchester City Council,Regeneration Finance,Electricity,05-Oct-23,1908241269,Scottish & Southern Energy Plc,£978.09
Manchester City Council,Manchester Leisure,Electricity,05-Oct-23,1908240658,Scottish & Southern Energy Plc,£979.02
Manchester City Council,Adult Social Care,Electricity,05-Oct-23,1908241307,Scottish & Southern Energy Plc,£980.93
Manchester City Council,Manchester Leisure,Electricity,05-Oct-23,1908240857,Scottish & Southern Energy Plc,£990.82
Manchester City Council,Adult Social Care,Electricity,05-Oct-23,1908240873,Scottish & Southern Energy Plc,£991.49
Manchester City Council,Adult Social Care,Electricity,05-Oct-23,1908241308,Scottish & Southern Energy Plc,"£1,009.65"
Manchester City Council,Childrens & Education Services,Electricity,05-Oct-23,1908241084,Scottish & Southern Energy Plc,"£1,009.73"
Manchester City Council,Adult Social Care,Electricity,05-Oct-23,1908240796,Scottish & Southern Energy Plc,"£1,014.57"
Manchester City Council,Childrens & Education Services,Electricity,05-Oct-23,1908240834,Scottish & Southern Energy Plc,"£1,030.86"
Manchester City Council,Regeneration Finance,Electricity,05-Oct-23,1908241060,Scottish & Southern Energy Plc,"£1,031.50"
Manchester City Council,Adult Social Care,Electricity,05-Oct-23,1908240797,Scottish & Southern Energy Plc,"£1,031.73"
Manchester City Council,Regeneration Finance,Electricity,05-Oct-23,1908241061,Scottish & Southern Energy Plc,"£1,039.34"
Manchester City Council,Manchester Leisure,Electricity,05-Oct-23,1908241303,Scottish & Southern Energy Plc,"£1,070.93"
Manchester City Council,Childrens & Education Services,Electricity,05-Oct-23,1908241085,Scottish & Southern Energy Plc,"£1,074.14"
Manchester City Council,Adult Social Care,Electricity,05-Oct-23,1908241109,Scottish & Southern Energy Plc,"£1,101.81"
Manchester City Council,Adult Social Care,Electricity,05-Oct-23,1908240630,Scottish & Southern Energy Plc,"£1,107.35"
Manchester City Council,Manchester Leisure,Electricity,05-Oct-23,1908240978,Scottish & Southern Energy Plc,"£1,118.97"
Manchester City Council,Manchester Leisure,Electricity,05-Oct-23,1908240732,Scottish & Southern Energy Plc,"£1,129.56"
Manchester City Council,Regeneration Finance,Electricity,05-Oct-23,1908241318,Scottish & Southern Energy Plc,"£1,132.95"
Manchester City Council,Regeneration Finance,Electricity,05-Oct-23,1908240979,Scottish & Southern Energy Plc,"£1,158.44"
Manchester City Council,Manchester Leisure,Electricity,05-Oct-23,1908241054,Scottish & Southern Energy Plc,"£1,189.39"
Manchester City Council,Adult Social Care,Electricity,05-Oct-23,1908241282,Scottish & Southern Energy Plc,"£1,196.16"
Manchester City Council,Adult Social Care,Electricity,05-Oct-23,1908240850,Scottish & Southern Energy Plc,"£1,202.57"
Manchester City Council,Manchester Leisure,Electricity,05-Oct-23,1908240908,Scottish & Southern Energy Plc,"£1,208.57"
Manchester City Council,Manchester Leisure,Electricity,05-Oct-23,1908241079,Scottish & Southern Energy Plc,"£1,211.79"
Manchester City Council,Regeneration Finance,Electricity,05-Oct-23,1908241140,Scottish & Southern Energy Plc,"£1,221.99"
Manchester City Council,Manchester Leisure,Electricity,05-Oct-23,1908240841,Scottish & Southern Energy Plc,"£1,238.84"
Manchester City Council,Manchester Leisure,Electricity,05-Oct-23,1908241055,Scottish & Southern Energy Plc,"£1,240.34"
Manchester City Council,Adult Social Care,Electricity,05-Oct-23,1908240849,Scottish & Southern Energy Plc,"£1,242.42"
Manchester City Council,Manchester Leisure,Electricity,05-Oct-23,1908240842,Scottish & Southern Energy Plc,"£1,260.68"
Manchester City Council,Manchester Leisure,Electricity,05-Oct-23,1908240907,Scottish & Southern Energy Plc,"£1,288.96"
Manchester City Council,Adult Social Care,Electricity,05-Oct-23,1908240629,Scottish & Southern Energy Plc,"£1,301.53"
Manchester City Council,Regeneration Finance,Electricity,05-Oct-23,1908241173,Scottish & Southern Energy Plc,"£1,306.77"
Manchester City Council,Regeneration Finance,Electricity,05-Oct-23,1908241172,Scottish & Southern Energy Plc,"£1,327.26"
Manchester City Council,Regeneration Finance,Electricity,05-Oct-23,1908241029,Scottish & Southern Energy Plc,"£1,339.12"
Manchester City Council,Adult Social Care,Electricity,05-Oct-23,1908241108,Scottish & Southern Energy Plc,"£1,344.29"
Manchester City Council,Manchester Leisure,Electricity,05-Oct-23,1908240840,Scottish & Southern Energy Plc,"£1,359.90"
Manchester City Council,Regeneration Finance,Electricity,05-Oct-23,1908241030,Scottish & Southern Energy Plc,"£1,365.02"
Manchester City Council,Manchester Leisure,Electricity,05-Oct-23,1908241080,Scottish & Southern Energy Plc,"£1,373.62"
Manchester City Council,Regeneration Finance,Electricity,05-Oct-23,1908240983,Scottish & Southern Energy Plc,"£1,393.10"
Manchester City Council,Regeneration Finance,Electricity,05-Oct-23,1908241141,Scottish & Southern Energy Plc,"£1,394.64"
Manchester City Council,Highways Services,Electricity,05-Oct-23,1908241248,Scottish & Southern Energy Plc,"£1,401.77"
Manchester City Council,Regeneration Finance,Electricity,05-Oct-23,1908240984,Scottish & Southern Energy Plc,"£1,407.22"
Manchester City Council,Manchester Leisure,Electricity,05-Oct-23,1908240971,Scottish & Southern Energy Plc,"£1,417.69"
Manchester City Council,Manchester Leisure,Electricity,05-Oct-23,1908240839,Scottish & Southern Energy Plc,"£1,443.75"
Manchester City Council,Manchester Leisure,Electricity,05-Oct-23,1908240964,Scottish & Southern Energy Plc,"£1,470.35"
Manchester City Council,Regeneration Finance,Electricity,05-Oct-23,1908241317,Scottish & Southern Energy Plc,"£1,478.35"
Manchester City Council,Regeneration Finance,Electricity,05-Oct-23,1908241144,Scottish & Southern Energy Plc,"£1,484.90"
Manchester City Council,Regeneration Finance,Electricity,05-Oct-23,1908241145,Scottish & Southern Energy Plc,"£1,487.57"
Manchester City Council,Adult Social Care,Electricity,05-Oct-23,1908241315,Scottish & Southern Energy Plc,"£1,514.33"
Manchester City Council,Regeneration Finance,Electricity,05-Oct-23,1908241105,Scottish & Southern Energy Plc,"£1,516.90"
Manchester City Council,Regeneration Finance,Electricity,05-Oct-23,1908241111,Scottish & Southern Energy Plc,"£1,528.01"
Manchester City Council,Manchester Leisure,Electricity,05-Oct-23,1908241171,Scottish & Southern Energy Plc,"£1,532.64"
Manchester City Council,Manchester Leisure,Electricity,05-Oct-23,1908241170,Scottish & Southern Energy Plc,"£1,572.51"
Manchester City Council,Regeneration Finance,Electricity,05-Oct-23,1908240960,Scottish & Southern Energy Plc,"£1,574.99"
Manchester City Council,Regeneration Finance,Electricity,05-Oct-23,1908241110,Scottish & Southern Energy Plc,"£1,590.44"
Manchester City Council,Regeneration Finance,Electricity,05-Oct-23,1908240959,Scottish & Southern Energy Plc,"£1,602.36"
Manchester City Council,Regeneration Finance,Electricity,05-Oct-23,1908241106,Scottish & Southern Energy Plc,"£1,604.98"
Manchester City Council,Adult Social Care,Electricity,05-Oct-23,1908241314,Scottish & Southern Energy Plc,"£1,608.05"
Manchester City Council,Regeneration Finance,Electricity,05-Oct-23,1908240859,Scottish & Southern Energy Plc,"£1,626.86"
Manchester City Council,Regeneration Finance,Electricity,05-Oct-23,1908241100,Scottish & Southern Energy Plc,"£1,665.94"
Manchester City Council,Regeneration Finance,Electricity,05-Oct-23,1908241316,Scottish & Southern Energy Plc,"£1,668.87"
Manchester City Council,Regeneration Finance,Electricity,05-Oct-23,1908240858,Scottish & Southern Energy Plc,"£1,676.06"
Manchester City Council,Manchester Leisure,Electricity,05-Oct-23,1908240965,Scottish & Southern Energy Plc,"£1,695.71"
Manchester City Council,Manchester Leisure,Electricity,05-Oct-23,1908240829,Scottish & Southern Energy Plc,"£1,703.98"
Manchester City Council,Regeneration Finance,Electricity,05-Oct-23,1908241101,Scottish & Southern Energy Plc,"£1,730.19"
Manchester City Council,Regeneration Finance,Electricity,05-Oct-23,1908240619,Scottish & Southern Energy Plc,"£1,730.96"
Manchester City Council,Regeneration Finance,Electricity,05-Oct-23,1908241280,Scottish & Southern Energy Plc,"£1,734.27"
Manchester City Council,Regeneration Finance,Electricity,05-Oct-23,1908240889,Scottish & Southern Energy Plc,"£1,739.75"
Manchester City Council,Manchester Leisure,Electricity,05-Oct-23,1908240972,Scottish & Southern Energy Plc,"£1,742.82"
Manchester City Council,Adult Social Care,Electricity,05-Oct-23,1908240681,Scottish & Southern Energy Plc,"£1,775.47"
Manchester City Council,Highways Services,Electricity,05-Oct-23,1908241249,Scottish & Southern Energy Plc,"£1,784.05"
Manchester City Council,Manchester Leisure,Electricity,05-Oct-23,1908241099,Scottish & Southern Energy Plc,"£1,792.61"
Manchester City Council,Regeneration Finance,Electricity,05-Oct-23,1908240768,Scottish & Southern Energy Plc,"£1,793.98"
Manchester City Council,Manchester Leisure,Electricity,05-Oct-23,1908240828,Scottish & Southern Energy Plc,"£1,796.14"
Manchester City Council,Manchester Leisure,Electricity,05-Oct-23,1908240831,Scottish & Southern Energy Plc,"£1,798.15"
Manchester City Council,Regeneration Finance,Electricity,05-Oct-23,1908240769,Scottish & Southern Energy Plc,"£1,841.06"
Manchester City Council,Childrens & Education Services,Electricity,05-Oct-23,1908241011,Scottish & Southern Energy Plc,"£1,857.45"
Manchester City Council,Manchester Leisure,Electricity,05-Oct-23,1908241192,Scottish & Southern Energy Plc,"£1,872.56"
Manchester City Council,Manchester Leisure,Electricity,05-Oct-23,1908241191,Scottish & Southern Energy Plc,"£1,880.70"
Manchester City Council,Manchester Leisure,Electricity,05-Oct-23,1908241098,Scottish & Southern Energy Plc,"£1,896.20"
Manchester City Council,Regeneration Finance,Electricity,05-Oct-23,1908241107,Scottish & Southern Energy Plc,"£1,896.72"
Manchester City Council,Regeneration Finance,Electricity,05-Oct-23,1908241386,Scottish & Southern Energy Plc,"£1,941.82"
Manchester City Council,Regeneration Finance,Electricity,05-Oct-23,1908241281,Scottish & Southern Energy Plc,"£1,951.58"
Manchester City Council,Childrens & Education Services,Electricity,05-Oct-23,1908241086,Scottish & Southern Energy Plc,"£1,983.24"
Manchester City Council,Manchester Leisure,Electricity,05-Oct-23,1908240973,Scottish & Southern Energy Plc,"£1,999.43"
Manchester City Council,Manchester Leisure,Electricity,05-Oct-23,1908241175,Scottish & Southern Energy Plc,"£2,035.99"
Manchester City Council,Manchester Leisure,Electricity,05-Oct-23,1908240830,Scottish & Southern Energy Plc,"£2,073.52"
Manchester City Council,Manchester Leisure,Electricity,05-Oct-23,1908240885,Scottish & Southern Energy Plc,"£2,139.31"
Manchester City Council,Regeneration Finance,Electricity,05-Oct-23,1908241299,Scottish & Southern Energy Plc,"£2,189.48"
Manchester City Council,Regeneration Finance,Electricity,05-Oct-23,1908241387,Scottish & Southern Energy Plc,"£2,210.21"
Manchester City Council,Manchester Leisure,Electricity,05-Oct-23,1908241174,Scottish & Southern Energy Plc,"£2,238.57"
Manchester City Council,Manchester Leisure,Electricity,05-Oct-23,1908240886,Scottish & Southern Energy Plc,"£2,240.85"
Manchester City Council,Adult Social Care,Electricity,05-Oct-23,1908240966,Scottish & Southern Energy Plc,"£2,270.42"
Manchester City Council,Regeneration Finance,Electricity,05-Oct-23,1908241300,Scottish & Southern Energy Plc,"£2,305.28"
Manchester City Council,Regeneration Finance,Electricity,05-Oct-23,1908240895,Scottish & Southern Energy Plc,"£2,338.94"
Manchester City Council,Regeneration Finance,Electricity,05-Oct-23,1908240896,Scottish & Southern Energy Plc,"£2,408.07"
Manchester City Council,Manchester Leisure,Electricity,05-Oct-23,1908240974,Scottish & Southern Energy Plc,"£2,409.07"
Manchester City Council,Manchester Leisure,Electricity,05-Oct-23,1908240975,Scottish & Southern Energy Plc,"£2,432.56"
Manchester City Council,Regeneration Finance,Electricity,05-Oct-23,1908241028,Scottish & Southern Energy Plc,"£2,505.18"
Manchester City Council,Manchester Leisure,Electricity,05-Oct-23,1908240976,Scottish & Southern Energy Plc,"£2,688.77"
Manchester City Council,Regeneration Finance,Electricity,05-Oct-23,1908241383,Scottish & Southern Energy Plc,"£2,729.76"
Manchester City Council,Regeneration Finance,Electricity,05-Oct-23,1908241384,Scottish & Southern Energy Plc,"£2,737.21"
Manchester City Council,Manchester Leisure,Electricity,05-Oct-23,1908241168,Scottish & Southern Energy Plc,"£2,881.09"
Manchester City Council,Manchester Leisure,Electricity,05-Oct-23,1908241169,Scottish & Southern Energy Plc,"£2,920.96"
Manchester City Council,Regeneration Finance,Electricity,05-Oct-23,1908241032,Scottish & Southern Energy Plc,"£2,964.04"
Manchester City Council,Regeneration Finance,Electricity,05-Oct-23,1908241031,Scottish & Southern Energy Plc,"£2,992.52"
Manchester City Council,Childrens & Education Services,Electricity,05-Oct-23,1908241089,Scottish & Southern Energy Plc,"£3,053.35"
Manchester City Council,Childrens & Education Services,Electricity,05-Oct-23,1908241087,Scottish & Southern Energy Plc,"£3,054.28"
Manchester City Council,Childrens & Education Services,Electricity,05-Oct-23,1908241088,Scottish & Southern Energy Plc,"£3,054.28"
Manchester City Council,Regeneration Finance,Electricity,05-Oct-23,1908241073,Scottish & Southern Energy Plc,"£3,166.43"
Manchester City Council,Regeneration Finance,Electricity,05-Oct-23,1908241279,Scottish & Southern Energy Plc,"£4,389.31"
Manchester City Council,Regeneration Finance,Electricity,05-Oct-23,1908241278,Scottish & Southern Energy Plc,"£4,429.56"
Manchester City Council,Childrens & Education Services,Electricity,05-Oct-23,1908240969,Scottish & Southern Energy Plc,"£4,851.38"
Manchester City Council,Manchester Leisure,Electricity,05-Oct-23,1908240883,Scottish & Southern Energy Plc,"£9,123.11"
Manchester City Council,Regeneration Finance,Electricity,05-Oct-23,1908241274,Scottish & Southern Energy Plc,"£10,256.13"
Manchester City Council,Manchester Leisure,ClothsUniformLaundry,05-Oct-23,5105894311,Arco Group Ltd,£832.80
Manchester City Council,Adult Social Care,Day Care Payments,05-Oct-23,5105894346,Age Concern Manchester,"£10,000.00"
Manchester City Council,Adult Social Care,Day Care Payments,05-Oct-23,5105894343,Age Concern Manchester,"£10,520.49"
Manchester City Council,Adult Social Care,Day Care Payments,05-Oct-23,5105894345,Age Concern Manchester,"£14,165.43"
Manchester City Council,Housing Revenue Account,Council Dwelling Adaptations,05-Oct-23,5105894224,PPG Architectural Coatings UK Ltd,£692.28
Manchester City Council,Adult Social Care,Grant and subscriptions awarded,05-Oct-23,5105894204,Sanctuary Housing Association,"£22,304.01"
Manchester City Council,Adult Social Care,Grant and subscriptions awarded,05-Oct-23,5105894206,Sanctuary Housing Association,"£67,977.00"
Manchester City Council,Adult Social Care,Third party payments relating to Voluntary Organisations,05-Oct-23,5105894332,The Children'S Society Services Ltd,"£19,045.44"
Manchester City Council,Manchester Leisure,Payments to Sub-Contractors,05-Oct-23,5105894260,Rigby Taylor Ltd,£715.00
Manchester City Council,Manchester Leisure,Equipment,05-Oct-23,5105894222,Groundwork Landscapes Ltd,"£1,620.00"
Manchester City Council,Manchester Leisure,Payments to Sub-Contractors,05-Oct-23,5105894166,Arboricultural Services Treework,"£13,000.00"
Manchester City Council,Adult Social Care,Equipment,05-Oct-23,5105894331,Jenx Ltd,"£1,302.00"
Manchester City Council,Adult Social Care,"Consumable items eg Toilet rolls, soap etc",05-Oct-23,5105894286,All 4 Pets Limited,"£1,054.00"
Manchester City Council,Childrens & Education Services,Internal Repairs and Maintenance for buildings,05-Oct-23,5105894096,NU3PS,"-£1,172.60"
Manchester City Council,Childrens & Education Services,Internal Repairs and Maintenance for buildings,05-Oct-23,5105894133,NU3PS,£828.00
Manchester City Council,Adult Social Care,Carer Support Payments ,05-Oct-23,5105894182,Greater Manchester Mental Health,"£26,750.00"
Manchester City Council,Adult Social Care,Third party payments relating to Voluntary Organisations,05-Oct-23,5105894283,Carers UK,"£2,000.00"
Manchester City Council,Manchester Leisure,Hire of Equipment,05-Oct-23,5105894187,Redgate Holdings Ltd,£675.00
Manchester City Council,Hospitality + Trading Services,Funeral and coroner related services,05-Oct-23,5105894200,G E Robinson & Co Ltd,"£8,165.20"
Manchester City Council,Hospitality + Trading Services,Funeral and coroner related services,05-Oct-23,5105894201,G E Robinson & Co Ltd,"£10,392.66"
Manchester City Council,Regeneration Finance,External repairs and maintenance for buildings,05-Oct-23,5105893820,Skyreach Access Solutions Ltd,£630.00
Manchester City Council,Hospitality + Trading Services,Electricity,05-Oct-23,1700159482,Npower,"-£50,647.22"
Manchester City Council,Manchester Leisure,Electricity,05-Oct-23,1700159483,Npower,"-£10,770.91"
Manchester City Council,Regeneration Finance,Electricity,05-Oct-23,1908240573,Npower,£885.87
Manchester City Council,Childrens & Education Services,Electricity,05-Oct-23,1908240492,Npower,£887.62
Manchester City Council,Regeneration Finance,Electricity,05-Oct-23,1908240523,Npower,£924.28
Manchester City Council,Regeneration Finance,Electricity,05-Oct-23,1908240511,Npower,£989.86
Manchester City Council,Libraries and Theatres,Electricity,05-Oct-23,1908240505,Npower,"£1,066.64"
Manchester City Council,Regeneration Finance,Electricity,05-Oct-23,1908240572,Npower,"£1,180.57"
Manchester City Council,Regeneration Finance,Electricity,05-Oct-23,1908240555,Npower,"£1,213.27"
Manchester City Council,Manchester Leisure,Electricity,05-Oct-23,1908240500,Npower,"£1,288.23"
Manchester City Council,Hospitality + Trading Services,Electricity,05-Oct-23,1908240508,Npower,"£1,381.85"
Manchester City Council,Manchester Leisure,Electricity,05-Oct-23,1908240533,Npower,"£1,480.92"
Manchester City Council,Manchester Leisure,Electricity,05-Oct-23,1908240544,Npower,"£1,506.91"
Manchester City Council,Regeneration Finance,Electricity,05-Oct-23,1908240501,Npower,"£1,662.20"
Manchester City Council,Manchester Leisure,Electricity,05-Oct-23,1908240588,Npower,"£1,662.62"
Manchester City Council,Manchester Leisure,Electricity,05-Oct-23,1908240592,Npower,"£1,665.40"
Manchester City Council,Childrens & Education Services,Electricity,05-Oct-23,1908240499,Npower,"£1,767.24"
Manchester City Council,Childrens & Education Services,Electricity,05-Oct-23,1908240557,Npower,"£1,786.72"
Manchester City Council,Manchester Leisure,Electricity,05-Oct-23,1908240581,Npower,"£1,893.99"
Manchester City Council,Manchester Leisure,Electricity,05-Oct-23,1908240567,Npower,"£2,050.67"
Manchester City Council,Regeneration Finance,Electricity,05-Oct-23,1908240515,Npower,"£2,073.58"
Manchester City Council,Regeneration Finance,Electricity,05-Oct-23,1908240495,Npower,"£2,080.09"
Manchester City Council,Manchester Leisure,Electricity,05-Oct-23,1908240587,Npower,"£2,131.28"
Manchester City Council,Adult Social Care,Electricity,05-Oct-23,1908240570,Npower,"£2,256.42"
Manchester City Council,Regeneration Finance,Electricity,05-Oct-23,1908240531,Npower,"£2,268.02"
Manchester City Council,Manchester Leisure,Electricity,05-Oct-23,1908240580,Npower,"£2,289.01"
Manchester City Council,Manchester Leisure,Electricity,05-Oct-23,1908240590,Npower,"£2,339.41"
Manchester City Council,Manchester Leisure,Electricity,05-Oct-23,1908240506,Npower,"£2,359.71"
Manchester City Council,Highways Services,Electricity,05-Oct-23,1908240497,Npower,"£2,400.53"
Manchester City Council,Manchester Leisure,Electricity,05-Oct-23,1908240561,Npower,"£2,432.10"
Manchester City Council,Regeneration Finance,Electricity,05-Oct-23,1908240487,Npower,"£2,515.40"
Manchester City Council,Highways Services,Electricity,05-Oct-23,1908240566,Npower,"£2,516.50"
Manchester City Council,Regeneration Finance,Electricity,05-Oct-23,1908240503,Npower,"£2,568.31"
Manchester City Council,Housing Revenue Account,Electricity,05-Oct-23,1908240578,Npower,"£2,608.71"
Manchester City Council,Manchester Leisure,Electricity,05-Oct-23,1908240532,Npower,"£2,636.08"
Manchester City Council,Manchester Leisure,Electricity,05-Oct-23,1908240558,Npower,"£2,710.48"
Manchester City Council,Manchester Leisure,Electricity,05-Oct-23,1908240486,Npower,"£2,720.84"
Manchester City Council,Manchester Leisure,Electricity,05-Oct-23,1908240589,Npower,"£2,740.45"
Manchester City Council,Regeneration Finance,Electricity,05-Oct-23,1908240521,Npower,"£2,740.49"
Manchester City Council,Manchester Leisure,Electricity,05-Oct-23,1908240496,Npower,"£2,910.62"
Manchester City Council,Manchester Leisure,Electricity,05-Oct-23,1908240591,Npower,"£2,925.37"
Manchester City Council,Manchester Leisure,Electricity,05-Oct-23,1908240562,Npower,"£3,027.84"
Manchester City Council,Manchester Leisure,Electricity,05-Oct-23,1908240535,Npower,"£3,148.88"
Manchester City Council,Manchester Leisure,Electricity,05-Oct-23,1908240504,Npower,"£3,150.68"
Manchester City Council,Adult Social Care,Electricity,05-Oct-23,1908240554,Npower,"£3,172.95"
Manchester City Council,Adult Social Care,Electricity,05-Oct-23,1908240536,Npower,"£3,200.57"
Manchester City Council,Regeneration Finance,Electricity,05-Oct-23,1908240556,Npower,"£3,243.10"
Manchester City Council,Adult Social Care,Electricity,05-Oct-23,1908240593,Npower,"£3,276.82"
Manchester City Council,Manchester Leisure,Electricity,05-Oct-23,1908240534,Npower,"£3,451.41"
Manchester City Council,Adult Social Care,Electricity,05-Oct-23,1908240569,Npower,"£3,461.98"
Manchester City Council,Regeneration Finance,Electricity,05-Oct-23,1908240538,Npower,"£3,645.83"
Manchester City Council,Regeneration Finance,Electricity,05-Oct-23,1908240514,Npower,"£3,739.51"
Manchester City Council,Regeneration Finance,Electricity,05-Oct-23,1908240560,Npower,"£3,839.82"
Manchester City Council,Manchester Leisure,Electricity,05-Oct-23,1908240585,Npower,"£4,400.83"
Manchester City Council,Regeneration Finance,Electricity,05-Oct-23,1908240520,Npower,"£4,505.19"
Manchester City Council,Hospitality + Trading Services,Electricity,05-Oct-23,1908240571,Npower,"£4,585.43"
Manchester City Council,Regeneration Finance,Electricity,05-Oct-23,1908240528,Npower,"£5,147.74"
Manchester City Council,Highways Services,Electricity,05-Oct-23,1908240553,Npower,"£5,275.68"
Manchester City Council,Hospitality + Trading Services,Electricity,05-Oct-23,1908240494,Npower,"£5,341.64"
Manchester City Council,Regeneration Finance,Electricity,05-Oct-23,1908240537,Npower,"£5,507.11"
Manchester City Council,Hospitality + Trading Services,Electricity,05-Oct-23,1908240539,Npower,"£5,553.21"
Manchester City Council,Regeneration Finance,Electricity,05-Oct-23,1908240485,Npower,"£5,685.99"
Manchester City Council,Manchester Leisure,Electricity,05-Oct-23,1908240551,Npower,"£5,770.81"
Manchester City Council,Highways Services,Electricity,05-Oct-23,1908240552,Npower,"£5,815.26"
Manchester City Council,Regeneration Finance,Electricity,05-Oct-23,1908240516,Npower,"£5,816.11"
Manchester City Council,Manchester Leisure,Electricity,05-Oct-23,1908240542,Npower,"£6,131.58"
Manchester City Council,Manchester Leisure,Electricity,05-Oct-23,1908240543,Npower,"£7,202.82"
Manchester City Council,Regeneration Finance,Electricity,05-Oct-23,1908240522,Npower,"£7,719.00"
Manchester City Council,Manchester Leisure,Electricity,05-Oct-23,1908240565,Npower,"£7,760.28"
Manchester City Council,Regeneration Finance,Electricity,05-Oct-23,1908240530,Npower,"£8,277.50"
Manchester City Council,Regeneration Finance,Electricity,05-Oct-23,1908240527,Npower,"£8,543.72"
Manchester City Council,Highways Services,Electricity,05-Oct-23,1908240510,Npower,"£9,280.49"
Manchester City Council,Manchester Leisure,Electricity,05-Oct-23,1908240502,Npower,"£9,299.91"
Manchester City Council,Regeneration Finance,Electricity,05-Oct-23,1908240519,Npower,"£9,914.21"
Manchester City Council,Regeneration Finance,Electricity,05-Oct-23,1908240518,Npower,"£10,140.79"
Manchester City Council,Manchester Leisure,Electricity,05-Oct-23,1908240525,Npower,"£11,020.40"
Manchester City Council,Regeneration Finance,Electricity,05-Oct-23,1908240513,Npower,"£11,104.33"
Manchester City Council,Manchester Leisure,Electricity,05-Oct-23,1908240526,Npower,"£11,410.82"
Manchester City Council,Manchester Leisure,Electricity,05-Oct-23,1908240568,Npower,"£11,762.21"
Manchester City Council,Manchester Leisure,Electricity,05-Oct-23,1908240489,Npower,"£12,201.31"
Manchester City Council,Manchester Leisure,Electricity,05-Oct-23,1908240524,Npower,"£12,300.79"
Manchester City Council,Regeneration Finance,Electricity,05-Oct-23,1908240488,Npower,"£12,515.85"
Manchester City Council,Manchester Leisure,Electricity,05-Oct-23,1908240529,Npower,"£16,236.56"
Manchester City Council,Manchester Leisure,Electricity,05-Oct-23,1908240507,Npower,"£19,892.22"
Manchester City Council,Regeneration Finance,Electricity,05-Oct-23,1908240563,Npower,"£20,948.44"
Manchester City Council,Hospitality + Trading Services,Electricity,05-Oct-23,1908240512,Npower,"£21,280.50"
Manchester City Council,Manchester Leisure,Electricity,05-Oct-23,1908240545,Npower,"£22,087.00"
Manchester City Council,Manchester Leisure,Electricity,05-Oct-23,1908240549,Npower,"£22,136.85"
Manchester City Council,Regeneration Finance,Electricity,05-Oct-23,1908240509,Npower,"£22,836.31"
Manchester City Council,Regeneration Finance,Electricity,05-Oct-23,1908240564,Npower,"£26,153.78"
Manchester City Council,Hospitality + Trading Services,Electricity,05-Oct-23,1908240517,Npower,"£36,232.92"
Manchester City Council,Manchester Leisure,Electricity,05-Oct-23,1908240547,Npower,"£36,887.35"
Manchester City Council,Regeneration Finance,Electricity,05-Oct-23,1908240550,Npower,"£39,373.95"
Manchester City Council,Manchester Leisure,Electricity,05-Oct-23,1908240493,Npower,"£41,830.14"
Manchester City Council,Hospitality + Trading Services,Electricity,05-Oct-23,1908240491,Npower,"£50,647.22"
Manchester City Council,Regeneration Finance,Electricity,05-Oct-23,1908240559,Npower,"£50,867.82"
Manchester City Council,Hospitality + Trading Services,Electricity,05-Oct-23,1908240490,Npower,"£51,530.19"
Manchester City Council,Regeneration Finance,Electricity,05-Oct-23,1908240541,Npower,"£58,993.74"
Manchester City Council,Regeneration Finance,Electricity,05-Oct-23,1908240484,Npower,"£71,003.31"
Manchester City Council,Manchester Leisure,Electricity,05-Oct-23,1908240546,Npower,"£83,973.10"
Manchester City Council,Manchester Leisure,Electricity,05-Oct-23,1908240540,Npower,"£139,035.99"
Manchester City Council,Hospitality + Trading Services,Electricity,05-Oct-23,1908240548,Npower,"£141,451.75"
Manchester City Council,Chief Executives,Grant and subscriptions awarded,05-Oct-23,5105894299,Manchester Jewish Museum,"£5,797.35"
Manchester City Council,Chief Executives,Legal Fees,05-Oct-23,5105894262,Warwickshire County Council,"£19,984.32"
Manchester City Council,Childrens & Education Services,Licences Purchase,05-Oct-23,5105894292,Insight Direct (Uk) Ltd,£501.04
Manchester City Council,Adult Social Care,Licences Purchase,05-Oct-23,5105894205,Insight Direct (Uk) Ltd,£616.63
Manchester City Council,Regeneration Finance,Gas,05-Oct-23,1700159448,Corona Energy Ltd,"-£19,249.47"
Manchester City Council,Regeneration Finance,Gas,05-Oct-23,1700159451,Corona Energy Ltd,"-£19,063.63"
Manchester City Council,Regeneration Finance,Gas,05-Oct-23,1700159452,Corona Energy Ltd,"-£18,377.87"
Manchester City Council,Regeneration Finance,Gas,05-Oct-23,1700159450,Corona Energy Ltd,"-£13,148.30"
Manchester City Council,Regeneration Finance,Gas,05-Oct-23,1700159449,Corona Energy Ltd,"-£5,608.92"
Manchester City Council,Regeneration Finance,Gas,05-Oct-23,1700159408,Corona Energy Ltd,"-£2,977.03"
Manchester City Council,Hospitality + Trading Services,Gas,05-Oct-23,1700159427,Corona Energy Ltd,"-£2,875.99"
Manchester City Council,Manchester Leisure,Gas,05-Oct-23,1700159441,Corona Energy Ltd,"-£1,843.92"
Manchester City Council,Adult Social Care,Gas,05-Oct-23,1700159355,Corona Energy Ltd,"-£1,814.44"
Manchester City Council,Adult Social Care,Gas,05-Oct-23,1700159356,Corona Energy Ltd,"-£1,813.03"
Manchester City Council,Adult Social Care,Gas,05-Oct-23,1700159354,Corona Energy Ltd,"-£1,779.45"
Manchester City Council,Adult Social Care,Gas,05-Oct-23,1700159384,Corona Energy Ltd,"-£1,775.59"
Manchester City Council,Adult Social Care,Gas,05-Oct-23,1700159391,Corona Energy Ltd,"-£1,772.09"
Manchester City Council,Adult Social Care,Gas,05-Oct-23,1700159383,Corona Energy Ltd,"-£1,741.97"
Manchester City Council,Manchester Leisure,Gas,05-Oct-23,1700159443,Corona Energy Ltd,"-£1,739.95"
Manchester City Council,Adult Social Care,Gas,05-Oct-23,1700159371,Corona Energy Ltd,"-£1,406.83"
Manchester City Council,Adult Social Care,Gas,05-Oct-23,1700159353,Corona Energy Ltd,"-£1,303.47"
Manchester City Council,Adult Social Care,Gas,05-Oct-23,1700159388,Corona Energy Ltd,"-£1,274.16"
Manchester City Council,Adult Social Care,Gas,05-Oct-23,1700159351,Corona Energy Ltd,"-£1,237.49"
Manchester City Council,Adult Social Care,Gas,05-Oct-23,1700159386,Corona Energy Ltd,"-£1,213.09"
Manchester City Council,Manchester Leisure,Gas,05-Oct-23,1700159444,Corona Energy Ltd,"-£1,182.41"
Manchester City Council,Adult Social Care,Gas,05-Oct-23,1700159376,Corona Energy Ltd,"-£1,028.90"
Manchester City Council,Regeneration Finance,Gas,05-Oct-23,1700159373,Corona Energy Ltd,-£874.18
Manchester City Council,Regeneration Finance,Gas,05-Oct-23,1700159372,Corona Energy Ltd,-£865.16
Manchester City Council,Adult Social Care,Gas,05-Oct-23,1700159358,Corona Energy Ltd,-£844.21
Manchester City Council,Adult Social Care,Gas,05-Oct-23,1700159387,Corona Energy Ltd,-£822.73
Manchester City Council,Regeneration Finance,Gas,05-Oct-23,1700159469,Corona Energy Ltd,-£820.90
Manchester City Council,Regeneration Finance,Gas,05-Oct-23,1700159470,Corona Energy Ltd,-£811.00
Manchester City Council,Manchester Leisure,Gas,05-Oct-23,1700159442,Corona Energy Ltd,-£680.37
Manchester City Council,Childrens & Education Services,Gas,05-Oct-23,1700159404,Corona Energy Ltd,-£655.58
Manchester City Council,Adult Social Care,Gas,05-Oct-23,1700159368,Corona Energy Ltd,-£645.62
Manchester City Council,Regeneration Finance,Gas,05-Oct-23,1700159410,Corona Energy Ltd,-£630.06
Manchester City Council,Manchester Leisure,Gas,05-Oct-23,1700159445,Corona Energy Ltd,-£624.99
Manchester City Council,Adult Social Care,Gas,05-Oct-23,1700159359,Corona Energy Ltd,-£590.16
Manchester City Council,Adult Social Care,Gas,05-Oct-23,1700159394,Corona Energy Ltd,-£566.28
Manchester City Council,Regeneration Finance,Gas,05-Oct-23,1700159407,Corona Energy Ltd,-£557.47
Manchester City Council,Adult Social Care,Gas,05-Oct-23,1700159360,Corona Energy Ltd,-£556.93
Manchester City Council,Adult Social Care,Gas,05-Oct-23,1700159350,Corona Energy Ltd,-£536.12
Manchester City Council,Adult Social Care,Gas,05-Oct-23,1700159385,Corona Energy Ltd,-£524.27
Manchester City Council,Adult Social Care,Gas,05-Oct-23,1700159352,Corona Energy Ltd,-£512.32
Manchester City Council,Adult Social Care,Gas,05-Oct-23,1700159392,Corona Energy Ltd,-£501.14
Manchester City Council,Regeneration Finance,Gas,05-Oct-23,1908240304,Corona Energy Ltd,£502.87
Manchester City Council,Regeneration Finance,Gas,05-Oct-23,1908240322,Corona Energy Ltd,£506.20
Manchester City Council,Adult Social Care,Gas,05-Oct-23,1908240218,Corona Energy Ltd,£517.07
Manchester City Council,Childrens & Education Services,Gas,05-Oct-23,1908240374,Corona Energy Ltd,£529.85
Manchester City Council,Adult Social Care,Gas,05-Oct-23,1908240151,Corona Energy Ltd,£534.60
Manchester City Council,Adult Social Care,Gas,05-Oct-23,1908240152,Corona Energy Ltd,£540.75
Manchester City Council,Housing Revenue Account,Gas,05-Oct-23,1908240310,Corona Energy Ltd,£563.68
Manchester City Council,Adult Social Care,Gas,05-Oct-23,1908240475,Corona Energy Ltd,£575.47
Manchester City Council,Adult Social Care,Gas,05-Oct-23,1908240150,Corona Energy Ltd,£576.94
Manchester City Council,Adult Social Care,Gas,05-Oct-23,1908240226,Corona Energy Ltd,£583.16
Manchester City Council,Manchester Leisure,Gas,05-Oct-23,1908240453,Corona Energy Ltd,£587.62
Manchester City Council,Regeneration Finance,Gas,05-Oct-23,1908240397,Corona Energy Ltd,£602.05
Manchester City Council,Manchester Leisure,Gas,05-Oct-23,1908240375,Corona Energy Ltd,£603.32
Manchester City Council,Adult Social Care,Gas,05-Oct-23,1908240138,Corona Energy Ltd,£617.66
Manchester City Council,Regeneration Finance,Gas,05-Oct-23,1908240326,Corona Energy Ltd,£619.93
Manchester City Council,Manchester Leisure,Gas,05-Oct-23,1908240376,Corona Energy Ltd,£621.06
Manchester City Council,Adult Social Care,Gas,05-Oct-23,1908240170,Corona Energy Ltd,£621.76
Manchester City Council,Adult Social Care,Gas,05-Oct-23,1908240147,Corona Energy Ltd,£622.21
Manchester City Council,Manchester Leisure,Gas,05-Oct-23,1908240370,Corona Energy Ltd,£627.22
Manchester City Council,Regeneration Finance,Gas,05-Oct-23,1908240325,Corona Energy Ltd,£635.43
Manchester City Council,Childrens & Education Services,Gas,05-Oct-23,1908240241,Corona Energy Ltd,£639.81
Manchester City Council,Manchester Leisure,Gas,05-Oct-23,1908240466,Corona Energy Ltd,£643.38
Manchester City Council,Housing Revenue Account,Gas,05-Oct-23,1908240419,Corona Energy Ltd,£671.80
Manchester City Council,Adult Social Care,Gas,05-Oct-23,1908240148,Corona Energy Ltd,£672.26
Manchester City Council,Manchester Leisure,Gas,05-Oct-23,1908240198,Corona Energy Ltd,£689.85
Manchester City Council,Regeneration Finance,Gas,05-Oct-23,1908240319,Corona Energy Ltd,£715.11
Manchester City Council,Adult Social Care,Gas,05-Oct-23,1908240410,Corona Energy Ltd,£719.43
Manchester City Council,Adult Social Care,Gas,05-Oct-23,1908240140,Corona Energy Ltd,£727.08
Manchester City Council,Regeneration Finance,Gas,05-Oct-23,1908240317,Corona Energy Ltd,£727.81
Manchester City Council,Regeneration Finance,Gas,05-Oct-23,1908240395,Corona Energy Ltd,£731.27
Manchester City Council,Regeneration Finance,Gas,05-Oct-23,1908240399,Corona Energy Ltd,£735.81
Manchester City Council,Adult Social Care,Gas,05-Oct-23,1908240146,Corona Energy Ltd,£736.02
Manchester City Council,Regeneration Finance,Gas,05-Oct-23,1908240336,Corona Energy Ltd,£753.98
Manchester City Council,Regeneration Finance,Gas,05-Oct-23,1908240257,Corona Energy Ltd,£769.16
Manchester City Council,Regeneration Finance,Gas,05-Oct-23,1908240454,Corona Energy Ltd,£783.36
Manchester City Council,Adult Social Care,Gas,05-Oct-23,1908240220,Corona Energy Ltd,£790.93
Manchester City Council,Regeneration Finance,Gas,05-Oct-23,1908240472,Corona Energy Ltd,£820.74
Manchester City Council,Adult Social Care,Gas,05-Oct-23,1908240149,Corona Energy Ltd,£838.19
Manchester City Council,Regeneration Finance,Gas,05-Oct-23,1908240404,Corona Energy Ltd,£838.59
Manchester City Council,Regeneration Finance,Gas,05-Oct-23,1908240180,Corona Energy Ltd,£857.08
Manchester City Council,Regeneration Finance,Gas,05-Oct-23,1908240174,Corona Energy Ltd,£874.18
Manchester City Council,Adult Social Care,Gas,05-Oct-23,1908240347,Corona Energy Ltd,£898.36
Manchester City Council,Regeneration Finance,Gas,05-Oct-23,1908240473,Corona Energy Ltd,£929.12
Manchester City Council,Regeneration Finance,Gas,05-Oct-23,1908240416,Corona Energy Ltd,£948.13
Manchester City Council,Regeneration Finance,Gas,05-Oct-23,1908240309,Corona Energy Ltd,£980.23
Manchester City Council,Adult Social Care,Gas,05-Oct-23,1908240205,Corona Energy Ltd,£996.28
Manchester City Council,Regeneration Finance,Gas,05-Oct-23,1908240332,Corona Energy Ltd,"£1,010.38"
Manchester City Council,Housing Revenue Account,Gas,05-Oct-23,1908240285,Corona Energy Ltd,"£1,055.31"
Manchester City Council,Manchester Leisure,Gas,05-Oct-23,1908240196,Corona Energy Ltd,"£1,063.96"
Manchester City Council,Manchester Leisure,Gas,05-Oct-23,1908240364,Corona Energy Ltd,"£1,129.57"
Manchester City Council,Adult Social Care,Gas,05-Oct-23,1908240142,Corona Energy Ltd,"£1,147.89"
Manchester City Council,Regeneration Finance,Gas,05-Oct-23,1908240176,Corona Energy Ltd,"£1,148.79"
Manchester City Council,Adult Social Care,Gas,05-Oct-23,1908240215,Corona Energy Ltd,"£1,149.82"
Manchester City Council,Manchester Leisure,Gas,05-Oct-23,1908240381,Corona Energy Ltd,"£1,179.54"
Manchester City Council,Manchester Leisure,Gas,05-Oct-23,1908240369,Corona Energy Ltd,"£1,182.17"
Manchester City Council,Adult Social Care,Gas,05-Oct-23,1908240221,Corona Energy Ltd,"£1,208.60"
Manchester City Council,Manchester Leisure,Gas,05-Oct-23,1908240367,Corona Energy Ltd,"£1,219.04"
Manchester City Council,Regeneration Finance,Gas,05-Oct-23,1908240340,Corona Energy Ltd,"£1,229.21"
Manchester City Council,Hospitality + Trading Services,Gas,05-Oct-23,1908240190,Corona Energy Ltd,"£1,244.20"
Manchester City Council,Adult Social Care,Gas,05-Oct-23,1908240165,Corona Energy Ltd,"£1,269.89"
Manchester City Council,Housing Revenue Account,Gas,05-Oct-23,1908240186,Corona Energy Ltd,"£1,296.86"
Manchester City Council,Housing Revenue Account,Gas,05-Oct-23,1908240417,Corona Energy Ltd,"£1,301.89"
Manchester City Council,Housing Revenue Account,Gas,05-Oct-23,1908240438,Corona Energy Ltd,"£1,319.57"
Manchester City Council,Regeneration Finance,Gas,05-Oct-23,1908240313,Corona Energy Ltd,"£1,320.09"
Manchester City Council,Regeneration Finance,Gas,05-Oct-23,1908240389,Corona Energy Ltd,"£1,378.48"
Manchester City Council,Housing Revenue Account,Gas,05-Oct-23,1908240343,Corona Energy Ltd,"£1,471.48"
Manchester City Council,Regeneration Finance,Gas,05-Oct-23,1908240173,Corona Energy Ltd,"£1,520.97"
Manchester City Council,Housing Revenue Account,Gas,05-Oct-23,1908240185,Corona Energy Ltd,"£1,594.20"
Manchester City Council,Regeneration Finance,Gas,05-Oct-23,1908240321,Corona Energy Ltd,"£1,598.85"
Manchester City Council,Adult Social Care,Gas,05-Oct-23,1908240217,Corona Energy Ltd,"£1,633.56"
Manchester City Council,Housing Revenue Account,Gas,05-Oct-23,1908240210,Corona Energy Ltd,"£1,636.93"
Manchester City Council,Regeneration Finance,Gas,05-Oct-23,1908240398,Corona Energy Ltd,"£1,646.85"
Manchester City Council,Adult Social Care,Gas,05-Oct-23,1908240223,Corona Energy Ltd,"£1,655.28"
Manchester City Council,Adult Social Care,Gas,05-Oct-23,1908240141,Corona Energy Ltd,"£1,701.92"
Manchester City Council,Adult Social Care,Gas,05-Oct-23,1908240300,Corona Energy Ltd,"£1,707.58"
Manchester City Council,Manchester Leisure,Gas,05-Oct-23,1908240368,Corona Energy Ltd,"£1,739.56"
Manchester City Council,Adult Social Care,Gas,05-Oct-23,1908240143,Corona Energy Ltd,"£1,771.70"
Manchester City Council,Housing Revenue Account,Gas,05-Oct-23,1908240328,Corona Energy Ltd,"£1,784.36"
Manchester City Council,Adult Social Care,Gas,05-Oct-23,1908240216,Corona Energy Ltd,"£1,788.99"
Manchester City Council,Manchester Leisure,Gas,05-Oct-23,1908240353,Corona Energy Ltd,"£1,789.95"
Manchester City Council,Housing Revenue Account,Gas,05-Oct-23,1908240329,Corona Energy Ltd,"£1,854.55"
Manchester City Council,Manchester Leisure,Gas,05-Oct-23,1908240355,Corona Energy Ltd,"£1,941.53"
Manchester City Council,Regeneration Finance,Gas,05-Oct-23,1908240405,Corona Energy Ltd,"£1,995.35"
Manchester City Council,Adult Social Care,Gas,05-Oct-23,1908240139,Corona Energy Ltd,"£2,409.47"
Manchester City Council,Adult Social Care,Gas,05-Oct-23,1908240145,Corona Energy Ltd,"£2,436.91"
Manchester City Council,Manchester Leisure,Gas,05-Oct-23,1908240230,Corona Energy Ltd,"£2,456.60"
Manchester City Council,Regeneration Finance,Gas,05-Oct-23,1908240401,Corona Energy Ltd,"£2,493.57"
Manchester City Council,Regeneration Finance,Gas,05-Oct-23,1908240171,Corona Energy Ltd,"£2,516.26"
Manchester City Council,Regeneration Finance,Gas,05-Oct-23,1908240396,Corona Energy Ltd,"£2,530.88"
Manchester City Council,Adult Social Care,Gas,05-Oct-23,1908240144,Corona Energy Ltd,"£2,639.96"
Manchester City Council,Hospitality + Trading Services,Gas,05-Oct-23,1908240292,Corona Energy Ltd,"£2,875.76"
Manchester City Council,Regeneration Finance,Gas,05-Oct-23,1908240255,Corona Energy Ltd,"£2,977.11"
Manchester City Council,Regeneration Finance,Gas,05-Oct-23,1908240403,Corona Energy Ltd,"£3,481.75"
Manchester City Council,Manchester Leisure,Gas,05-Oct-23,1908240283,Corona Energy Ltd,"£4,295.42"
Manchester City Council,Regeneration Finance,Gas,05-Oct-23,1908240400,Corona Energy Ltd,"£4,353.11"
Manchester City Council,Manchester Leisure,Gas,05-Oct-23,1908240385,Corona Energy Ltd,"£4,412.13"
Manchester City Council,Manchester Leisure,Gas,05-Oct-23,1908240371,Corona Energy Ltd,"£4,609.97"
Manchester City Council,Hospitality + Trading Services,Gas,05-Oct-23,1908240201,Corona Energy Ltd,"£4,909.70"
Manchester City Council,Regeneration Finance,Gas,05-Oct-23,1908240175,Corona Energy Ltd,"£5,446.20"
Manchester City Council,Regeneration Finance,Gas,05-Oct-23,1908240392,Corona Energy Ltd,"£6,110.49"
Manchester City Council,Manchester Leisure,Gas,05-Oct-23,1908240351,Corona Energy Ltd,"£6,781.54"
Manchester City Council,Housing Revenue Account,Gas,05-Oct-23,1908240460,Corona Energy Ltd,"£9,478.66"
Manchester City Council,Housing Revenue Account,Gas,05-Oct-23,1908240277,Corona Energy Ltd,"£10,437.79"
Manchester City Council,Manchester Leisure,Gas,05-Oct-23,1908240187,Corona Energy Ltd,"£10,536.53"
Manchester City Council,Housing Revenue Account,Gas,05-Oct-23,1908240459,Corona Energy Ltd,"£11,434.59"
Manchester City Council,Regeneration Finance,Gas,05-Oct-23,1908240393,Corona Energy Ltd,"£14,384.22"
Manchester City Council,Regeneration Finance,Gas,05-Oct-23,1908240394,Corona Energy Ltd,"£20,354.53"
Manchester City Council,Regeneration Finance,Gas,05-Oct-23,1908240391,Corona Energy Ltd,"£20,504.08"
Manchester City Council,Regeneration Finance,Gas,05-Oct-23,1908240390,Corona Energy Ltd,"£21,352.55"
Manchester City Council,Regeneration Finance,Gas,05-Oct-23,1908240457,Corona Energy Ltd,"£31,648.98"
Manchester City Council,Corporate Services,Grant Payments,05-Oct-23,5105894248,GMCA,"£2,826.67"
Manchester City Council,Corporate Services,Travel Season TLS,05-Oct-23,5105894161,Stagecoach Manchester,£670.00
Manchester City Council,Chief Executives,ICT Sup & Maintnance,05-Oct-23,5105894158,Esteem,"£23,798.38"
Manchester City Council,Adult Social Care,Payments for services,05-Oct-23,5105894295,Littdale Hall Therpeutic Comm. Ltd,"£2,800.00"
Manchester City Council,Adult Social Care,Payments for services,05-Oct-23,5105894296,Littdale Hall Therpeutic Comm. Ltd,"£16,200.00"
Manchester City Council,Manchester Leisure,Professional fees,05-Oct-23,5105894058,Taranto Systems Ltd,"£5,575.00"
Manchester City Council,Hospitality + Trading Services,Equipment,05-Oct-23,1908241774,Stapletons Tyre Services,"£5,563.12"
Manchester City Council,Chief Executives,Postage,05-Oct-23,5105894282,Whistl North Ltd,"£6,606.17"
Manchester City Council,Adult Social Care,Training and Development,05-Oct-23,5105894310,Centre for Assessment,£595.00
Manchester City Council,Adult Social Care,Third party payments relating to Voluntary Organisations,05-Oct-23,5105894329,Manchester Womens Aid,"£6,340.66"
Manchester City Council,Hospitality + Trading Services,Vehicle Repairs,05-Oct-23,5105894281,Advanced Vehicle Technicians Ltd,£860.00
Manchester City Council,Childrens & Education Services,Payments for services,05-Oct-23,5105894269,Time Specialist Support Ltd,"£15,425.00"
Manchester City Council,Chief Executives,Agency staff provision,05-Oct-23,5105894259,Ashberry Recruitment Ltd,"£1,968.30"
Manchester City Council,Hospitality + Trading Services,Machinery and equipment repairs,05-Oct-23,5105894098,Gibsons Garden Machinery Limited,"£2,169.28"
Manchester City Council,Childrens & Education Services,Agency staff provision,05-Oct-23,5105893977,Manchester Mind,"£12,056.01"
Manchester City Council,Chief Executives,Grant and subscriptions awarded,05-Oct-23,5105894297,Reform Radio CIC,"£6,035.04"
Manchester City Council,Manchester Leisure,Grant and subscriptions awarded,05-Oct-23,5105894185,Victoria Road Homewatch & RA,"£2,000.00"
Manchester City Council,Manchester Leisure,Payments to Sub-Contractors,05-Oct-23,5105894059,Greenwich Leisure Limited,"-£1,184.74"
Manchester City Council,Manchester Leisure,Payments to Sub-Contractors,05-Oct-23,5105893999,Greenwich Leisure Limited,"£1,184.74"
Manchester City Council,Regeneration Finance,Refuse Collection,05-Oct-23,5105893850,Biffa Municipal Limited,"£1,050.46"
Manchester City Council,Housing Revenue Account,Professional fees,05-Oct-23,5105894099,Capita Property & Infras'ture Ltd,"£6,370.00"
Manchester City Council,Adult Social Care,Payments for services,05-Oct-23,5105894265,Delphi Medical,"-£2,827.00"
Manchester City Council,Adult Social Care,Payments for services,05-Oct-23,5105894264,Delphi Medical,"£2,827.00"
Manchester City Council,Adult Social Care,Payments for services,05-Oct-23,5105894250,Kaleidoscope Project,"-£1,960.00"
Manchester City Council,Adult Social Care,Payments for services,05-Oct-23,5105894249,Kaleidoscope Project,"£1,960.00"
Manchester City Council,Adult Social Care,Rents,05-Oct-23,5105894100,District Homes Cic,"£5,452.69"
Manchester City Council,Regeneration Finance,Cleaning Equipment and Materials,05-Oct-23,5105893774,Arrow County Supplies,£922.73
Manchester City Council,Hospitality + Trading Services,Vehicle Fuel Costs,05-Oct-23,5105894226,Standard Fuels Oils,"£17,240.35"
Manchester City Council,Manchester Leisure,Special Event,05-Oct-23,5105894156,Youth Elements,£570.00
Manchester City Council,Chief Executives,Legal Fees,05-Oct-23,5105894197,Waddington & Son Solicitors,£890.84
Manchester City Council,Chief Executives,Legal Fees,05-Oct-23,5105894225,Waddington & Son Solicitors,"£1,652.50"
Manchester City Council,Chief Executives,Legal Fees,05-Oct-23,5105894228,Waddington & Son Solicitors,"£1,971.55"
Manchester City Council,Adult Social Care,Personal needs of client,05-Oct-23,5105894122,Anywhere Care Ltd,"£1,560.00"
Manchester City Council,Adult Social Care,Personal needs of client,05-Oct-23,5105894124,Anywhere Care Ltd,"£1,800.00"
Manchester City Council,Corporate Services,WPS Awards,05-Oct-23,5105894231,Furniture Resource Centre Ltd,£699.99
Manchester City Council,Corporate Services,WPS Awards,05-Oct-23,5105894148,Furniture Resource Centre Ltd,£807.83
Manchester City Council,Housing Revenue Account,Works and associated costs for Land and Buildings,05-Oct-23,5105894330,Warden Construction Ltd,"£80,500.80"
Manchester City Council,Adult Social Care,Equipment,05-Oct-23,5105894293,Herida Healthcare Plc,"£3,192.40"
Manchester City Council,Manchester Leisure,Professional fees,05-Oct-23,5105894278,Xtreme,£535.00
Manchester City Council,Manchester Leisure,Professional fees,05-Oct-23,5105894275,Go Bounce Play,£600.00
Manchester City Council,Manchester Leisure,Professional fees,05-Oct-23,5105894274,Go Bounce Play,£657.50
Manchester City Council,Manchester Leisure,Cleaning Equipment,05-Oct-23,5105893884,CPD Property Services,£695.00
Manchester City Council,Manchester Leisure,Cleaning Equipment,05-Oct-23,5105893886,CPD Property Services,"£1,350.00"
Manchester City Council,Libraries and Theatres,Works and associated costs for Land and Buildings,05-Oct-23,5105894131,Robertson Construction Group,"£291,186.52"
Manchester City Council,Manchester Leisure,Building Materials for direct delivery,05-Oct-23,5105894254,Tudor Environmental,"£1,068.38"
Manchester City Council,Adult Social Care,Grant and subscriptions awarded,05-Oct-23,5105894104,Divrse Ltd,"£15,345.00"
Manchester City Council,Adult Social Care,Grant and subscriptions awarded,05-Oct-23,5105894103,Divrse Ltd,"£57,195.00"
Manchester City Council,Environment and Operations,Construction Works,05-Oct-23,5105894315,Ventbrook,"£4,924.00"
Manchester City Council,Corporate Services,Grant and subscriptions awarded,05-Oct-23,5105894208,Perry's Pantry Foodbank,"£5,891.62"
Manchester City Council,Childrens & Education Services,Transport Coach Hire,05-Oct-23,5105894215,AFJ Ltd,"£2,850.00"
Manchester City Council,Childrens & Education Services,Transport Coach Hire,05-Oct-23,5105894216,AFJ Ltd,"£2,850.00"
Manchester City Council,Childrens & Education Services,Transport Coach Hire,05-Oct-23,5105894212,AFJ Ltd,"£3,048.00"
Manchester City Council,Childrens & Education Services,Transport Coach Hire,05-Oct-23,5105894211,AFJ Ltd,"£3,302.00"
Manchester City Council,Childrens & Education Services,Transport Coach Hire,05-Oct-23,5105894219,AFJ Ltd,"£3,302.00"
Manchester City Council,Childrens & Education Services,Transport Coach Hire,05-Oct-23,5105894213,AFJ Ltd,"£3,810.00"
Manchester City Council,Childrens & Education Services,Transport Coach Hire,05-Oct-23,5105894214,AFJ Ltd,"£3,810.00"
Manchester City Council,Childrens & Education Services,Transport Coach Hire,05-Oct-23,5105894218,AFJ Ltd,"£3,810.00"
Manchester City Council,Childrens & Education Services,Transport Coach Hire,05-Oct-23,5105894217,AFJ Ltd,"£4,260.00"
Manchester City Council,Adult Social Care,Furniture,05-Oct-23,5105894284,Rtech Group Limited,"£1,515.00"
Manchester City Council,Chief Executives,I T Provision,05-Oct-23,5105893893,Arcus Global Limited,"£5,390.00"
Manchester City Council,Manchester Leisure,Grant and subscriptions awarded,05-Oct-23,5105894325,Yankho Foundation,£500.00
Manchester City Council,Manchester Leisure,"Consumable items eg Toilet rolls, soap etc",05-Oct-23,1908241799,LARGEFORMATPRINTING,£733.36
Manchester City Council,Manchester Leisure,"Consumable items eg Toilet rolls, soap etc",05-Oct-23,1908241778,THE TINY BOX COMPANY LIMI,£672.88
Manchester City Council,Manchester Leisure,"Consumable items eg Toilet rolls, soap etc",05-Oct-23,1908241782,WILLARDCONSERVATIONLTD,£588.00
Manchester City Council,Chief Executives,Professional fees,05-Oct-23,1908239786,Expert Psychology Consultancy Ltd,£748.80
Manchester City Council,Childrens & Education Services,Day Care Payments,05-Oct-23,5105894294,Redacted Personal Information,"£1,320.00"
Manchester City Council,Childrens & Education Services,Professional fees,05-Oct-23,5105894276,Redacted Personal Information,"£1,666.70"
Manchester City Council,Adult Social Care,Bed & Breakfast Acc,05-Oct-23,5105894241,Redacted Personal Information,£630.00
Manchester City Council,Chief Executives,Payments to Sub-Contractors,05-Oct-23,5105894246,Redacted Personal Information,£662.10
Manchester City Council,Chief Executives,Payments to Sub-Contractors,05-Oct-23,5105894245,Redacted Personal Information,£663.00
Manchester City Council,Manchester Leisure,Grant and subscriptions awarded,05-Oct-23,5105894323,Redacted Personal Information,"£2,000.00"
Manchester City Council,Adult Social Care,Rents,05-Oct-23,1908241884,Redacted Personal Information,"£1,200.00"
Manchester City Council,Chief Executives,Counsel Costs,05-Oct-23,1908238136,Redacted Personal Information,"£2,008.33"
Manchester City Council,Adult Social Care,Supporting People Payments,06-Oct-23,5105894491,Praxis Care Group,-£600.00
Manchester City Council,Adult Social Care,Rents,06-Oct-23,5105894535,B & A Properties,"£41,887.14"
Manchester City Council,Manchester Leisure,Contract Cleaning External,06-Oct-23,5105893847,Clearview Event Services Limited,"£14,794.84"
Manchester City Council,Corporate Services,Professional fees,06-Oct-23,5105894324,Mace Ltd,"£6,543.00"
Manchester City Council,Manchester Leisure,External repairs and maintenance for buildings,06-Oct-23,5105894266,Rigby Taylor Ltd,"£2,050.00"
Manchester City Council,Manchester Leisure,External repairs and maintenance for buildings,06-Oct-23,5105894267,Rigby Taylor Ltd,"£3,850.00"
Manchester City Council,Adult Social Care,Home Care ,06-Oct-23,5105894504,Standwalk Ltd,"£1,338.37"
Manchester City Council,Environment and Operations,Construction Works,06-Oct-23,5105894408,J.Hopkins (Contractors) Ltd.,"£61,977.38"
Manchester City Council,Environment and Operations,Construction Works,06-Oct-23,5105894400,J.Hopkins (Contractors) Ltd.,"£1,761.40"
Manchester City Council,Environment and Operations,Construction Works,06-Oct-23,5105894401,J.Hopkins (Contractors) Ltd.,"£5,250.30"
Manchester City Council,Environment and Operations,Construction Works,06-Oct-23,5105894399,J.Hopkins (Contractors) Ltd.,"£18,800.00"
Manchester City Council,Environment and Operations,Construction Works,06-Oct-23,5105894386,J.Hopkins (Contractors) Ltd.,"£21,900.00"
Manchester City Council,Environment and Operations,Construction Works,06-Oct-23,5105894395,J.Hopkins (Contractors) Ltd.,"£29,414.06"
Manchester City Council,Environment and Operations,Construction Works,06-Oct-23,5105894402,J.Hopkins (Contractors) Ltd.,"£44,777.26"
Manchester City Council,Environment and Operations,Construction Works,06-Oct-23,5105894382,J.Hopkins (Contractors) Ltd.,"£49,786.07"
Manchester City Council,Environment and Operations,Construction Works,06-Oct-23,5105894388,J.Hopkins (Contractors) Ltd.,"£51,104.71"
Manchester City Council,Environment and Operations,Construction Works,06-Oct-23,5105894380,J.Hopkins (Contractors) Ltd.,"£61,400.00"
Manchester City Council,Environment and Operations,Construction Works,06-Oct-23,5105894383,J.Hopkins (Contractors) Ltd.,"£111,850.00"
Manchester City Council,Environment and Operations,Construction Works,06-Oct-23,5105894390,J.Hopkins (Contractors) Ltd.,"£202,000.00"
Manchester City Council,Environment and Operations,Construction Works,06-Oct-23,5105894405,J.Hopkins (Contractors) Ltd.,"£4,199.81"
Manchester City Council,Environment and Operations,Construction Works,06-Oct-23,5105894403,J.Hopkins (Contractors) Ltd.,"£6,406.09"
Manchester City Council,Environment and Operations,Construction Works,06-Oct-23,5105894406,J.Hopkins (Contractors) Ltd.,"£19,650.00"
Manchester City Council,Environment and Operations,Construction Works,06-Oct-23,5105894404,J.Hopkins (Contractors) Ltd.,"£66,750.00"
Manchester City Council,Highways Services,Building Materials for direct delivery,06-Oct-23,5105894409,TARMAC,£765.41
Manchester City Council,Highways Services,Building Materials for direct delivery,06-Oct-23,5105894471,TARMAC,"£1,004.29"
Manchester City Council,Hospitality + Trading Services,Vehicle Hire Costs,06-Oct-23,5105894372,Ubu Environmental Ltd,"£1,465.00"
Manchester City Council,Hospitality + Trading Services,Vehicle Hire Costs,06-Oct-23,5105894373,Ubu Environmental Ltd,"£1,465.00"
Manchester City Council,Adult Social Care,Payments for services,06-Oct-23,5105894524,Creative Support Ltd,"£3,216.80"
Manchester City Council,Adult Social Care,Payments for services,06-Oct-23,5105894506,Creative Support Ltd,"£21,608.59"
Manchester City Council,Childrens & Education Services,Signers/Interpreters,06-Oct-23,5105894450,Language Line Ltd,"£1,583.94"
Manchester City Council,Environment and Operations,Construction Works,06-Oct-23,5105894321,Amey Highways Lighting (Manchester),"£24,162.81"
Manchester City Council,Housing General Fund,Building Works,06-Oct-23,1908242109,Stannah Lift Services Ltd,"£3,017.00"
Manchester City Council,Housing General Fund,Building Works,06-Oct-23,1908242116,Stannah Lift Services Ltd,"£3,156.00"
Manchester City Council,Housing General Fund,Building Works,06-Oct-23,1908242115,Stannah Lift Services Ltd,"£3,684.00"
Manchester City Council,Housing General Fund,Building Works,06-Oct-23,1908242112,Stannah Lift Services Ltd,"£6,169.00"
Manchester City Council,Housing General Fund,Building Works,06-Oct-23,1908242106,Stannah Lift Services Ltd,"£6,540.00"
Manchester City Council,Housing General Fund,Building Works,06-Oct-23,1908242114,Stannah Lift Services Ltd,"£6,629.00"
Manchester City Council,Housing General Fund,Building Works,06-Oct-23,1908242107,Stannah Lift Services Ltd,"£7,174.00"
Manchester City Council,Housing General Fund,Building Works,06-Oct-23,1908242111,Stannah Lift Services Ltd,"£1,230.50"
Manchester City Council,Housing General Fund,Building Works,06-Oct-23,1908242108,Stannah Lift Services Ltd,"£3,715.00"
Manchester City Council,Housing General Fund,Building Works,06-Oct-23,1908242113,Stannah Lift Services Ltd,"£6,898.00"
Manchester City Council,Housing General Fund,Building Works,06-Oct-23,1908242110,Stannah Lift Services Ltd,"£7,397.00"
Manchester City Council,Housing General Fund,Building Works,06-Oct-23,1908242121,Stannah Lift Services Ltd,"£7,550.00"
Manchester City Council,Adult Social Care,Third party payments to Health Authority,06-Oct-23,5105894416,Central Mcr Uni Hospital t/a,"-£5,688.77"
Manchester City Council,Adult Social Care,Third party payments to Health Authority,06-Oct-23,5105894455,Central Mcr Uni Hospital t/a,"£5,688.77"
Manchester City Council,Housing General Fund,Building Works,06-Oct-23,5105894359,Manchester Care & Repair Ltd,"£7,165.30"
Manchester City Council,Housing General Fund,Building Works,06-Oct-23,5105894371,Manchester Care & Repair Ltd,"£8,591.86"
Manchester City Council,Housing General Fund,Building Works,06-Oct-23,5105894358,Manchester Care & Repair Ltd,"£71,653.00"
Manchester City Council,Highways Services,Payments to Sub-Contractors,06-Oct-23,5105894375,Fairway Landscapes Ltd,"£1,065.00"
Manchester City Council,Manchester Leisure,Compensation Payments,06-Oct-23,1908234982,Accountant General of the Senior,"£1,500.00"
Manchester City Council,Environment and Operations,Construction Works,06-Oct-23,5105894094,Eric Wright Civil Engineering Limit,"-£291,028.92"
Manchester City Council,Environment and Operations,Construction Works,06-Oct-23,5105893561,Eric Wright Civil Engineering Limit,"£122,371.45"
Manchester City Council,Environment and Operations,Construction Works,06-Oct-23,5105894369,Eric Wright Civil Engineering Limit,"£291,028.92"
Manchester City Council,Housing Revenue Account,Works and associated costs for Land and Buildings,06-Oct-23,5105894335,Rowlinson Constructions Ltd,"£154,512.72"
Manchester City Council,Adult Social Care,Third party payments relating to Voluntary Organisations,06-Oct-23,5105894398,Manchester Carers Forum,"£24,500.00"
Manchester City Council,Childrens & Education Services,Professional fees,06-Oct-23,5105894381,Cellmark,£935.00
Manchester City Council,Chief Executives,ICT Sup & Maintnance,06-Oct-23,5105894354,Finastra,£740.00
Manchester City Council,Chief Executives,ICT Sup & Maintnance,06-Oct-23,5105894355,Finastra,£740.00
Manchester City Council,Housing General Fund,Building Works,06-Oct-23,1908242117,Hoist & Shower Chair Company,"£2,420.50"
Manchester City Council,Housing General Fund,Building Works,06-Oct-23,1908242120,Hoist & Shower Chair Company,"£4,595.50"
Manchester City Council,Childrens & Education Services,Rents,06-Oct-23,5105894478,Diocese of Salford,"£21,350.35"
Manchester City Council,Manchester Leisure,Window Cleaning,06-Oct-23,5105894505,Ultra Cleaning Service,£680.00
Manchester City Council,Manchester Leisure,Grant and subscriptions awarded,06-Oct-23,5105894440,Cheetham Cultural Festival T/a,"£2,000.00"
Manchester City Council,Highways Services,Professional fees,06-Oct-23,5105894186,Wilde Consultants Ltd,"£1,375.23"
Manchester City Council,Adult Social Care,Third party payments relating to Voluntary Organisations,06-Oct-23,5105894327,Manchester Womens Aid,"£13,080.92"
Manchester City Council,Childrens & Education Services,Professional fees,06-Oct-23,5105894377,Advanced Child Care Assessments,£842.00
Manchester City Council,Corporate Services,Works and associated costs for Land and Buildings,06-Oct-23,5105894352,Rider Levett Bucknall UK Ltd,"£16,170.00"
Manchester City Council,Childrens & Education Services,Payments for services,06-Oct-23,5105894460,Time Specialist Support Ltd,"£2,468.00"
Manchester City Council,Manchester Leisure,Building Materials for direct delivery,06-Oct-23,5105894376,Landscape Supply Company,"£1,249.00"
Manchester City Council,Manchester Leisure,Goods purchased for resale in Council outlets,06-Oct-23,5105894501,Stone Marketing Ltd,"£1,518.47"
Manchester City Council,Childrens & Education Services,Professional fees,06-Oct-23,5105894411,One Education Ltd,£970.00
Manchester City Council,Adult Social Care,Personal needs of client,06-Oct-23,5105894339,BES Rehab,"£2,574.00"
Manchester City Council,Manchester Leisure,Testing Fees,06-Oct-23,5105894502,County Scientific Services,"£3,920.00"
Manchester City Council,Adult Social Care,Building Works,06-Oct-23,5105894497,Stepping Stone Projects,"£43,228.00"
Manchester City Council,Adult Social Care,Grant and subscriptions awarded,06-Oct-23,5105894479,Stepping Stone Projects,"£1,100.00"
Manchester City Council,Adult Social Care,Grant and subscriptions awarded,06-Oct-23,5105894477,Stepping Stone Projects,"£11,000.00"
Manchester City Council,Adult Social Care,Third party payments relating to Voluntary Organisations,06-Oct-23,5105894498,Stepping Stone Projects,"£53,023.00"
Manchester City Council,Housing General Fund,Building Works,06-Oct-23,1908242118,UPS Building & Maintenance Ltd,"£14,326.43"
Manchester City Council,Housing General Fund,Building Works,06-Oct-23,1908242119,UPS Building & Maintenance Ltd,"£16,510.83"
Manchester City Council,Adult Social Care,Personal needs of client,06-Oct-23,5105894527,Medela UK Ltd,"£3,161.48"
Manchester City Council,Hospitality + Trading Services,Rents,06-Oct-23,1908232602,Booker Ltd,"£1,642.50"
Manchester City Council,Highways Services,Purchase of stores for re-distribution,06-Oct-23,5105894459,Fabrikat (Nottingham) Limited,"£5,600.00"
Manchester City Council,Childrens & Education Services,Training and Development,06-Oct-23,5105894360,Family Links,£655.60
Manchester City Council,Regeneration Finance,Internal Repairs and Maintenance for buildings,06-Oct-23,5105894374,EQUANS Services Limited,"£62,505.24"
Manchester City Council,Childrens & Education Services,Third party payments to other Local Authorities,06-Oct-23,5105894537,Egerton High School,"£39,928.00"
Manchester City Council,Manchester Leisure,Payments to Sub-Contractors,06-Oct-23,5105894190,Synectics Security Limited,"£3,038.36"
Manchester City Council,Manchester Leisure,Payments to Sub-Contractors,06-Oct-23,5105894192,Synectics Security Limited,"£3,038.36"
Manchester City Council,Manchester Leisure,Payments to Sub-Contractors,06-Oct-23,5105894193,Synectics Security Limited,"£3,038.36"
Manchester City Council,Manchester Leisure,Payments to Sub-Contractors,06-Oct-23,5105894194,Synectics Security Limited,"£3,038.36"
Manchester City Council,Manchester Leisure,Payments to Sub-Contractors,06-Oct-23,5105894195,Synectics Security Limited,"£3,038.36"
Manchester City Council,Adult Social Care,Professional fees,06-Oct-23,5105894451,Prepaid Financial Services Limited,"£1,461.00"
Manchester City Council,Manchester Leisure,Special Event,06-Oct-23,5105894340,Imageit,£800.00
Manchester City Council,Childrens & Education Services,Grant Payments,06-Oct-23,5105894351,UNCIEF,"£25,000.00"
Manchester City Council,Childrens & Education Services,Subsistence and Conference Expenses,06-Oct-23,5105894499,Hala Guest House,"£2,240.00"
Manchester City Council,Corporate Services,WPS Awards,06-Oct-23,5105894368,Furniture Resource Centre Ltd,£503.80
Manchester City Council,Corporate Services,WPS Awards,06-Oct-23,5105894486,Furniture Resource Centre Ltd,£535.42
Manchester City Council,Corporate Services,WPS Awards,06-Oct-23,5105894483,Furniture Resource Centre Ltd,£887.05
Manchester City Council,Corporate Services,WPS Awards,06-Oct-23,5105894444,Furniture Resource Centre Ltd,£887.06
Manchester City Council,Corporate Services,WPS Awards,06-Oct-23,5105894445,Furniture Resource Centre Ltd,"£1,048.95"
Manchester City Council,Corporate Services,WPS Awards,06-Oct-23,5105894349,Furniture Resource Centre Ltd,"£1,061.05"
Manchester City Council,Corporate Services,WPS Awards,06-Oct-23,5105894519,Furniture Resource Centre Ltd,"£1,260.13"
Manchester City Council,Adult Social Care,Personal needs of client,06-Oct-23,5105894454,YOURmedpack Ltd,£874.00
Manchester City Council,Childrens & Education Services,Transport Coach Hire,06-Oct-23,5105894493,PDR Travel Ltd,"£3,990.00"
Manchester City Council,Childrens & Education Services,Legal Fees,06-Oct-23,5105894318,Paramount Care Solutions Limited,"£2,400.00"
Manchester City Council,Adult Social Care,Grant and subscriptions awarded,06-Oct-23,5105894474,Olive Pathway,"£30,000.00"
Manchester City Council,Childrens & Education Services,Payments for services,06-Oct-23,5105894453,Afifah School,£664.00
Manchester City Council,Manchester Leisure,Equipment,06-Oct-23,5105894280,Sants Fabrications Ltd,"£2,995.50"
Manchester City Council,Chief Executives,Printing,06-Oct-23,1908232758,reddoor film and media,"£1,495.00"
Manchester City Council,Chief Executives,Professional fees,06-Oct-23,1908241901,Carter Brown - The Experts Service,"£1,386.90"
Manchester City Council,Chief Executives,Professional fees,06-Oct-23,1908241399,Expert Psychology Consultancy Ltd,"£2,714.40"
Manchester City Council,Childrens & Education Services,Counsel Costs,06-Oct-23,1908229493,7BR,"£3,200.00"
Manchester City Council,Regeneration Finance,Joint Financing Cont,06-Oct-23,1908238123,Think of Somethin Ltd,"£1,125.00"
Manchester City Council,Chief Executives,Payments to Sub-Contractors,06-Oct-23,5105894547,Redacted Personal Information,£848.25
Manchester City Council,Chief Executives,Payments to Sub-Contractors,06-Oct-23,5105894521,Redacted Personal Information,£633.98
Manchester City Council,Chief Executives,Payments to Sub-Contractors,06-Oct-23,5105894426,Redacted Personal Information,"£1,361.66"
Manchester City Council,Chief Executives,Payments to Sub-Contractors,06-Oct-23,5105894425,Redacted Personal Information,£690.00
Manchester City Council,Manchester Leisure,Professional fees,06-Oct-23,1908239409,Redacted Personal Information,"£1,000.00"
Manchester City Council,Manchester Leisure,External repairs and maintenance for buildings,07-Oct-23,5105893668,Clearway Drainage Systems Ltd,£850.00
Manchester City Council,Highways Services,Payments to Sub-Contractors,07-Oct-23,5105894707,Clearway Drainage Systems Ltd,"£1,960.00"
Manchester City Council,Highways Services,Payments to Sub-Contractors,07-Oct-23,5105894706,Clearway Drainage Systems Ltd,"£5,760.00"
Manchester City Council,Manchester Leisure,Payments to Sub-Contractors,07-Oct-23,5105894716,Clean-Up UK Limited,£800.00
Manchester City Council,Manchester Leisure,Payments to Sub-Contractors,07-Oct-23,5105894719,Clean-Up UK Limited,"£1,100.00"
Manchester City Council,Corporate Services,Works and associated costs for Land and Buildings,07-Oct-23,5105894717,Clean-Up UK Limited,"£1,840.00"
Manchester City Council,Chief Executives,Agency staff provision,07-Oct-23,5105894715,Eden Brown Synergy,"£11,705.70"
Manchester City Council,Hospitality + Trading Services,Vehicle Repairs,07-Oct-23,5105894708,Manchester Van Hire Ltd,"£1,915.26"
Manchester City Council,Chief Executives,Agency staff provision,07-Oct-23,5105894710,Hays Personnel,"£7,982.73"
Manchester City Council,Adult Social Care,Cleaning Equipment and Materials,07-Oct-23,5105894621,Alliance Disposables Ltd,£673.90
Manchester City Council,Chief Executives,Rents,07-Oct-23,5105894649,Manchester Central,"£18,293.03"
Manchester City Council,Chief Executives,Catering,07-Oct-23,5105894632,Manchester Central,£605.50
Manchester City Council,Chief Executives,Catering,07-Oct-23,5105894631,Manchester Central,"£1,197.00"
Manchester City Council,Chief Executives,Catering,07-Oct-23,5105894636,Manchester Central,"£3,194.20"
Manchester City Council,Highways Services,Purchase of stores for re-distribution,07-Oct-23,5105894712,Benchmark Building Supplies Ltd,£628.32
Manchester City Council,Highways Services,Purchase of stores for re-distribution,07-Oct-23,5105894711,Benchmark Building Supplies Ltd,£765.60
Manchester City Council,Adult Social Care,Furniture,07-Oct-23,5105894658,Banner Group Limited,£971.64
Manchester City Council,Adult Social Care,Supporting People Payments,09-Oct-23,5105894566,Praxis Care Group,"£6,524.81"
Manchester City Council,Childrens & Education Services,Cleaning Equipment and Materials,09-Oct-23,1908243182,PHS Group,£537.88
Manchester City Council,Childrens & Education Services,Storage Costs,09-Oct-23,5105894745,Iron Mountain,£538.51
Manchester City Council,Childrens & Education Services,Storage Costs,09-Oct-23,5105894748,Iron Mountain,£738.48
Manchester City Council,Childrens & Education Services,Storage Costs,09-Oct-23,5105894755,Iron Mountain,"£2,127.30"
Manchester City Council,Childrens & Education Services,Storage Costs,09-Oct-23,5105894741,Iron Mountain,"£4,373.62"
Manchester City Council,Regeneration Finance,Professional fees,09-Oct-23,5105894602,GVA Grimley Ltd,"£1,000.00"
Manchester City Council,Manchester Leisure,Hire of Equipment,09-Oct-23,5105894725,Flowbird Smart City Uk Ltd,"£1,452.60"
Manchester City Council,Adult Social Care,Equipment,09-Oct-23,5105894738,RNIB,£672.00
Manchester City Council,Adult Social Care,Equipment,09-Oct-23,5105894528,RNIB,£892.50
Manchester City Council,Adult Social Care,Equipment,09-Oct-23,5105894542,RNIB,£892.50
Manchester City Council,Corporate Services,Professional fees,09-Oct-23,5105893590,Mace Ltd,"£5,598.00"
Manchester City Council,Manchester Leisure,Works and associated costs for Land and Buildings,09-Oct-23,5105894805,Laing O'Rourke Construction Ltd,"£208,901.84"
Manchester City Council,Chief Executives,Agency staff provision,09-Oct-23,5105894773,Adecco Uk Ltd,"£1,685.40"
Manchester City Council,Chief Executives,Agency staff provision,09-Oct-23,5105894775,Adecco Uk Ltd,"£2,000.00"
Manchester City Council,Chief Executives,Agency staff provision,09-Oct-23,5105894777,Adecco Uk Ltd,"£2,000.00"
Manchester City Council,Adult Social Care,Subsistence and Conference Expenses,09-Oct-23,5105894734,West Gorton Medical Centre,£600.00
Manchester City Council,Regeneration Finance,Licences Purchase,09-Oct-23,5105894539,Experian Limited,"£7,268.00"
Manchester City Council,Environment and Operations,Construction Works,09-Oct-23,5105894393,J.Hopkins (Contractors) Ltd.,"£62,356.59"
Manchester City Council,Childrens & Education Services,Training and Development,09-Oct-23,5105894609,Trafford College,"£3,695.00"
Manchester City Council,Highways Services,Building Materials for direct delivery,09-Oct-23,5105894574,TARMAC,£977.48
Manchester City Council,Highways Services,Private Finance and Public Private partnership initiatives,09-Oct-23,5105894048,Amey Highways Lighting (Manchester),"£812,627.79"
Manchester City Council,Chief Executives,Professional fees,09-Oct-23,5105894432,Manchester International Festival,"£147,832.00"
Manchester City Council,Adult Social Care,Hire of Premises,09-Oct-23,5105894762,Quaker Trading Ltd,£508.33
Manchester City Council,Manchester Leisure,Professional fees,09-Oct-23,5105894503,Salford City Council,"£5,000.00"
Manchester City Council,Chief Executives,Works and associated costs for Land and Buildings,09-Oct-23,5105894801,Turner & Townsend Cost,"£9,868.03"
Manchester City Council,Manchester Leisure,Grant and subscriptions awarded,09-Oct-23,5105894463,Trafford M.B.C.,"£9,353.25"
Manchester City Council,Corporate Services,Professional fees,09-Oct-23,5105894803,Malcolm Hughes Land Surveyors Ltd,"£4,500.00"
Manchester City Council,Regeneration Finance,Training and Development,09-Oct-23,5105894611,Open Awards,£695.00
Manchester City Council,Adult Social Care,Equipment,09-Oct-23,5105894614,Drive Devilbiss Healthcare Ltd,£864.00
Manchester City Council,Housing Revenue Account,Professional fees,09-Oct-23,5105894612,Jacobs UK Ltd,£660.00
Manchester City Council,Housing Revenue Account,Professional fees,09-Oct-23,5105894612,Jacobs UK Ltd,"£4,290.00"
Manchester City Council,Highways Services,Payments to Sub-Contractors,09-Oct-23,5105893481,Northern Marking Limited,£516.85
Manchester City Council,Corporate Services,Works and associated costs for Land and Buildings,09-Oct-23,5105894384,Turner & Townsend Project,"£11,620.00"
Manchester City Council,Regeneration Finance,I T Provision,09-Oct-23,5105894729,Locata (Housing Services) Ltd,"£6,594.75"
Manchester City Council,Housing Revenue Account,Council Dwelling Fees,09-Oct-23,5105894613,Life Environmental Services,£820.00
Manchester City Council,Highways Services,Professional fees,09-Oct-23,5105894576,Symology Limited,"£20,284.41"
Manchester City Council,Manchester Leisure,Grant and subscriptions awarded,09-Oct-23,5105894727,Friends of Didsbury Park,£600.00
Manchester City Council,Manchester Leisure,Special Event,09-Oct-23,5105893905,Biffa Municipal Limited,£876.84
Manchester City Council,Manchester Leisure,Special Event,09-Oct-23,5105893904,Biffa Municipal Limited,"£1,093.63"
Manchester City Council,Childrens & Education Services,Hire of Premises,09-Oct-23,5105894414,Irish Town Manchester Ltd,-£500.00
Manchester City Council,Childrens & Education Services,Hire of Premises,09-Oct-23,5105894413,Irish Town Manchester Ltd,£500.00
Manchester City Council,Adult Social Care,Rents,09-Oct-23,5105894721,AJD Property Limited,"£10,802.86"
Manchester City Council,Chief Executives,Works and associated costs for Land and Buildings,09-Oct-23,5105894562,BMS Software (Northern) Ltd,"£38,480.00"
Manchester City Council,Adult Social Care,Rents,09-Oct-23,5105894592,Manchester Housing Group Ltd,£850.00
Manchester City Council,Chief Executives,Printing,09-Oct-23,5105894232,Impression (Bolton) Ltd,"£1,375.00"
Manchester City Council,Manchester Leisure,Professional fees,09-Oct-23,5105894732,Eville & Jones Commercial Services,"£7,635.68"
Manchester City Council,Hospitality + Trading Services,Vehicle Fuel Costs,09-Oct-23,5105894814,Standard Fuels Oils,"£13,140.46"
Manchester City Council,Regeneration Finance,Professional fees,09-Oct-23,5105894582,Alan Franklin Builders Limited,"£11,217.18"
Manchester City Council,Adult Social Care,Furniture,09-Oct-23,5105894567,Furniture Resource Centre Ltd,£508.05
Manchester City Council,Adult Social Care,Furniture,09-Oct-23,5105894784,Furniture Resource Centre Ltd,£990.15
Manchester City Council,Corporate Services,WPS Awards,09-Oct-23,5105894590,Furniture Resource Centre Ltd,£991.46
Manchester City Council,Corporate Services,WPS Awards,09-Oct-23,5105894788,Furniture Resource Centre Ltd,"£1,398.85"
Manchester City Council,Chief Executives,Printing,09-Oct-23,5105893465,Granicus-Firmstep Ltd,"£48,056.40"
Manchester City Council,Housing Revenue Account,Works and associated costs for Land and Buildings,09-Oct-23,5105894350,Warden Construction Ltd,"£52,425.26"
Manchester City Council,Chief Executives,Advertising,09-Oct-23,5105894737,Lawyers in Local Government,"£1,395.00"
Manchester City Council,Adult Social Care,Rents,09-Oct-23,5105894560,Houses4Homes 4U Ltd,"£9,026.00"
Manchester City Council,Adult Social Care,Security,09-Oct-23,5105894764,UNIQUE SPECIALIST SERVICES,"£1,404.00"
Manchester City Council,Corporate Services,Works and associated costs for Land and Buildings,09-Oct-23,5105894353,Bam Nuttall Ltd,"£606,225.23"
Manchester City Council,Manchester Leisure,Environmental Services,09-Oct-23,5105894772,CPD Property Services,£695.00
Manchester City Council,Libraries and Theatres,Works and associated costs for Land and Buildings,09-Oct-23,5105894438,Robertson Construction Group,"£160,842.31"
Manchester City Council,Childrens & Education Services,Professional fees,09-Oct-23,5105894540,Term2term Ltd,£950.00
Manchester City Council,Corporate Services,Surveys Fees other,09-Oct-23,5105894572,Shield Environmental Services,£695.00
Manchester City Council,Adult Social Care,Bed & Breakfast Acc,09-Oct-23,5105894804,247Hotel.Com,"£1,027.50"
Manchester City Council,Regeneration Finance,General Office expenses,09-Oct-23,5105894468,Bruntwood (Heron House),"£2,681.02"
Manchester City Council,Corporate Services,I T Provision,09-Oct-23,5105894209,ThinkProject UK Limited,"£2,250.00"
Manchester City Council,Childrens & Education Services,Professional fees,09-Oct-23,5105894758,Schelene Ferris School Consultant,"£1,187.50"
Manchester City Council,Housing Revenue Account,Council Dwelling Adaptations,09-Oct-23,5105894760,Knowsley Lift Services Limited,"£71,877.58"
Manchester City Council,Chief Executives,Hire of Equipment,09-Oct-23,5105894553,AVM Create Ltd,"£1,882.28"
Manchester City Council,Manchester Leisure,Special Event,09-Oct-23,5105894792,Andy Copps Storytelling,£500.00
Manchester City Council,Adult Social Care,Rents,09-Oct-23,5105894731,NWA Housing Ltd,"£1,185.80"
Manchester City Council,Manchester Leisure,Works and associated costs for Land and Buildings,09-Oct-23,1908243218,Lano Sport,"£41,634.85"
Manchester City Council,Chief Executives,Licences Purchase,09-Oct-23,5105894554,Verint Systems UK Ltd,"£9,160.00"
Manchester City Council,Adult Social Care,Rents,09-Oct-23,5105893480,Kaasuu Properties,"£3,520.00"
Manchester City Council,Corporate Services,I T Provision,09-Oct-23,5105893589,Govtech Solution Ltd,"£178,050.00"
Manchester City Council,Manchester Leisure,Compensation Payments,09-Oct-23,1908234217,Satchell Moran Solicitors Limited,"£7,000.00"
Manchester City Council,Adult Social Care,Funeral and coroner related services,09-Oct-23,1908243187,C.J Reilly Funeral Directors,"£5,750.00"
Manchester City Council,Manchester Leisure,Professional fees,09-Oct-23,1908242183,Tribe Talent Limited,£720.00
Manchester City Council,Manchester Leisure,Training and Development,09-Oct-23,1908232233,Phoenix Health and Safety,"£1,095.00"
Manchester City Council,Adult Social Care,Rents,09-Oct-23,1908242184,Glenthorpe Homes,"£11,270.00"
Manchester City Council,Adult Social Care,Furniture,09-Oct-23,1908219275,Johnnie Johnson Housing,"£6,211.00"
Manchester City Council,Adult Social Care,Legal Fees,09-Oct-23,1908239963,Rehabilitation for Independence,"£1,722.20"
Manchester City Council,Adult Social Care,Bed & Breakfast Acc,09-Oct-23,5105894584,Redacted Personal Information,"£11,016.00"
Manchester City Council,Manchester Leisure,Professional fees,09-Oct-23,1908232590,Redacted Personal Information,£782.00
Manchester City Council,Manchester Leisure,Responsive Repairs Work,09-Oct-23,1908243186,Redacted Personal Information,"£2,250.00"
Manchester City Council,Adult Social Care,Counsel Costs,09-Oct-23,1908238132,Redacted Personal Information,£562.50
Manchester City Council,Adult Social Care,Counsel Costs,09-Oct-23,1908233982,Redacted Personal Information,£825.00
Manchester City Council,Adult Social Care,Supporting People Payments,10-Oct-23,5105894965,People First Housing Association,"£13,833.27"
Manchester City Council,Adult Social Care,Supporting People Payments,10-Oct-23,5105895004,People First Housing Association,"£13,833.27"
Manchester City Council,Adult Social Care,Supporting People Payments,10-Oct-23,5105895005,People First Housing Association,"£13,833.27"
Manchester City Council,Childrens & Education Services,Payments for services,10-Oct-23,5105895015,Sense,£605.44
Manchester City Council,Hospitality + Trading Services,Vehicle Hire Costs,10-Oct-23,5105894859,F.R.Sharrock Ltd,"£5,612.00"
Manchester City Council,Regeneration Finance,Subsistence and Conference Expenses,10-Oct-23,5105894898,District Surveyors Associ. Ltd,£870.00
Manchester City Council,Regeneration Finance,Professional fees,10-Oct-23,5105894494,Ove Arup & Partners Ltd,"£46,112.00"
Manchester City Council,Manchester Leisure,Equipment,10-Oct-23,5105894798,Orbis Protect Ltd,"-£3,524.31"
Manchester City Council,Manchester Leisure,Equipment,10-Oct-23,5105894796,Orbis Protect Ltd,"£3,524.31"
Manchester City Council,Childrens & Education Services,Furniture,10-Oct-23,5105894601,Back Care Solutions Ltd,"£1,206.85"
Manchester City Council,Manchester Leisure,Refuse Collection,10-Oct-23,1908243209,GTS Steam Cleaners,£623.83
Manchester City Council,Manchester Leisure,Refuse Collection,10-Oct-23,5105894943,Ramora Ltd,"£4,980.00"
Manchester City Council,Regeneration Finance,Removal and Storage of Furniture,10-Oct-23,5105894599,Master Moves Ltd,£930.66
Manchester City Council,Chief Executives,Legal Fees,10-Oct-23,5105894931,Kings Chambers,"£1,500.00"
Manchester City Council,Chief Executives,Paper & Envelopes,10-Oct-23,5105894799,Premier Paper Group Ltd,£742.43
Manchester City Council,Hospitality + Trading Services,Cash Collection,10-Oct-23,1908241874,G4S Cash Solutions (Uk) Ltd,"£1,042.87"
Manchester City Council,Hospitality + Trading Services,Cash Collection,10-Oct-23,1908241873,G4S Cash Solutions (Uk) Ltd,"£2,240.00"
Manchester City Council,Adult Social Care,Third party payments relating to Voluntary Organisations,10-Oct-23,5105894418,Mosscare St Vincent's Housing,£500.00
Manchester City Council,Chief Executives,Third party payments relating to Voluntary Organisations,10-Oct-23,5105894538,HOME,"£105,699.50"
Manchester City Council,Corporate Services,Grant and subscriptions awarded,10-Oct-23,5105895042,Tameside Metropolitan Bouough,£767.75
Manchester City Council,Childrens & Education Services,Childminding Fee Pay,10-Oct-23,5105894876,Manchester Settlement,£744.70
Manchester City Council,Adult Social Care,Third party payments relating to Voluntary Organisations,10-Oct-23,5105894875,The Depaul Trust,"£10,603.50"
Manchester City Council,Regeneration Finance,Professional fees,10-Oct-23,5105894860,H.M. Land Registry,"£1,604.00"
Manchester City Council,Chief Executives,Occupational Health services,10-Oct-23,5105894392,Bennett Workplace Solutions Ltd,"£1,444.25"
Manchester City Council,Manchester Leisure,Payments to Sub-Contractors,10-Oct-23,5105894754,M247 UK Ltd,"£9,771.71"
Manchester City Council,Manchester Leisure,Payments to Sub-Contractors,10-Oct-23,5105894752,M247 UK Ltd,"£9,989.74"
Manchester City Council,Childrens & Education Services,Personal needs of client,10-Oct-23,5105894996,Phonak UK,"-£6,830.79"
Manchester City Council,Regeneration Finance,External repairs and maintenance for buildings,10-Oct-23,5105894881,United Utilities (Standpipes Only),"£3,280.85"
Manchester City Council,Childrens & Education Services,Professional fees,10-Oct-23,5105895011,The Monastery Manchester Ltd,"£1,143.76"
Manchester City Council,Adult Social Care,Rents,10-Oct-23,5105894897,Accommodation Links Ltd,£500.00
Manchester City Council,Regeneration Finance,Professional fees,10-Oct-23,5105894953,Jacobs UK Ltd,£700.93
Manchester City Council,Adult Social Care,Building Materials for direct delivery,10-Oct-23,5105894926,Illingworth Ingham (M/cR),"£1,108.00"
Manchester City Council,Chief Executives,Counsel Costs,10-Oct-23,5105894995,Cornerstone Barristers,"£1,648.65"
Manchester City Council,Chief Executives,Licences Purchase,10-Oct-23,5105894956,Trustmarque Solutions Ltd,"£1,000.00"
Manchester City Council,Regeneration Finance,Licences Purchase,10-Oct-23,5105894930,Trustmarque Solutions Ltd,"£6,987.00"
Manchester City Council,Chief Executives,Agency staff provision,10-Oct-23,5105894954,Ashberry Recruitment Ltd,"£1,968.30"
Manchester City Council,Adult Social Care,Third party payments relating to Voluntary Organisations,10-Oct-23,5105894949,Connect Support Ltd,"£35,000.00"
Manchester City Council,Childrens & Education Services,Professional fees,10-Oct-23,5105894830,Alpha Biolaboratories Limited,"£1,817.80"
Manchester City Council,Corporate Services,Elec Car L-VAT contr,10-Oct-23,1908243201,Northumbria Healthcare NHS FT,£760.37
Manchester City Council,Corporate Services,Elec Car L-VAT contr,10-Oct-23,1908243202,Northumbria Healthcare NHS FT,"£2,763.19"
Manchester City Council,Corporate Services,Elec Car Lease,10-Oct-23,1908243201,Northumbria Healthcare NHS FT,"£8,559.85"
Manchester City Council,Corporate Services,Elec Car Lease,10-Oct-23,1908243202,Northumbria Healthcare NHS FT,"£31,172.50"
Manchester City Council,Adult Social Care,Third party payments relating to Voluntary Organisations,10-Oct-23,5105894987,Together Dementia Support,"£10,000.00"
Manchester City Council,Adult Social Care,Third party payments relating to Voluntary Organisations,10-Oct-23,5105894986,Together Dementia Support,"£24,500.00"
Manchester City Council,Adult Social Care,Counsel Costs,10-Oct-23,5105894999,Lincoln House Chambers,"£3,900.00"
Manchester City Council,Manchester Leisure,ICT Sup & Maintnance,10-Oct-23,5105894882,Aareon UK Ltd,"£12,400.97"
Manchester City Council,Childrens & Education Services,Third party payments to other Local Authorities,10-Oct-23,5105894992,Laurus Cheadle Hulme,"£2,605.00"
Manchester City Council,Housing General Fund,Building Works,10-Oct-23,5105894849,One Manchester Limited,"£195,488.10"
Manchester City Council,Manchester Leisure,Professional fees,10-Oct-23,5105894899,UPS Building & Maintenance Ltd,"£10,278.04"
Manchester City Council,Adult Social Care,Rents,10-Oct-23,5105894874,T15 Consultancy Ltd,"£137,745.71"
Manchester City Council,Childrens & Education Services,Third party payments to other Local Authorities,10-Oct-23,5105894904,Lum Head Primary School,"£2,605.00"
Manchester City Council,Adult Social Care,Rents,10-Oct-23,5105894847,K L Properties,"£16,771.00"
Manchester City Council,Childrens & Education Services,Transport Coach Hire,10-Oct-23,5105894842,Sumi Travel Ltd.,"£15,718.00"
Manchester City Council,Adult Social Care,Payments for services,10-Oct-23,5105894828,Kaleidoscope Project,"£5,320.00"
Manchester City Council,Hospitality + Trading Services,Equipment,10-Oct-23,5105894807,Manke Markets UK Ltd,"£49,086.50"
Manchester City Council,Adult Social Care,Rents,10-Oct-23,5105894838,District Homes Cic,"£3,423.92"
Manchester City Council,Regeneration Finance,Water - Metered,10-Oct-23,5105894858,Suez Recycling and,"£3,461.82"
Manchester City Council,Adult Social Care,Grant and subscriptions awarded,10-Oct-23,5105895054,On The Out CIC,"£2,147.58"
Manchester City Council,Adult Social Care,Grant and subscriptions awarded,10-Oct-23,5105895040,On The Out CIC,"£3,113.60"
Manchester City Council,Adult Social Care,Grant and subscriptions awarded,10-Oct-23,5105895051,On The Out CIC,"£20,985.58"
Manchester City Council,Hospitality + Trading Services,Vehicle Fuel Costs,10-Oct-23,5105894902,Standard Fuels Oils,"£13,790.49"
Manchester City Council,Childrens & Education Services,I T Provision,10-Oct-23,5105895046,Allied Publicity Services (M\cr) Lt,"£2,029.45"
Manchester City Council,Childrens & Education Services,Professional fees,10-Oct-23,5105894938,National Association of VSH,£750.00
Manchester City Council,Adult Social Care,Bed & Breakfast Acc,10-Oct-23,5105894871,Hala Guest House,£750.00
Manchester City Council,Corporate Services,WPS Awards,10-Oct-23,5105895041,Furniture Resource Centre Ltd,£756.09
Manchester City Council,Corporate Services,WPS Awards,10-Oct-23,5105894869,Furniture Resource Centre Ltd,£933.21
Manchester City Council,Corporate Services,WPS Awards,10-Oct-23,5105894895,Furniture Resource Centre Ltd,"£1,183.35"
Manchester City Council,Childrens & Education Services,Payments for services,10-Oct-23,5105895053,Thompsons Academy Ltd,"£16,818.18"
Manchester City Council,Childrens & Education Services,Professional fees,10-Oct-23,5105893399,Julie Stirpe Associates Ltd,£750.00
Manchester City Council,Adult Social Care,Payments for services,10-Oct-23,5105894534,Morelife (UK) Ltd,"£13,466.67"
Manchester City Council,Adult Social Care,Payments for services,10-Oct-23,5105894533,Morelife (UK) Ltd,"£41,130.25"
Manchester City Council,Adult Social Care,Third party payments relating to Voluntary Organisations,10-Oct-23,5105894770,Lives on Track,"£2,500.00"
Manchester City Council,Childrens & Education Services,Payments for services,10-Oct-23,5105895024,Mill School,"-£15,666.67"
Manchester City Council,Childrens & Education Services,Third party payments to other Local Authorities,10-Oct-23,5105895023,Mill School,"£6,283.36"
Manchester City Council,Childrens & Education Services,Third party payments to other Local Authorities,10-Oct-23,5105895021,Mill School,"£19,897.33"
Manchester City Council,Regeneration Finance,External repairs and maintenance for buildings,10-Oct-23,5105895032,SMS Solar Maintenance Services,"£15,267.79"
Manchester City Council,Childrens & Education Services,Grant Payments,10-Oct-23,1908243212,Paypoint,"£11,933.80"
Manchester City Council,Manchester Leisure,Contract Cleaning External,10-Oct-23,5105894831,aAFD Services Ltd,"£1,453.56"
Manchester City Council,Childrens & Education Services,Training and Development,10-Oct-23,5105895019,Simon Hunter Education Consultant,"£1,250.00"
Manchester City Council,Corporate Services,Professional fees,10-Oct-23,5105894848,Loop Systems Ltd,£700.00
Manchester City Council,Manchester Leisure,External repairs and maintenance for buildings,10-Oct-23,5105894865,Sants Fabrications Ltd,"£3,995.00"
Manchester City Council,Adult Social Care,Rents,10-Oct-23,5105894957,NWA Housing Ltd,"£1,245.09"
Manchester City Council,Adult Social Care,Furniture,10-Oct-23,5105894951,Rtech Group Limited,"£2,679.17"
Manchester City Council,Adult Social Care,Furniture,10-Oct-23,5105894836,Rtech Group Limited,"£6,695.83"
Manchester City Council,Regeneration Finance,Professional fees,10-Oct-23,5105894905,Core Special Projects Ltd,"£10,000.00"
Manchester City Council,Chief Executives,Training and Development,10-Oct-23,5105894886,ASK Europe Limited,£750.00
Manchester City Council,Corporate Services,Professional fees,10-Oct-23,5105894769,RW Joinery,"£2,175.00"
Manchester City Council,Highways Services,Professional fees,10-Oct-23,5105894993,BWB Consulting Ltd,"£11,600.00"
Manchester City Council,Adult Social Care,Furniture,10-Oct-23,5105894998,The Whiteluck Group,"£9,600.00"
Manchester City Council,Highways Services,Compensation Payments,10-Oct-23,1908243203,Aegis Legal Limited,"£8,000.00"
Manchester City Council,Highways Services,Compensation Payments,10-Oct-23,1908243192,Department For Communities,£766.00
Manchester City Council,Corporate Services,Compensation Payments,10-Oct-23,1908243206,Holdings Matrix Ltd,"£4,250.00"
Manchester City Council,Highways Services,Compensation Payments,10-Oct-23,1908243196,SSB Law,"£4,000.00"
Manchester City Council,Manchester Leisure,Compensation Payments,10-Oct-23,1908243216,Veritas Solicitors LLP,"£2,400.00"
Manchester City Council,Insurance Fund,Insurance,10-Oct-23,1908243208,Aequitas Legal,"£50,000.00"
Manchester City Council,Chief Executives,Internet access,10-Oct-23,1700158745,AIS PROJECTS LIMITED,"-£3,456.00"
Manchester City Council,Adult Social Care,Rents,10-Oct-23,1908243505,GLENTHORPE HOMES,£646.54
Manchester City Council,Highways Services,Legal Fees,10-Oct-23,1908243203,Aegis Legal Limited,"£4,416.00"
Manchester City Council,Chief Executives,Legal Fees,10-Oct-23,1908243194,Declan LG Hall,"£1,625.00"
Manchester City Council,Highways Services,Legal Fees,10-Oct-23,1908243214,SSB Law,"£2,640.00"
Manchester City Council,Adult Social Care,Bed & Breakfast Acc,10-Oct-23,5105894863,Redacted Personal Information,"£1,090.00"
Manchester City Council,Adult Social Care,Bed & Breakfast Acc,10-Oct-23,5105894820,Redacted Personal Information,"£1,380.00"
Manchester City Council,Corporate Services,Compensation Payments,10-Oct-23,1908243211,Redacted Personal Information,"£3,500.00"
Manchester City Council,Manchester Leisure,Grant and subscriptions awarded,11-Oct-23,5105894056,Oldham Borough Council,"£10,905.29"
Manchester City Council,Childrens & Education Services,Payments for services,11-Oct-23,5105895157,The Together Trust,"£3,972.73"
Manchester City Council,Housing Revenue Account,Council Dwelling Adaptations,11-Oct-23,5105895199,Pollock Lifts Ltd,£550.00
Manchester City Council,Chief Executives,Agency staff provision,11-Oct-23,5105895057,NES UK Limited,"£25,263.16"
Manchester City Council,Chief Executives,Advertising,11-Oct-23,5105895187,Landor Links Limited,£795.00
Manchester City Council,Manchester Leisure,Hire of Equipment,11-Oct-23,5105895197,Flowbird Smart City Uk Ltd,£930.00
Manchester City Council,Regeneration Finance,External repairs and maintenance for buildings,11-Oct-23,5105895108,D H Welton & Co Ltd,£789.00
Manchester City Council,Manchester Leisure,Hire of Equipment,11-Oct-23,5105894723,William G.Search Ltd,"£1,300.00"
Manchester City Council,Manchester Leisure,Hire of Equipment,11-Oct-23,5105894722,William G.Search Ltd,"£2,410.00"
Manchester City Council,Chief Executives,Hire of Equipment,11-Oct-23,5105895056,Jigsaw Systems Limited,"£6,050.00"
Manchester City Council,Chief Executives,Hire of Equipment,11-Oct-23,5105895037,Jigsaw Systems Limited,"£10,769.40"
Manchester City Council,Environment and Operations,Construction Works,11-Oct-23,5105895099,Bethell Construction Ltd,"£106,829.55"
Manchester City Council,Environment and Operations,Construction Works,11-Oct-23,5105895100,Bethell Construction Ltd,"£147,860.47"
Manchester City Council,Highways Services,Payments to Sub-Contractors,11-Oct-23,5105895113,Utilities Design & Planning Ltd,"-£2,000.00"
Manchester City Council,Highways Services,Payments to Sub-Contractors,11-Oct-23,5105895114,Utilities Design & Planning Ltd,"£2,000.00"
Manchester City Council,Adult Social Care,Third party payments relating to Voluntary Organisations,11-Oct-23,5105895103,Sanctuary Housing Association,"£25,881.24"
Manchester City Council,Corporate Services,I T Provision,11-Oct-23,5105895029,Capita Business Services Ltd,"£21,560.00"
Manchester City Council,Corporate Services,Licences Purchase,11-Oct-23,5105895030,Capita Business Services Ltd,"£7,910.87"
Manchester City Council,Chief Executives,Agency staff provision,11-Oct-23,5105895192,Adecco Uk Ltd,"£1,685.40"
Manchester City Council,Chief Executives,Agency staff provision,11-Oct-23,5105895191,Adecco Uk Ltd,"£2,000.00"
Manchester City Council,Childrens Services,Works and associated costs for Land and Buildings,11-Oct-23,5105893854,J Greenwood (Builders) Limited,"£240,873.66"
Manchester City Council,Manchester Leisure,Equipment,11-Oct-23,5105895063,Rigby Taylor Ltd,£975.05
Manchester City Council,Chief Executives,Agency staff provision,11-Oct-23,5105895165,Search Consultancy Ltd,"£3,290.84"
Manchester City Council,Adult Social Care,Payments for services,11-Oct-23,5105895105,Standwalk Ltd,"£349,370.41"
Manchester City Council,Highways Services,Third party payments to other Local Authorities,11-Oct-23,5105894559,Trafford College,"£3,600.00"
Manchester City Council,Manchester Leisure,Building Materials for direct delivery,11-Oct-23,5105895058,Arboricultural Services Treework,£500.00
Manchester City Council,Manchester Leisure,Payments to Sub-Contractors,11-Oct-23,5105895059,Arboricultural Services Treework,"£6,980.00"
Manchester City Council,Regeneration Finance,Grounds Maintenance,11-Oct-23,5105894492,Arboricultural Services Treework,£600.00
Manchester City Council,Corporate Services,Professional fees,11-Oct-23,5105895111,Civica UK Ltd,"£12,367.00"
Manchester City Council,Childrens & Education Services,Third party payments relating to Voluntary Organisations,11-Oct-23,5105895048,Central Mcr Uni Hospital t/a,"£117,382.65"
Manchester City Council,Adult Social Care,Third party payments to Health Authority,11-Oct-23,5105895232,Central Mcr Uni Hospital t/a,"£3,040.58"
Manchester City Council,Adult Social Care,Third party payments to Health Authority,11-Oct-23,5105895234,Central Mcr Uni Hospital t/a,"£15,972.75"
Manchester City Council,Manchester Leisure,Grant and subscriptions awarded,11-Oct-23,5105894955,Tameside Metropolitan Bouough,"£10,920.19"
Manchester City Council,Manchester Leisure,Grant and subscriptions awarded,11-Oct-23,5105894134,Bolton Mbc,"£10,187.06"
Manchester City Council,Regeneration Finance,Expenditure re Internal Trading Ordered Externally,11-Oct-23,5105895112,People's History Museum,"£1,300.00"
Manchester City Council,Environment and Operations,Construction Works,11-Oct-23,5105894223,Salford City Council,"£4,386.74"
Manchester City Council,Chief Executives,Grant and subscriptions awarded,11-Oct-23,5105895180,Manchester Jazz Festival,"£6,689.25"
Manchester City Council,Chief Executives,Printing,11-Oct-23,5105895062,Chapel Press Ltd,"£4,658.00"
Manchester City Council,Manchester Leisure,Grant and subscriptions awarded,11-Oct-23,5105895130,Contact Theatre Company,"£5,000.00"
Manchester City Council,Housing Revenue Account,Council Dwelling Adaptations,11-Oct-23,5105895211,British Gas Social Housing Ltd,£636.73
Manchester City Council,Housing Revenue Account,Council Dwelling Adaptations,11-Oct-23,5105895212,British Gas Social Housing Ltd,"£2,269.09"
Manchester City Council,Adult Social Care,I T Provision,11-Oct-23,5105895082,The Booth Centre,£564.00
Manchester City Council,Chief Executives,Advertising,11-Oct-23,5105895161,Chartered Institute Legal Exec's,£980.00
Manchester City Council,Chief Executives,ICT Sup & Maintnance,11-Oct-23,5105894974,Insight Direct (Uk) Ltd,£946.80
Manchester City Council,Chief Executives,ICT Sup & Maintnance,11-Oct-23,5105894879,Insight Direct (Uk) Ltd,"£4,040.25"
Manchester City Council,Housing Revenue Account,Council Dwelling Adaptations,11-Oct-23,5105895116,Pts Plumbing Trade Supplies,"£2,397.23"
Manchester City Council,Housing Revenue Account,Council Dwelling Adaptations,11-Oct-23,5105895118,Pts Plumbing Trade Supplies,"£2,409.47"
Manchester City Council,Housing Revenue Account,Council Dwelling Adaptations,11-Oct-23,5105895117,Pts Plumbing Trade Supplies,"£2,524.75"
Manchester City Council,Housing Revenue Account,Council Dwelling Adaptations,11-Oct-23,5105895115,Pts Plumbing Trade Supplies,"£4,365.94"
Manchester City Council,Housing Revenue Account,Council Dwelling Adaptations,11-Oct-23,5105895119,Pts Plumbing Trade Supplies,"£6,030.78"
Manchester City Council,Adult Social Care,Equipment,11-Oct-23,5105895173,Drive Devilbiss Healthcare Ltd,£905.00
Manchester City Council,Manchester Leisure,Library Materials Acquisition,11-Oct-23,1908245260,Peters Bookselling Services,"£1,299.80"
Manchester City Council,Manchester Leisure,Library Materials Acquisition,11-Oct-23,1908245259,Peters Bookselling Services,"£1,453.40"
Manchester City Council,Chief Executives,Advertising,11-Oct-23,5105895162,Bay Media,"£4,662.00"
Manchester City Council,Manchester Leisure,External repairs and maintenance for buildings,11-Oct-23,5105894604,Keebuilders Uk Ltd,"£7,120.00"
Manchester City Council,Manchester Leisure,Hire of Equipment,11-Oct-23,5105894766,FTS Event Power Ltd,"£4,205.00"
Manchester City Council,Chief Executives,Legal Fees,11-Oct-23,5105895069,Weightmans LLP Solicitors,"£5,182.75"
Manchester City Council,Highways Services,Professional fees,11-Oct-23,5105895098,Wilde Consultants Ltd,"£30,196.91"
Manchester City Council,Highways Services,Professional fees,11-Oct-23,5105894739,Wilde Consultants Ltd,"£6,624.00"
Manchester City Council,Highways Services,Professional fees,11-Oct-23,5105894916,Wilde Consultants Ltd,"£6,624.00"
Manchester City Council,Chief Executives,Grant and subscriptions awarded,11-Oct-23,5105895177,Castlefield Gallery Limited,"£4,905.45"
Manchester City Council,Highways Services,Payments to Sub-Contractors,11-Oct-23,5105895153,Steer Davies & Geave Limited,"£3,021.02"
Manchester City Council,Highways Services,Payments to Sub-Contractors,11-Oct-23,5105895152,Steer Davies & Geave Limited,"£3,472.00"
Manchester City Council,Childrens & Education Services,Legal Fees,11-Oct-23,5105895206,11KBW,"£1,724.38"
Manchester City Council,Adult Social Care,I T Provision,11-Oct-23,5105894569,Percy Westhead & Company,"£7,910.00"
Manchester City Council,Manchester Leisure,Grant and subscriptions awarded,11-Oct-23,5105895071,Manchester Youth Zone,"£51,250.00"
Manchester City Council,Manchester Leisure,Grant and subscriptions awarded,11-Oct-23,5105895086,St James & Emmanuel PCC Didsbury,£948.00
Manchester City Council,Manchester Leisure,Grant and subscriptions awarded,11-Oct-23,5105895110,NOMS,"£60,000.00"
Manchester City Council,Manchester Leisure,Grant and subscriptions awarded,11-Oct-23,5105895141,NOMS,"£60,000.00"
Manchester City Council,Hospitality + Trading Services,Machinery and equipment repairs,11-Oct-23,5105895142,Gibsons Garden Machinery Limited,"-£2,169.28"
Manchester City Council,Hospitality + Trading Services,Machinery and equipment repairs,11-Oct-23,5105895144,Gibsons Garden Machinery Limited,"-£2,169.28"
Manchester City Council,Hospitality + Trading Services,Machinery and equipment repairs,11-Oct-23,5105895143,Gibsons Garden Machinery Limited,"£2,169.28"
Manchester City Council,Hospitality + Trading Services,Machinery and equipment repairs,11-Oct-23,5105895145,Gibsons Garden Machinery Limited,"£2,169.28"
Manchester City Council,Chief Executives,Rents,11-Oct-23,5105893933,ANS Group PLC,"£50,020.00"
Manchester City Council,Childrens & Education Services,Professional fees,11-Oct-23,5105895209,Cornerstone Design and Marketing,£600.00
Manchester City Council,Manchester Leisure,Responsive Repairs Work,11-Oct-23,5105894884,EQUANS Regeneration Limited,"£21,792.82"
Manchester City Council,Manchester Leisure,Responsive Repairs Work,11-Oct-23,5105894887,EQUANS Regeneration Limited,"£87,485.21"
Manchester City Council,Chief Executives,Advertising,11-Oct-23,5105895135,HB Editorial Service Ltd,"£4,045.50"
Manchester City Council,Adult Social Care,Rents,11-Oct-23,5105895020,Eeven Homes Ltd.,"£17,436.00"
Manchester City Council,Adult Social Care,Third party payments relating to Voluntary Organisations,11-Oct-23,5105895050,District Homes Cic,"£65,413.89"
Manchester City Council,Adult Social Care,Furniture,11-Oct-23,5105895089,Furniture Resource Centre Ltd,£702.40
Manchester City Council,Corporate Services,WPS Awards,11-Oct-23,5105895132,Furniture Resource Centre Ltd,£503.82
Manchester City Council,Corporate Services,WPS Awards,11-Oct-23,5105895129,Furniture Resource Centre Ltd,£594.22
Manchester City Council,Corporate Services,WPS Awards,11-Oct-23,5105895222,Furniture Resource Centre Ltd,£647.92
Manchester City Council,Childrens & Education Services,Payments for services,11-Oct-23,5105895101,Thompsons Academy Ltd,"£32,365.91"
Manchester City Council,Childrens & Education Services,Third party payments to other Local Authorities,11-Oct-23,5105895200,Fairfield Road Primary School,"£7,770.00"
Manchester City Council,Manchester Leisure,Payments to Sub-Contractors,11-Oct-23,5105894060,Idverde Limited,"£3,985.10"
Manchester City Council,Adult Social Care,I T Provision,11-Oct-23,5105895065,Access UK Ltd,"£5,702.29"
Manchester City Council,Adult Social Care,I T Provision,11-Oct-23,5105895066,Access UK Ltd,"£5,766.32"
Manchester City Council,Adult Social Care,I T Provision,11-Oct-23,5105895064,Access UK Ltd,"£11,317.90"
Manchester City Council,Adult Social Care,Third party payments relating to Voluntary Organisations,11-Oct-23,5105894227,VoiceAbility,"£204,912.50"
Manchester City Council,Childrens & Education Services,Third party payments to other Local Authorities,11-Oct-23,5105895061,The Laurus Trust,"£5,209.00"
Manchester City Council,Manchester Leisure,Grant and subscriptions awarded,11-Oct-23,5105895097,Community on Solid Ground,"£12,500.00"
Manchester City Council,Manchester Leisure,Environmental Services,11-Oct-23,5105895184,CPD Property Services,£775.00
Manchester City Council,Manchester Leisure,Environmental Services,11-Oct-23,5105895183,CPD Property Services,£795.00
Manchester City Council,Chief Executives,Counsel Costs,11-Oct-23,1908243533,DEANS COURT CHAMBERS,"£1,080.00"
Manchester City Council,Childrens & Education Services,Professional fees,11-Oct-23,5105894768,WALKING TOGETHER,£660.00
Manchester City Council,Adult Social Care,Bed & Breakfast Acc,11-Oct-23,5105895096,Parkview Residence,"£31,130.00"
Manchester City Council,Adult Social Care,Bed & Breakfast Acc,11-Oct-23,5105895067,VSP BEAUCLIFFE LTD,"£108,600.00"
Manchester City Council,Manchester Leisure,Grant and subscriptions awarded,11-Oct-23,5105895104,Drawing Board Productions,"£1,500.00"
Manchester City Council,Corporate Services,Professional fees,11-Oct-23,5105894500,Perry's Pantry Foodbank,"£1,000.00"
Manchester City Council,Childrens & Education Services,Grant and subscriptions awarded,11-Oct-23,5105894997,The Movez Movement,"£2,697.50"
Manchester City Council,Corporate Services,Professional fees,11-Oct-23,5105895106,Rachel Hacking Ecology Limited,£675.00
Manchester City Council,Manchester Leisure,Professional fees,11-Oct-23,1908238127,Hann Tucker Associates,"£1,632.00"
Manchester City Council,Manchester Leisure,Professional fees,11-Oct-23,1908238125,Balraj Samrai,"£1,400.00"
Manchester City Council,Childrens & Education Services,Electricity,11-Oct-23,1908231646,POZITIVE ENERGY LTD,"£1,285.68"
Manchester City Council,Adult Social Care,Rents,11-Oct-23,1908245440,Cheung Kong Asset Management Ltd,"£1,000.00"
Manchester City Council,Adult Social Care,Rents,11-Oct-23,1908245441,Cheung Kong Asset Management Ltd,"£1,490.00"
Manchester City Council,Adult Social Care,Furniture,11-Oct-23,1908245440,Cheung Kong Asset Management Ltd,"£1,500.00"
Manchester City Council,Adult Social Care,Furniture,11-Oct-23,1908245441,Cheung Kong Asset Management Ltd,"£2,250.00"
Manchester City Council,Manchester Leisure,Legal Fees,11-Oct-23,1908241900,Russell Worth Limited,"£7,124.00"
Manchester City Council,Corporate Services,MABID,11-Oct-23,1908239798,Manchester Accommodation Business,"£69,260.52"
Manchester City Council,Corporate Services,MABID,11-Oct-23,1908239797,Manchester Accommodation Business,"£174,217.57"
Manchester City Council,Childrens & Education Services,Transport Coach Hire,11-Oct-23,5105894496,Redacted Personal Information,"£24,264.00"
Manchester City Council,Manchester Leisure,Special Event,11-Oct-23,5105894854,Redacted Personal Information,"£1,000.00"
Manchester City Council,Adult Social Care,Rents,11-Oct-23,1908245444,Redacted Personal Information,"£3,330.00"
Manchester City Council,Adult Social Care,Rents,11-Oct-23,1908245445,Redacted Personal Information,"£3,330.00"
Manchester City Council,Adult Social Care,Rents,11-Oct-23,1908245446,Redacted Personal Information,"£3,330.00"
Manchester City Council,Adult Social Care,Rents,11-Oct-23,1908245443,Redacted Personal Information,"£3,330.00"
Manchester City Council,Adult Social Care,Housing Rents Debit,11-Oct-23,1908228263,Redacted Personal Information,"£1,663.60"
Manchester City Council,Adult Social Care,Housing Rents Debit,11-Oct-23,1908232816,Redacted Personal Information,£822.93
Manchester City Council,Childrens & Education Services,Payments for services,12-Oct-23,5105895323,The Together Trust,"£11,815.91"
Manchester City Council,Childrens & Education Services,Payments for services,12-Oct-23,5105895324,The Together Trust,"£12,298.01"
Manchester City Council,Childrens & Education Services,Payments for services,12-Oct-23,5105895325,The Together Trust,"£41,386.80"
Manchester City Council,Childrens & Education Services,Payments for services,12-Oct-23,5105895367,The Together Trust,"£78,760.96"
Manchester City Council,Corporate Services,Postage,12-Oct-23,5105893939,Royal Mail Group Plc,"£10,798.05"
Manchester City Council,Chief Executives,Agency staff provision,12-Oct-23,5105895294,Gatenby Sanderson,"£3,620.00"
Manchester City Council,Regeneration Finance,Third party payments relating to Voluntary Organisations,12-Oct-23,5105895348,Manchester Deaf Centre Ltd,"£5,120.00"
Manchester City Council,Corporate Services,Works and associated costs for Land and Buildings,12-Oct-23,5105895431,BCL,£685.20
Manchester City Council,Adult Social Care,Equipment,12-Oct-23,5105895272,Sarabec Limited,"£1,175.02"
Manchester City Council,Adult Social Care,Equipment,12-Oct-23,5105895414,RNIB,£504.00
Manchester City Council,Adult Social Care,Equipment,12-Oct-23,5105895415,RNIB,£562.50
Manchester City Council,Housing General Fund,Works and associated costs for Land and Buildings,12-Oct-23,5105895372,Wates Construction Ltd,"£911,609.17"
Manchester City Council,Chief Executives,Equipment Operating Lease,12-Oct-23,5105895394,Xerox Finance Ltd,"£4,239.61"
Manchester City Council,Manchester Leisure,I T Provision,12-Oct-23,5105895284,BT PLC,"£3,594.77"
Manchester City Council,Childrens & Education Services,Third party payments to other Local Authorities,12-Oct-23,5105895366,The Manchester College,"£43,425.00"
Manchester City Council,Adult Social Care,Third party payments relating to Voluntary Organisations,12-Oct-23,5105894347,Age Concern Manchester,"£7,500.00"
Manchester City Council,Adult Social Care,Third party payments relating to Voluntary Organisations,12-Oct-23,5105894348,Age Concern Manchester,"£14,500.00"
Manchester City Council,Manchester Leisure,Refuse Collection,12-Oct-23,5105895003,Ramora Ltd,"£2,432.78"
Manchester City Council,Hospitality + Trading Services,Hire of Machinery,12-Oct-23,5105895391,R & M Developments Ltd,"£1,073.50"
Manchester City Council,Hospitality + Trading Services,Hire of Machinery,12-Oct-23,5105895392,R & M Developments Ltd,"£1,073.50"
Manchester City Council,Highways Services,Professional fees,12-Oct-23,5105894052,Mace Ltd,"£7,009.80"
Manchester City Council,Highways Services,Professional fees,12-Oct-23,5105894053,Mace Ltd,"£7,269.00"
Manchester City Council,Highways Services,Professional fees,12-Oct-23,5105894051,Mace Ltd,"£7,632.45"
Manchester City Council,Highways Services,Professional fees,12-Oct-23,5105894049,Mace Ltd,"£10,934.76"
Manchester City Council,Highways Services,Professional fees,12-Oct-23,5105894047,Mace Ltd,"£11,196.00"
Manchester City Council,Manchester Leisure,Library Materials Acquisition,12-Oct-23,1908246034,Askews and Holts,£531.93
Manchester City Council,Manchester Leisure,Library Materials Acquisition,12-Oct-23,1908246031,Askews and Holts,£534.16
Manchester City Council,Childrens & Education Services,General Payments not otherwise categorised,12-Oct-23,5105895242,Mosscare Housing Ltd,"£5,770.40"
Manchester City Council,Regeneration Finance,Contract Cleaning External,12-Oct-23,5105895274,M & M Cleaning Services Ltd,"£1,235.21"
Manchester City Council,Manchester Leisure,Library Materials Acquisition,12-Oct-23,1908246040,Azhar Enterprises Ltd,"£1,017.50"
Manchester City Council,Chief Executives,Funeral and coroner related services,12-Oct-23,5105895264,Northern Care Alliance NHS FT,"£1,644.00"
Manchester City Council,Highways Services,Grant Payments,12-Oct-23,1908245424,Bike Right,"£48,568.00"
Manchester City Council,Manchester Leisure,Grant and subscriptions awarded,12-Oct-23,5105895374,M13 Youth Project,"£31,250.00"
Manchester City Council,Manchester Leisure,Professional fees,12-Oct-23,5105894370,Wythenshawe Forum Trust Ltd,"£36,300.00"
Manchester City Council,Manchester Leisure,Professional fees,12-Oct-23,5105894532,Wythenshawe Forum Trust Ltd,"£72,600.00"
Manchester City Council,Adult Social Care,Rents,12-Oct-23,5105895240,Amco Management,"£42,909.51"
Manchester City Council,Manchester Leisure,Grant and subscriptions awarded,12-Oct-23,5105894129,Bury M.B.C.,"£10,861.25"
Manchester City Council,Manchester Leisure,Goods purchased for resale in Council outlets,12-Oct-23,5105895253,Cornflower Ltd,"£1,440.00"
Manchester City Council,Regeneration Finance,"Consumable items eg Toilet rolls, soap etc",12-Oct-23,5105895219,Wilkinson Bros,£920.00
Manchester City Council,Adult Social Care,Payments for services,12-Oct-23,5105894781,Littdale Hall Therpeutic Comm. Ltd,"£2,800.00"
Manchester City Council,Childrens & Education Services,Third party payments to other Local Authorities,12-Oct-23,5105895322,Manor Academy,"£33,893.96"
Manchester City Council,Adult Social Care,Legal Fees,12-Oct-23,5105895220,Gray's Inn Square Chambers Ltd,"£1,750.00"
Manchester City Council,Childrens & Education Services,Day Care Payments,12-Oct-23,5105895381,Tiddlywinks Day Nursery Ltd,"£2,718.20"
Manchester City Council,Chief Executives,Postage,12-Oct-23,5105895393,Whistl North Ltd,"£5,489.28"
Manchester City Council,Regeneration Finance,Licences Purchase,12-Oct-23,5105894901,Argus Software UK Ltd,"£3,300.00"
Manchester City Council,Regeneration Finance,Professional fees,12-Oct-23,5105894850,Jacobs UK Ltd,"£51,865.00"
Manchester City Council,Chief Executives,Professional fees,12-Oct-23,1908235065,Advanced Child Care Assessments,"£1,960.80"
Manchester City Council,Manchester Leisure,Works and associated costs for Land and Buildings,12-Oct-23,5105895376,ISG Construction Limited,"£957,148.94"
Manchester City Council,Chief Executives,Legal Fees,12-Oct-23,5105895271,39 Essex Street Chambers,£875.00
Manchester City Council,Regeneration Finance,External repairs and maintenance for buildings,12-Oct-23,5105894568,EQUANS Regeneration Limited,"£9,000.00"
Manchester City Council,Childrens Services,Works and associated costs for Land and Buildings,12-Oct-23,5105893861,EQUANS Regeneration Limited,"£108,337.61"
Manchester City Council,Childrens & Education Services,Subsistence and Conference Expenses,12-Oct-23,5105894561,Career Connect,"£62,311.76"
Manchester City Council,Childrens & Education Services,Stationery,12-Oct-23,5105895375,Signis Group,"£5,050.00"
Manchester City Council,Manchester Leisure,"Consumable items eg Toilet rolls, soap etc",12-Oct-23,5105893895,Biffa Municipal Limited,"£3,750.00"
Manchester City Council,Manchester Leisure,Contract Cleaning External,12-Oct-23,5105893894,Biffa Municipal Limited,"£4,333.33"
Manchester City Council,Manchester Leisure,Payments to Contractors,12-Oct-23,5105893878,Biffa Municipal Limited,"£221,814.06"
Manchester City Council,Manchester Leisure,Payments to Sub-Contractors,12-Oct-23,5105893890,Biffa Municipal Limited,"£29,032.83"
Manchester City Council,Manchester Leisure,Refuse Collection,12-Oct-23,5105893896,Biffa Municipal Limited,"£8,472.92"
Manchester City Council,Manchester Leisure,Refuse Collection,12-Oct-23,5105893899,Biffa Municipal Limited,"£9,927.85"
Manchester City Council,Manchester Leisure,Refuse Collection,12-Oct-23,5105893897,Biffa Municipal Limited,"£15,103.25"
Manchester City Council,Manchester Leisure,Refuse Collection,12-Oct-23,5105893885,Biffa Municipal Limited,"£56,606.56"
Manchester City Council,Manchester Leisure,Refuse Collection,12-Oct-23,5105893876,Biffa Municipal Limited,"£1,397,669.24"
Manchester City Council,Manchester Leisure,Reuse credits,12-Oct-23,5105893891,Biffa Municipal Limited,"£2,275.00"
Manchester City Council,Manchester Leisure,Reuse credits,12-Oct-23,5105893888,Biffa Municipal Limited,"£3,975.00"
Manchester City Council,Manchester Leisure,Reuse credits,12-Oct-23,5105893892,Biffa Municipal Limited,"£5,166.67"
Manchester City Council,Adult Social Care,Professional fees,12-Oct-23,5105895339,JLA Total Care Ltd,£788.00
Manchester City Council,Adult Social Care,Professional fees,12-Oct-23,5105895339,JLA Total Care Ltd,"£5,732.00"
Manchester City Council,Adult Social Care,Grant and subscriptions awarded,12-Oct-23,5105895405,Stepping Stone Projects,"£1,100.00"
Manchester City Council,Adult Social Care,Personal needs of client,12-Oct-23,5105895269,Doro Care Ltd,"£2,608.00"
Manchester City Council,Adult Social Care,Rents,12-Oct-23,5105895093,Housing Social Ltd,"£38,037.43"
Manchester City Council,Adult Social Care,Training and Development,12-Oct-23,5105895281,Health Assured Ltd,£645.00
Manchester City Council,Adult Social Care,Training and Development,12-Oct-23,5105895283,Health Assured Ltd,£645.00
Manchester City Council,Adult Social Care,Payments for services,12-Oct-23,5105895292,Delphi Medical,"£5,700.00"
Manchester City Council,Manchester Leisure,Agency staff provision,12-Oct-23,5105895233,Manchester Art Gallery,"£3,295.67"
Manchester City Council,Adult Social Care,Funeral and coroner related services,12-Oct-23,5105895298,Greater Manchester Funeral Service,"£1,470.00"
Manchester City Council,Chief Executives,Works and associated costs for Land and Buildings,12-Oct-23,5105895353,Edgerton Management Services,"£10,400.00"
Manchester City Council,Adult Social Care,Cleaning Equipment and Materials,12-Oct-23,5105895203,Arrow County Supplies,"£1,229.04"
Manchester City Council,Manchester Leisure,Special Event,12-Oct-23,5105895178,Beat Bazaar Projects Ltd,"£2,000.00"
Manchester City Council,Adult Social Care,Rents,12-Oct-23,5105895346,Manchester Housing Group Ltd,£600.00
Manchester City Council,Chief Executives,Counsel Costs,12-Oct-23,1908235062,Central Chambers,"£1,400.00"
Manchester City Council,Childrens & Education Services,Professional fees,12-Oct-23,5105895286,Prospero Teaching,£500.00
Manchester City Council,Childrens & Education Services,Professional fees,12-Oct-23,5105895288,Prospero Teaching,£500.00
Manchester City Council,Childrens & Education Services,Professional fees,12-Oct-23,5105895290,Prospero Teaching,£500.00
Manchester City Council,Childrens & Education Services,I T Provision,12-Oct-23,5105895399,Valtech Limited,"£1,022.58"
Manchester City Council,Regeneration Finance,Professional fees,12-Oct-23,5105895279,Nexus Planning Ltd,"£7,200.00"
Manchester City Council,Corporate Services,WPS Awards,12-Oct-23,5105895247,Furniture Resource Centre Ltd,£573.61
Manchester City Council,Childrens & Education Services,Payments for services,12-Oct-23,1908246810,Thompsons Academy Ltd,"£10,543.18"
Manchester City Council,Childrens & Education Services,Transport Coach Hire,12-Oct-23,5105895000,New City Cars Ltd,"£17,140.00"
Manchester City Council,Highways Services,Payments to Sub-Contractors,12-Oct-23,5105895418,Rhodes and Sons Construction Ltd,"£14,228.57"
Manchester City Council,Manchester Leisure,Stationery,12-Oct-23,5105895022,Carbon Creative Limited,£692.50
Manchester City Council,Chief Executives,Agency staff provision,12-Oct-23,5105895265,G2V Recruitment Grp t/a Vivid Resou,"£6,875.00"
Manchester City Council,Chief Executives,Agency staff provision,12-Oct-23,5105895266,G2V Recruitment Grp t/a Vivid Resou,"£6,999.75"
Manchester City Council,Chief Executives,Agency staff provision,12-Oct-23,5105895267,G2V Recruitment Grp t/a Vivid Resou,"£7,560.00"
Manchester City Council,Chief Executives,Legal Fees,12-Oct-23,5105895321,Isherwood Legal Limited,"£1,008.00"
Manchester City Council,Adult Social Care,Equipment,12-Oct-23,5105895368,Herida Healthcare Plc,"£2,548.00"
Manchester City Council,Manchester Leisure,Professional fees,12-Oct-23,5105895355,Windsor Telecom,"£3,439.53"
Manchester City Council,Chief Executives,Counsel Costs,12-Oct-23,1908245625,DEANS COURT CHAMBERS,"£1,500.00"
Manchester City Council,Housing Revenue Account,Council Dwelling Fees,12-Oct-23,5105895276,Wardell Armstrong LLP,"£1,878.00"
Manchester City Council,Adult Social Care,Personal needs of client,12-Oct-23,5105895244,Arjo UK Limited,"£1,856.00"
Manchester City Council,Highways Services,Building Materials for direct delivery,12-Oct-23,5105895245,STANDARD SIGNS & TRAFFIC SYSTEMS,£995.00
Manchester City Council,Childrens & Education Services,Third party payments to other Local Authorities,12-Oct-23,5105895383,Queensgate Primary School,"£2,155.00"
Manchester City Council,Manchester Leisure,Equipment,12-Oct-23,5105895280,Sants Fabrications Ltd,"£2,700.00"
Manchester City Council,Adult Social Care,Furniture,12-Oct-23,5105895408,Rtech Group Limited,"£5,045.84"
Manchester City Council,Childrens & Education Services,Payments for services,12-Oct-23,5105895347,SENsational Tutors Ltd,£900.00
Manchester City Council,Childrens & Education Services,Third party payments to other Local Authorities,12-Oct-23,5105895302,The 0161 Project Ltd,"£4,810.00"
Manchester City Council,Highways Services,Payments to Sub-Contractors,12-Oct-23,5105895422,Enviroflow Management Ltd,"£10,114.01"
Manchester City Council,Highways Services,Payments to Sub-Contractors,12-Oct-23,5105895422,Enviroflow Management Ltd,"£37,629.30"
Manchester City Council,Chief Executives,Training and Development,12-Oct-23,5105895285,ASK Europe Limited,£750.00
Manchester City Council,Chief Executives,Training and Development,12-Oct-23,5105895291,ASK Europe Limited,£750.00
Manchester City Council,Regeneration Finance,External repairs and maintenance for buildings,12-Oct-23,5105895380,Cesar Santos Cerejo,"£1,383.11"
Manchester City Council,Regeneration Finance,External repairs and maintenance for buildings,12-Oct-23,5105895421,Temple Studios,"£6,900.00"
Manchester City Council,Adult Social Care,Rents,12-Oct-23,5105895407,The Whiteluck Group,"£8,176.00"
Manchester City Council,Adult Social Care,Payments to Sub-Contractors,12-Oct-23,1908214562,Blue Amber Services,"£4,376.00"
Manchester City Council,Adult Social Care,Professional fees,12-Oct-23,1908220027,ANTZ UK,"£12,460.00"
Manchester City Council,Adult Social Care,Rents,12-Oct-23,1908246808,Primegold Properties Limited,£900.00
Manchester City Council,Chief Executives,Counsel Costs,12-Oct-23,1908235067,Redacted Personal Information,"£8,750.00"
Manchester City Council,Chief Executives,Counsel Costs,12-Oct-23,1908235064,Redacted Personal Information,"£1,562.50"
Manchester City Council,Chief Executives,Payments to Sub-Contractors,12-Oct-23,5105895343,Redacted Personal Information,"£1,053.30"
Manchester City Council,Chief Executives,Payments to Sub-Contractors,12-Oct-23,5105894084,Redacted Personal Information,"£3,651.53"
Manchester City Council,Manchester Leisure,Professional fees,12-Oct-23,5105895397,Redacted Personal Information,£731.25
Manchester City Council,Childrens & Education Services,Payments for services,12-Oct-23,5105895364,Redacted Personal Information,"£2,890.08"
Manchester City Council,Childrens & Education Services,Payments for services,12-Oct-23,5105895365,Redacted Personal Information,"£6,863.94"
Manchester City Council,Childrens & Education Services,Payments for services,12-Oct-23,5105895296,Redacted Personal Information,"£6,000.00"
Manchester City Council,Adult Social Care,Rents,12-Oct-23,1908246809,Redacted Personal Information,£900.00
Manchester City Council,Adult Social Care,Rents,12-Oct-23,1908246799,Redacted Personal Information,"£3,330.00"
Manchester City Council,Adult Social Care,Rents,12-Oct-23,1908246803,Redacted Personal Information,"£3,330.00"
Manchester City Council,Adult Social Care,Rents,12-Oct-23,1908246804,Redacted Personal Information,"£3,830.00"
Manchester City Council,Adult Social Care,Rents,12-Oct-23,1908246805,Redacted Personal Information,"£3,830.00"
Manchester City Council,Adult Social Care,Rents,12-Oct-23,1908246806,Redacted Personal Information,"£3,830.00"
Manchester City Council,Chief Executives,Counsel Costs,12-Oct-23,1908245311,Redacted Personal Information,£608.33
Manchester City Council,Chief Executives,Printing,12-Oct-23,5105895384,t/a R.C.D.,"-£2,025.00"
Manchester City Council,Chief Executives,Printing,12-Oct-23,5105894817,t/a R.C.D.,"£2,025.00"
Manchester City Council,Chief Executives,Printing,12-Oct-23,5105895409,t/a R.C.D.,"£2,025.00"
Manchester City Council,Childrens & Education Services,Payments for services,13-Oct-23,5105895452,The Together Trust,"£1,203.92"
Manchester City Council,Childrens & Education Services,Payments for services,13-Oct-23,5105895458,The Together Trust,"£1,759.44"
Manchester City Council,Childrens & Education Services,Payments for services,13-Oct-23,5105895456,The Together Trust,"£2,023.42"
Manchester City Council,Childrens & Education Services,Payments for services,13-Oct-23,5105895459,The Together Trust,"£2,213.24"
Manchester City Council,Childrens & Education Services,Payments for services,13-Oct-23,5105895455,The Together Trust,"£4,426.48"
Manchester City Council,Housing General Fund,Building Works,13-Oct-23,1908246820,Pollock Lifts Ltd,"£1,122.00"
Manchester City Council,Housing General Fund,Building Works,13-Oct-23,1908246819,Pollock Lifts Ltd,"£19,639.00"
Manchester City Council,Chief Executives,Postage,13-Oct-23,5105894495,Royal Mail Group Plc,"£32,489.20"
Manchester City Council,Manchester Leisure,Professional fees,13-Oct-23,5105894277,BCL,"£1,200.96"
Manchester City Council,Highways Services,Professional fees,13-Oct-23,5105895512,Mott Macdonald Uk Limited,"£8,641.13"
Manchester City Council,Manchester Leisure,Transport and Driver Hire,13-Oct-23,5105895558,M&G Transport & Technical Services,£887.00
Manchester City Council,Libraries and Theatres,Works and associated costs for Land and Buildings,13-Oct-23,5105895557,M&G Transport & Technical Services,"£6,215.75"
Manchester City Council,Adult Social Care,Professional fees,13-Oct-23,5105895350,Back Care Solutions Ltd,"£4,904.00"
Manchester City Council,Corporate Services,Professional fees,13-Oct-23,5105894108,Mace Ltd,"£7,390.00"
Manchester City Council,Childrens & Education Services,Professional fees,13-Oct-23,5105895430,AECOM Limited,"£5,475.00"
Manchester City Council,Childrens & Education Services,Catering,13-Oct-23,5105895427,Spie Limited,"£28,333.20"
Manchester City Council,Manchester Leisure,Publications,13-Oct-23,5105895591,Askews and Holts,£532.35
Manchester City Council,Manchester Leisure,Publications,13-Oct-23,5105895547,Askews and Holts,£807.23
Manchester City Council,Corporate Services,Works and associated costs for Land and Buildings,13-Oct-23,5105895521,PLP Construction Ltd,"£135,660.32"
Manchester City Council,Adult Social Care,Third party payments relating to Voluntary Organisations,13-Oct-23,5105895319,Riverside ECHG,"£51,708.00"
Manchester City Council,Manchester Leisure,Grounds Maintenance,13-Oct-23,5105895586,Plantscape,"£1,700.00"
Manchester City Council,Adult Social Care,Payments for services,13-Oct-23,5105895480,Big Life Centres,"£32,000.00"
Manchester City Council,Adult Social Care,Payments for services,13-Oct-23,5105895491,Big Life Centres,"£50,000.00"
Manchester City Council,Adult Social Care,Third party payments to Health Authority,13-Oct-23,5105895386,Northenden Group Practice,"£22,500.00"
Manchester City Council,Housing General Fund,Building Works,13-Oct-23,1908246822,Stannah Lift Services Ltd,"£3,304.00"
Manchester City Council,Housing General Fund,Building Works,13-Oct-23,1908246817,Stannah Lift Services Ltd,"£6,542.00"
Manchester City Council,Housing General Fund,Building Works,13-Oct-23,1908246823,Stannah Lift Services Ltd,"£6,757.00"
Manchester City Council,Housing General Fund,Building Works,13-Oct-23,1908246825,Stannah Lift Services Ltd,"£6,853.00"
Manchester City Council,Housing General Fund,Building Works,13-Oct-23,1908246814,Stannah Lift Services Ltd,"£7,411.00"
Manchester City Council,Housing General Fund,Building Works,13-Oct-23,1908246815,Stannah Lift Services Ltd,"£7,461.00"
Manchester City Council,Housing General Fund,Building Works,13-Oct-23,1908246824,Stannah Lift Services Ltd,"£7,284.00"
Manchester City Council,Childrens & Education Services,Private Finance and Public Private partnership initiatives,13-Oct-23,5105895425,NU3PS,"£91,494.92"
Manchester City Council,Adult Social Care,Third party payments to Health Authority,13-Oct-23,5105895574,Central Mcr Uni Hospital t/a,"£2,500.00"
Manchester City Council,Childrens & Education Services,Third party payments to other Local Authorities,13-Oct-23,5105895583,Central Mcr Uni Hospital t/a,£520.83
Manchester City Council,Chief Executives,Grant and subscriptions awarded,13-Oct-23,5105894925,Manchester International Festival,"£375,000.00"
Manchester City Council,Chief Executives,Professional fees,13-Oct-23,5105894431,Manchester International Festival,"-£193,990.00"
Manchester City Council,Regeneration Finance,Rents,13-Oct-23,5105895525,Wythenshawe Forum Trust Ltd,"£38,204.78"
Manchester City Council,Adult Social Care,Third party payments relating to Voluntary Organisations,13-Oct-23,5105895423,Citizens Advice Manchester,"£80,000.00"
Manchester City Council,Adult Social Care,Third party payments relating to Voluntary Organisations,13-Oct-23,5105895522,Albert Kennedy Trust,£758.33
Manchester City Council,Childrens & Education Services,Subsistence and Conference Expenses,13-Oct-23,5105895575,Disabled Living,"£5,340.00"
Manchester City Council,Childrens & Education Services,Private Finance and Public Private partnership initiatives,13-Oct-23,5105895475,Manchester School Services Limited,"£457,087.67"
Manchester City Council,Childrens & Education Services,Gas,13-Oct-23,5105895473,Manchester School Services Limited,"£80,017.95"
Manchester City Council,Corporate Services,Professional fees,13-Oct-23,5105895492,Turner & Townsend Cost,"£7,308.00"
Manchester City Council,Chief Executives,Works and associated costs for Land and Buildings,13-Oct-23,5105894055,Turner & Townsend Cost,"£55,019.45"
Manchester City Council,Childrens & Education Services,Travel,13-Oct-23,5105895519,Swans Travel Ltd,"£1,580.00"
Manchester City Council,Chief Executives,Printing,13-Oct-23,5105895193,Chapel Press Ltd,"£2,826.00"
Manchester City Council,Environment and Operations,GRIR,13-Oct-23,5105895482,Vertical Access Ltd,"-£4,242.39"
Manchester City Council,Environment and Operations,GRIR,13-Oct-23,5105895482,Vertical Access Ltd,"-£2,039.38"
Manchester City Council,Chief Executives,I T Provision,13-Oct-23,5105895604,Insight Direct (Uk) Ltd,"£1,149.00"
Manchester City Council,Regeneration Finance,Stationery,13-Oct-23,5105895572,Yorkshire Purchasing,£976.50
Manchester City Council,General Fund,Levies,13-Oct-23,#,GMCA,"£3,905,500.00"
Manchester City Council,Adult Social Care,Equipment,13-Oct-23,5105895481,Drive Devilbiss Healthcare Ltd,"£6,282.45"
Manchester City Council,Childrens & Education Services,Day Care Payments,13-Oct-23,5105895359,Tiddlywinks Day Nursery Ltd,"£4,071.00"
Manchester City Council,Childrens & Education Services,Hire of Premises,13-Oct-23,5105895273,The Monastery Manchester Ltd,"£1,510.00"
Manchester City Council,Manchester Leisure,Training and Development,13-Oct-23,5105895435,Institute of Licensing (Events) Ltd,-£816.00
Manchester City Council,Manchester Leisure,Training and Development,13-Oct-23,5105895436,Institute of Licensing (Events) Ltd,-£816.00
Manchester City Council,Manchester Leisure,Training and Development,13-Oct-23,5105895437,Institute of Licensing (Events) Ltd,£680.00
Manchester City Council,Manchester Leisure,Training and Development,13-Oct-23,5105895438,Institute of Licensing (Events) Ltd,£680.00
Manchester City Council,Chief Executives,Hire of Equipment,13-Oct-23,5105895179,Sterling Event Group,"£7,298.39"
Manchester City Council,Housing Revenue Account,Works and associated costs for Land and Buildings,13-Oct-23,5105895513,Jacobs UK Ltd,£575.00
Manchester City Council,Housing Revenue Account,Works and associated costs for Land and Buildings,13-Oct-23,5105895513,Jacobs UK Ltd,"£6,582.60"
Manchester City Council,Housing Revenue Account,Works and associated costs for Land and Buildings,13-Oct-23,5105895513,Jacobs UK Ltd,"£1,150.00"
Manchester City Council,Manchester Leisure,Professional fees,13-Oct-23,5105894618,Rackline Limited,"£1,100.00"
Manchester City Council,Adult Social Care,Equipment,13-Oct-23,5105895433,Aidapt Bathrooms Ltd,"£4,725.00"
Manchester City Council,Chief Executives,Agency staff provision,13-Oct-23,5105895518,Ashberry Recruitment Ltd,"£1,968.30"
Manchester City Council,Chief Executives,Advertising,13-Oct-23,5105895287,MediaCo Outdoor Limited,£720.00
Manchester City Council,Regeneration Finance,Professional fees,13-Oct-23,5105895511,Planit,"£9,500.00"
Manchester City Council,Childrens & Education Services,Transport Coach Hire,13-Oct-23,5105895499,Royton Minibuses Ltd,"£18,630.00"
Manchester City Council,Manchester Leisure,Grant and subscriptions awarded,13-Oct-23,5105895441,Northmoor Together,"£1,569.99"
Manchester City Council,Hospitality + Trading Services,Machinery and equipment repairs,13-Oct-23,5105895385,Gibsons Garden Machinery Limited,£600.23
Manchester City Council,Regeneration Finance,Refuse Collection,13-Oct-23,5105895607,Restore Datashred Limited,"£4,339.23"
Manchester City Council,Manchester Leisure,Special Event,13-Oct-23,5105895390,British Taekwondo Limited,"£3,400.00"
Manchester City Council,Housing General Fund,Building Works,13-Oct-23,1908246818,UPS Building & Maintenance Ltd,"£15,043.42"
Manchester City Council,Housing General Fund,Building Works,13-Oct-23,1908246816,UPS Building & Maintenance Ltd,"£20,184.35"
Manchester City Council,Housing General Fund,Building Works,13-Oct-23,1908246821,UPS Building & Maintenance Ltd,"£25,441.07"
Manchester City Council,Chief Executives,Professional fees,13-Oct-23,1908239430,Forensic Testing Service Ltd,£752.40
Manchester City Council,Manchester Leisure,Grant and subscriptions awarded,13-Oct-23,5105895420,We Matter CIC,"£1,500.00"
Manchester City Council,Chief Executives,Professional fees,13-Oct-23,1908239432,Target Psychology Ltd,£799.82
Manchester City Council,Manchester Leisure,Postage,13-Oct-23,5105895468,Integrity Print Ltd,"£1,882.62"
Manchester City Council,Regeneration Finance,Internal Repairs and Maintenance for buildings,13-Oct-23,5105893942,EQUANS Services Limited,"£50,268.56"
Manchester City Council,Manchester Leisure,Payments to Sub-Contractors,13-Oct-23,5105895398,Synectics Security Limited,"£3,038.36"
Manchester City Council,Chief Executives,Counsel Costs,13-Oct-23,1908239437,Central Chambers,£550.00
Manchester City Council,Chief Executives,Counsel Costs,13-Oct-23,1908235068,Central Chambers,£800.00
Manchester City Council,Chief Executives,Counsel Costs,13-Oct-23,1908241891,Central Chambers,"£1,100.00"
Manchester City Council,Regeneration Finance,Planning Invalid,13-Oct-23,1908239428,PortalPlanQuest Ltd,"£3,696.00"
Manchester City Council,Highways Services,Vehicle Fuel Costs,13-Oct-23,5105893503,Standard Fuels Oils,£856.43
Manchester City Council,Highways Services,Vehicle Fuel Costs,13-Oct-23,5105894903,Standard Fuels Oils,£967.97
Manchester City Council,Chief Executives,Publications,13-Oct-23,5105895543,Wildy & Sons Ltd,£650.00
Manchester City Council,Adult Social Care,Bed & Breakfast Acc,13-Oct-23,5105895590,Hala Guest House,£590.00
Manchester City Council,Childrens & Education Services,Transport Coach Hire,13-Oct-23,5105895555,Home to School Travel Ltd,"£7,128.00"
Manchester City Council,Adult Social Care,Security,13-Oct-23,5105895560,UNIQUE SPECIALIST SERVICES,£624.00
Manchester City Council,Adult Social Care,Security,13-Oct-23,5105895561,UNIQUE SPECIALIST SERVICES,"£2,106.00"
Manchester City Council,Childrens & Education Services,Transport Coach Hire,13-Oct-23,5105895426,CW Travel,"£39,425.00"
Manchester City Council,Corporate Services,Professional fees,13-Oct-23,5105895076,NE1 Procurement Services Limited,"£1,025.64"
Manchester City Council,Corporate Services,Professional fees,13-Oct-23,5105895077,NE1 Procurement Services Limited,"£1,511.59"
Manchester City Council,Corporate Services,Professional fees,13-Oct-23,5105895074,NE1 Procurement Services Limited,"£5,641.03"
Manchester City Council,Corporate Services,Professional fees,13-Oct-23,5105895075,NE1 Procurement Services Limited,"£7,692.31"
Manchester City Council,Corporate Services,Professional fees,13-Oct-23,5105895073,NE1 Procurement Services Limited,"£12,000.00"
Manchester City Council,Adult Social Care,Equipment,13-Oct-23,5105895544,Herida Healthcare Plc,"£3,640.00"
Manchester City Council,Adult Social Care,Rents,13-Oct-23,5105895578,M&D Residential Ltd,"£16,444.91"
Manchester City Council,Chief Executives,Training and Development,13-Oct-23,5105895501,Ginger Dog.Com,"£2,100.00"
Manchester City Council,Housing Revenue Account,Works and associated costs for Land and Buildings,13-Oct-23,1908246811,Northern Gateway (FEC) No.10 Limite,"£5,435.68"
Manchester City Council,Housing Revenue Account,Works and associated costs for Land and Buildings,13-Oct-23,1908246811,Northern Gateway (FEC) No.10 Limite,"£271,784.00"
Manchester City Council,Childrens & Education Services,Payments for services,13-Oct-23,5105895565,Sendcode CIC,"£2,196.92"
Manchester City Council,Manchester Leisure,Environmental Services,13-Oct-23,5105895602,CPD Property Services,£545.00
Manchester City Council,Childrens & Education Services,Payments for services,13-Oct-23,5105895479,Digital Advantage,"£91,189.00"
Manchester City Council,Corporate Services,Works and associated costs for Land and Buildings,13-Oct-23,5105895495,Bruntwood (Heron House),"£3,444.00"
Manchester City Council,Childrens & Education Services,Payments for services,13-Oct-23,5105895568,Care Solutions Recruitment,£586.80
Manchester City Council,Childrens & Education Services,Payments for services,13-Oct-23,5105895569,Care Solutions Recruitment,"£3,411.00"
Manchester City Council,Libraries and Theatres,Vehicle Plant Furniture and Equipment,13-Oct-23,5105895508,FusionLX LTD.,"£1,891.77"
Manchester City Council,Childrens & Education Services,Third party payments to other Local Authorities,13-Oct-23,5105895550,IncludED Learning Ltd,"£53,572.16"
Manchester City Council,Childrens Services,Building Works,13-Oct-23,5105895477,GJS (Education) Investments Limited,"£264,221.37"
Manchester City Council,Regeneration Finance,External repairs and maintenance for buildings,13-Oct-23,5105895424,H. J. Hatfield & Sons Limited,"£3,859.63"
Manchester City Council,Manchester Leisure,Goods purchased for resale in Council outlets,13-Oct-23,5105895463,MDBKA,£550.00
Manchester City Council,Manchester Leisure,Grant and subscriptions awarded,13-Oct-23,1908246800,Friends of Crumpsall Park,"£2,401.60"
Manchester City Council,Manchester Leisure,Library Materials Acquisition,13-Oct-23,1908247522,THE HON ROBERT HARBORD-HAMOND,"£86,000.00"
Manchester City Council,Childrens & Education Services,Professional fees,13-Oct-23,1908247569,Bolton Council,"£203,000.00"
Manchester City Council,Childrens & Education Services,Transport and Driver Hire,13-Oct-23,1908208279,Mostonian,"£1,300.00"
Manchester City Council,Chief Executives,Counsel Costs,13-Oct-23,1908240135,Redacted Personal Information,£500.00
Manchester City Council,Adult Social Care,Bed & Breakfast Acc,13-Oct-23,5105895450,Redacted Personal Information,"£5,025.00"
Manchester City Council,Chief Executives,Counsel Costs,13-Oct-23,1908241899,Redacted Personal Information,£593.75
Manchester City Council,Chief Executives,Counsel Costs,13-Oct-23,1908239433,Redacted Personal Information,"£2,000.00"
Manchester City Council,Manchester Leisure,Special Event,13-Oct-23,5105895474,Redacted Personal Information,"£1,000.00"
Manchester City Council,Housing General Fund,Building Works,13-Oct-23,1908245705,Redacted Personal Information,"£23,131.85"
Manchester City Council,Housing General Fund,Building Works,13-Oct-23,1908245706,Redacted Personal Information,"£19,166.87"
Manchester City Council,Adult Social Care,Rents,13-Oct-23,1908247568,Redacted Personal Information,"£1,650.00"
Manchester City Council,Adult Social Care,Rents,13-Oct-23,1908247568,Redacted Personal Information,"£6,290.94"
Manchester City Council,Childrens & Education Services,Payments for services,16-Oct-23,5105895487,The Together Trust,"-£5,743.00"
Manchester City Council,Childrens & Education Services,Payments for services,16-Oct-23,5105895539,The Together Trust,"£1,080.00"
Manchester City Council,Childrens & Education Services,Payments for services,16-Oct-23,5105895641,The Together Trust,"£4,300.00"
Manchester City Council,Childrens & Education Services,Payments for services,16-Oct-23,5105895488,The Together Trust,"£5,743.00"
Manchester City Council,Childrens & Education Services,Payments for services,16-Oct-23,5105895540,The Together Trust,"£7,830.00"
Manchester City Council,Adult Social Care,Supporting People Payments,16-Oct-23,5105895812,Praxis Care Group,"£6,524.81"
Manchester City Council,Manchester Leisure,Special Event,16-Oct-23,5105893389,Showmed,"£2,416.00"
Manchester City Council,Chief Executives,Agency staff provision,16-Oct-23,5105894570,Solace In Business Ltd,"£19,855.00"
Manchester City Council,Adult Social Care,Equipment,16-Oct-23,5105895785,Sarabec Limited,"-£2,397.00"
Manchester City Council,Regeneration Finance,Professional fees,16-Oct-23,5105895728,Cushman & Wakefield,"£12,450.00"
Manchester City Council,Manchester Leisure,Payments to Sub-Contractors,16-Oct-23,5105895510,Flowbird Smart City Uk Ltd,"£1,116.00"
Manchester City Council,Corporate Services,Works and associated costs for Land and Buildings,16-Oct-23,5105895815,Ove Arup & Partners Ltd,"£15,129.60"
Manchester City Council,Corporate Services,Works and associated costs for Land and Buildings,16-Oct-23,5105895814,Ove Arup & Partners Ltd,"£17,400.00"
Manchester City Council,Chief Executives,Agency staff provision,16-Oct-23,5105895807,Michael Page International,"£3,264.00"
Manchester City Council,Chief Executives,Agency staff provision,16-Oct-23,5105895810,Michael Page International,"£4,282.60"
Manchester City Council,Chief Executives,Agency staff provision,16-Oct-23,5105895809,Michael Page International,"£4,590.00"
Manchester City Council,Chief Executives,Agency staff provision,16-Oct-23,5105895808,Michael Page International,"£7,500.00"
Manchester City Council,Chief Executives,Agency staff provision,16-Oct-23,5105895805,Michael Page International,"£12,408.00"
Manchester City Council,Manchester Leisure,Special Event,16-Oct-23,5105895623,Ramora Ltd,"£3,605.06"
Manchester City Council,Housing Revenue Account,Council Dwelling Adaptations,16-Oct-23,5105895615,Moores Furniture Group Limited,"£1,698.84"
Manchester City Council,Manchester Leisure,Security,16-Oct-23,5105895693,Showsec International Ltd,"£4,272.27"
Manchester City Council,Hospitality + Trading Services,Security,16-Oct-23,5105895646,Showsec International Ltd,"£11,326.14"
Manchester City Council,Regeneration Finance,Security,16-Oct-23,5105895647,Showsec International Ltd,"£19,850.40"
Manchester City Council,Childrens & Education Services,Payments for services,16-Oct-23,5105895645,Reed Employment Plc,"£6,613.04"
Manchester City Council,Childrens & Education Services,Payments for services,16-Oct-23,5105895643,Reed Employment Plc,"£7,786.44"
Manchester City Council,Childrens & Education Services,Payments for services,16-Oct-23,5105895644,Reed Employment Plc,"£7,947.17"
Manchester City Council,Childrens & Education Services,Payments for services,16-Oct-23,5105895642,Reed Employment Plc,"£8,019.91"
Manchester City Council,Adult Social Care,Rents,16-Oct-23,5105895620,Mosscare Housing Ltd,£703.64
Manchester City Council,Adult Social Care,Rents,16-Oct-23,5105895618,Mosscare Housing Ltd,"£2,088.40"
Manchester City Council,Adult Social Care,Rents,16-Oct-23,5105895616,Mosscare Housing Ltd,"£4,184.80"
Manchester City Council,Adult Social Care,Rents,16-Oct-23,5105895617,Mosscare Housing Ltd,"£4,184.80"
Manchester City Council,Adult Social Care,Rents,16-Oct-23,5105895619,Mosscare Housing Ltd,"£25,790.28"
Manchester City Council,Childrens & Education Services,Third party payments relating to Voluntary Organisations,16-Oct-23,5105894207,The Children'S Society Services Ltd,"£38,756.00"
Manchester City Council,Manchester Leisure,Payments to Sub-Contractors,16-Oct-23,5105895763,Rigby Taylor Ltd,"£2,386.00"
Manchester City Council,Corporate Services,Tracing fees,16-Oct-23,5105895719,Experian Limited,"£2,151.76"
Manchester City Council,Childrens & Education Services,Transport Coach Hire,16-Oct-23,5105894565,M Travel,"£70,289.00"
Manchester City Council,Chief Executives,Grant and subscriptions awarded,16-Oct-23,5105895652,Zion Arts Centre Ltd,"£46,122.00"
Manchester City Council,Chief Executives,Legal Fees,16-Oct-23,5105895774,DWF LLP,"£3,150.00"
Manchester City Council,Childrens & Education Services,Professional fees,16-Oct-23,5105895780,Pure Innovations Ltd,"£6,569.25"
Manchester City Council,Adult Social Care,Grant and subscriptions awarded,16-Oct-23,5105895802,Manchester Action On Street Health,"£55,167.00"
Manchester City Council,Adult Social Care,Third party payments relating to Voluntary Organisations,16-Oct-23,5105895800,Manchester Action On Street Health,"£11,352.00"
Manchester City Council,Adult Social Care,Third party payments relating to Voluntary Organisations,16-Oct-23,5105895803,Manchester Action On Street Health,"£16,686.08"
Manchester City Council,Adult Social Care,Third party payments relating to Voluntary Organisations,16-Oct-23,5105895801,The Edward Mayes Trust,"£1,500.00"
Manchester City Council,Chief Executives,Printing,16-Oct-23,5105895694,Tharstern Limited,£742.50
Manchester City Council,Chief Executives,Printing,16-Oct-23,5105895784,Browns CTP Ltd,"£3,396.00"
Manchester City Council,Manchester Leisure,Works and associated costs for Land and Buildings,16-Oct-23,5105894747,Kier Construction North and,"£438,535.07"
